Workbook

Sheet Benvenuto
P3: LEGENDA
P4: Campi Non Editabili | Q4: Campi Editabili
P6: Opzioni 20% | Q6: Qtà 20%
P8: Errore nella Selezione | Q8: Verifica Positiva

Sheet SR650_Iper_Convergenza
F2: Convenzione Tecnologie Server 4 - Lotto 3 | H2: =IF(R111>1,"ERRORE NELLA CONFIGURAZIONE","") ->  | K2: =IF(Riepilogo_Ordine!K98>Riepilogo_Ordine!G98,"Superata Quota 20%","") ->  | AD2: SalvaPDF
K3: Articoli 20% Totali | P3: Check CPU | Q3: Check RAM | R3: Check Dischi | S3: Check PCI | T3: Check Win | U3: Check Gar | V3: Check Tot | AD3: =IF(I8>0,1,0) -> 0
F4: In questo foglio sono disponibili le configurazioni Iper Convergenti per le macchine ThinkAgile HX e VX, selezionando queste configurazioni si accetta la sostituzione della macchina base con la relativa versione HX o VX | H4: =IF(V4<>0,"Cliccare su 'Compila Configurazione'","") ->  | I4: Totale Altre Opzioni | K4: =Riepilogo_Ordine!K98 -> 0 | P4: =IF(I22<>"",1,0) -> 0 | Q4: =IF(I25<>"",1,0) -> 0 | R4: =IF(OR(I44<>"",I50<>"",I52<>"",I54<>""),1,0) -> 0 | S4: =IF(I89<>"",1,0) -> 0 | T4: =IF(I28<>"",1,0) -> 0 | U4: =IF(I116<>"",1,0) -> 0 | V4: =SUM(P4:U4) -> 0
I5: =Altre_Opzioni!H10 -> 0 | K5: Quota Residua 20 %
H6: Guida alla Convenzione | I6: Totale Configurazione | K6: =Riepilogo_Ordine!G99 -> 0
F7: =IF(Riepilogo_Ordine!P8>0,"Compilare i Dati nel Foglio Riepilogo per Stampare in PDF","") -> Compilare i Dati nel Foglio Riepilogo per Stampare in PDF | I7: =IF(H4<>"",0,I119+I120) -> 0 | K7: Totale Ordine Iva Esclusa | P7: =IF(F11=ConfigurationTS4L3!A15,"NUT1",IF(F11=ConfigurationTS4L3!A16,"NUT2",IF(F11=ConfigurationTS4L3!A17,"VSAN1",IF(F11=ConfigurationTS4L3!A18,"VSAN2",FALSE)))) -> NUT1
F8: LENOVO THINKAGILE HX/VX | H8: Quantità Server | I8: 0 | K8: =Riepilogo_Ordine!K99 -> 0
F10: Base | S10: Lenovo ThinkSystem SR650 V2 Server
F11: Conversion Kit a sistemi HX (Hybrid) | H11: =IF($I$8=0,"",VLOOKUP(F11,TS4L4_Base,13,FALSE)) ->  | I11: =IF($I$8>0,1,"") ->  | K11: =O11 -> 2050.54 | O11: =VLOOKUP($F$11,TS4L4_Base,10,FALSE) -> 2050.54 | Q11: =VLOOKUP($F11,TS4L4_Base,12,FALSE) -> L3N01 | W11: =IF(F11=ConfigurationTS4L3!A15,"NutanixA",IF(SR650_Iper_Convergenza!F11=ConfigurationTS4L3!A16,"NutanixB",IF(SR650_Iper_Convergenza!F11=ConfigurationTS4L3!A17,"VsanA",IF(SR650_Iper_Convergenza!F12=ConfigurationTS4L3!F12,"VsanB",IF(SR650_Iper_Convergenza!F11=ConfigurationTS4L3!A18,"VsanC"))))) -> NutanixA
R15: =IF(T11<>"","vsan","") ->  | S15: =IF(AND(T15="GP1",F26>512),"Selezionare RAM Corretta","") -> 
F16: Chassis Configuration | H16: =IF($S$88="SW","MAX 4 GPU",IF($S$88="DW","MAX 2 GPU","")) -> 
F17: =IF(I23=1,VLOOKUP($F$11,TS4L4_Chassis,3,FALSE),VLOOKUP($F$11,TS4L4_Chassis,2,FALSE)) -> Kit Conversione Nutanix Chassis with Up to 12 x 3.5 Hard Drives for 2CPU Configuration | H17: =IF($I$23=1,VLOOKUP($F$11,TS4L4_Chassis,11,FALSE),VLOOKUP($F$11,TS4L4_Chassis,9,FALSE)) -> TS4L3-KIT-NUTANIX-A | I17: =IF($I$8=0,0,VLOOKUP(F11,TS4L4_Chassis,7,0)) -> 0 | K17: =O17+P17 -> 0 | P17: =VLOOKUP($F$11,TS4L4_Chassis,10,FALSE)*I17 -> 0 | Q17: =IF(I17=0,"",(VLOOKUP($F11,TS4L4_Chassis,12,FALSE))) ->  | T17: 1
F19: Processor
F20: =IF($W$11="NutanixA",ConfigurationTS4L3!$D$21,IF($W$11="NutanixB",ConfigurationTS4L3!$D$23,IF($W$11="VsanA",ConfigurationTS4L3!$D$23,IF($W$11="VsanB",ConfigurationTS4L3!$D$23,FALSE)))) -> Intel Xeon Silver 4310 12C 120W 2.1GHz Processor | H20: =IF(F20="Intel Xeon Silver 4310 12C 120W 2.1GHz Processor","",IF(I14=1,VLOOKUP($F$20,TS4L4_CPU,13,FALSE),VLOOKUP($F$23,TS4L4_CPU,13,FALSE))) ->  | I20: =IF(F20="Intel Xeon Silver 4310 12C 120W 2.1GHz Processor",0,IF(I14=1,VLOOKUP($F$23,TS4L4_CPU,7,FALSE),VLOOKUP($F$23,TS4L4_CPU,7,FALSE))) -> 0 | K20: =O20+P20 -> 0 | O20: =IF(F20="Intel Xeon Silver 4310 12C 120W 2.1GHz Processor",0,IF(I14=1,VLOOKUP($F$20,TS4L4_CPU,10,FALSE),VLOOKUP($F$23,TS4L4_CPU,10,FALSE))) -> 0 | P20: =IF(I14=1,VLOOKUP($F$20,TS4L4_CPU,11,FALSE),VLOOKUP($F$23,TS4L4_CPU,11,FALSE)) -> 0 | Q20: =IF(F20="Intel Xeon Silver 4310 12C 120W 2.1GHz Processor",0,IF(I14=1,VLOOKUP(F17,TS4L4_CPU,12,FALSE),VLOOKUP($F20,TS4L4_CPU,12,FALSE))) -> 0
F22: Additional Processor
F23: =F20 -> Intel Xeon Silver 4310 12C 120W 2.1GHz Processor | H23: =IF(I17=1,VLOOKUP($F$20,TS4L4_CPU,13,FALSE),VLOOKUP($F$23,TS4L4_CPU,13,FALSE)) -> TS4L3-CPU | I23: =IF(I17=1,VLOOKUP($F$23,TS4L4_CPU,7,FALSE),VLOOKUP($F$23,TS4L4_CPU,7,FALSE)) -> 1 | K23: =O23+P23 -> 623.57 | O23: =IF(I17=1,VLOOKUP($F$20,TS4L4_CPU,10,FALSE),VLOOKUP($F$23,TS4L4_CPU,10,FALSE)) -> 623.57 | P23: =IF(I17=1,VLOOKUP($F$20,TS4L4_CPU,11,FALSE),VLOOKUP($F$23,TS4L4_CPU,11,FALSE)) -> 0 | Q23: =IF(I17=1,VLOOKUP(F20,TS4L4_CPU,12,FALSE),VLOOKUP($F23,TS4L4_CPU,12,FALSE)) -> L3N02 | S23: =IF(I23=1,"Intel Xeon Silver 4310 12C 120W 2.1GHz Processor",F23) -> Intel Xeon Silver 4310 12C 120W 2.1GHz Processor
F25: Memory Capacity (GB)
F26: 512 | H26: TS4L3-RAM32 | I26: =IF(I25<>"",0,T26) -> 14 | K26: =O26 -> 3126.34 | O26: =U26 -> 3126.34 | Q26: =IF(I25<>"",0,V26) -> L3N03 | S26: =IF(I25<>"",0,IF(AND(H26="TS4L3-RAM32",I23=""),VLOOKUP($F$26,TS4L3_RAM1CPU32GB,13,FALSE),IF(AND(H26="TS4L3-RAM32",I23=1),VLOOKUP($F$26,TS4L3_RAM2CPU32GB,13,FALSE),IF(AND(H26="TS4L3-RAM64",I23=""),VLOOKUP($F$26,TS4L3_RAM1CPU64GB,13,FALSE),IF(AND(H26="TS4L3-RAM64",I23=1),VLOOKUP($F$26,TS4L3_RAM2CPU64GB,13,FALSE),""))))) -> TS4L3-RAM32 | T26: =IF(AND(H26="TS4L3-RAM32",I23=""),VLOOKUP($F$26,TS4L3_RAM1CPU32GB,7,FALSE),IF(AND(H26="TS4L3-RAM32",I23=1),VLOOKUP($F$26,TS4L3_RAM2CPU32GB,7,FALSE),IF(AND(H26="TS4L3-RAM64",I23=""),VLOOKUP($F$26,TS4L3_RAM1CPU64GB,7,FALSE),IF(AND(H26="TS4L3-RAM64",I23=1),VLOOKUP($F$26,TS4L3_RAM2CPU64GB,7,FALSE),"")))) -> 14 | U26: =IF(I25<>"",0,IF(AND(H26="TS4L3-RAM32",I23=""),VLOOKUP($F$26,TS4L3_RAM1CPU32GB,10,FALSE),IF(AND(H26="TS4L3-RAM32",I23=1),VLOOKUP($F$26,TS4L3_RAM2CPU32GB,10,FALSE),IF(AND(H26="TS4L3-RAM64",I23=""),VLOOKUP($F$26,TS4L3_RAM1CPU64GB,10,FALSE),IF(AND(H26="TS4L3-RAM64",I23=1),VLOOKUP($F$26,TS4L3_RAM2CPU64GB,10,FALSE),""))))) -> 3126.34 | V26: =IF(I25<>"",0,IF(AND(H26="TS4L3-RAM32",I23=""),VLOOKUP($F$26,TS4L3_RAM1CPU32GB,12,FALSE),IF(AND(H26="TS4L3-RAM32",I23=1),VLOOKUP($F$26,TS4L3_RAM2CPU32GB,12,FALSE),IF(AND(H26="TS4L3-RAM64",I23=""),VLOOKUP($F$26,TS4L3_RAM1CPU64GB,12,FALSE),IF(AND(H26="TS4L3-RAM64",I23=1),VLOOKUP($F$26,TS4L3_RAM2CPU64GB,12,FALSE),""))))) -> L3N03
F28: Operating System STANDARD
F29: No Operating System | H29: =VLOOKUP($F$29,TS4L3_OS,13,FALSE) ->  | I29: 0 | K29: =O29 -> 0 | O29: =VLOOKUP($F$29,TS4L3_OS,10,FALSE)*I29 -> 0 | P29: =VLOOKUP($F$29,TS4L3_OS,11,FALSE) -> 0 | Q29: =VLOOKUP($F29,TS4L3_OS,12,FALSE) ->  | S29: =IF(AND(F23="No Additional Processor",I29>=3),TRUE,FALSE) -> FALSE
F30: Windows Server 2022 Standard Edition, Add License,2CORE | H30: =VLOOKUP($F$30,TS4L3_OS,13,FALSE) -> TS4L3-WINSRV2C | I30: 0 | K30: =O30 -> 0 | O30: =VLOOKUP($F$30,TS4L3_OS,10,FALSE)*I30 -> 0 | P30: =VLOOKUP($F$29,TS4L3_OS,11,FALSE) -> 0 | Q30: =VLOOKUP($F30,TS4L3_OS,12,FALSE) -> L3N21 | S30: =IF(AND(F23<>"No Additional Processor",I29>=3),TRUE,FALSE) -> FALSE
F32: Operating System Device CAL / User CAL
F33: 1-pack of Windows Server 2022/2019 Device CALs (STD or DC) | H33: =VLOOKUP($F$33,TS4L3_OS,13,FALSE) -> TS4L3-WINDEVCAL | I33: 0 | K33: =O33 -> 0 | O33: =VLOOKUP($F$33,TS4L3_OS,10,FALSE)*I33 -> 0 | P33: =VLOOKUP($F$29,TS4L3_OS,11,FALSE) -> 0 | Q33: =VLOOKUP($F33,TS4L3_OS,12,FALSE) -> L3N19
F34: 1-pack of Windows Server 2022/2019 User CALs (STD or DC) | H34: =VLOOKUP($F$34,TS4L3_OS,13,FALSE) -> TS4L3-WINUSRCAL | I34: 0 | K34: =O34 -> 0 | O34: =VLOOKUP($F$34,TS4L3_OS,10,FALSE)*I34 -> 0 | P34: =VLOOKUP($F$29,TS4L3_OS,11,FALSE) -> 0 | Q34: =VLOOKUP($F34,TS4L3_OS,12,FALSE) -> L3N20
F36: Disk Controller
F37: Solution Certified SAS HBA | Q37: =IF(I17=1,"",VLOOKUP($F37,TS4L4_CRTL,12,FALSE)) ->  | S37: =IF(F11="PowerEdge R7525 Server (vSAN Ready)","Vsan","") -> 
F39: Abilitazione RAID su dischi NVMe
F40: 2 x Boot Disks in RAID 1 | S40: =IF(F17="PowerEdge R7525 Server (vSAN Ready)","Vsan","") -> 
F42: Hard Drivers Bays n° 12 + 2 Dischi nVME di Boot | H42: Usati | I42: Disponibili | K42: =IF(I43<0,"Troppi Dischi","") -> 
H43: =SUM(I45:I79) -> 12 | I43: =12-H43 -> 0
F45: =ConfigurationTS4L3!A70 -> 8TB 7.2K SAS 12Gb Hot Swap 512e HDD | H45: =VLOOKUP($F45,TS4L4_HDD,13,FALSE) -> TS4L3-HDD8TB | I45: 0 | K45: =O45 -> 0 | O45: =IF(K42<>"",0,VLOOKUP($F45,TS4L4_HDD,10,FALSE))*I45 -> 0 | P45: =VLOOKUP($F45,TS4L4_HDD,11,FALSE) -> 0 | Q45: =IF(K42<>"","",VLOOKUP($F45,TS4L4_HDD,12,FALSE)) -> L3N11
F47: =ConfigurationTS4L3!A71 -> 2TB 7.2K SAS 12Gb Hot Swap 512n HDD | H47: =VLOOKUP($F47,TS4L4_HDD,13,FALSE) -> TS4L3-HDD2TB | I47: 0 | K47: =O47 -> 0 | O47: =IF(K42<>"",0,VLOOKUP($F47,TS4L4_HDD,10,FALSE))*I47 -> 0 | P47: =VLOOKUP($F47,TS4L4_HDD,11,FALSE) -> 0 | Q47: =IF(K42<>"","",VLOOKUP($F47,TS4L4_HDD,12,FALSE)) -> L3N12
F49: =ConfigurationTS4L3!A72 -> 1TB 7.2K SAS 12Gb Hot Swap 512n HDD | H49: =VLOOKUP($F49,TS4L4_HDD,13,FALSE) -> TS4L3-HDD1TB | I49: 0 | K49: =O49 -> 0 | O49: =IF(K42<>"",0,VLOOKUP($F49,TS4L4_HDD,10,FALSE))*I49 -> 0 | P49: =VLOOKUP($F49,TS4L4_HDD,11,FALSE) -> 0 | Q49: =IF(K42<>"","",VLOOKUP($F49,TS4L4_HDD,12,FALSE)) -> L3N13
I50: =IF(AND(I51<>8,P7="NUT1"),"‼",IF(AND(I51<>0,P7="NUT2"),"‼",IF(AND(I51<>0,P7="VSAN1"),"‼",IF(AND(I51<>0,P7="VSAN2"),"‼","")))) -> 
F51: =ConfigurationTS4L3!A73 -> 12TB 7.2K SAS 12Gb Hot Swap 512e HDD | H51: =VLOOKUP($F51,TS4L4_HDD,13,FALSE) -> TS4L3-HDD12TB | I51: 8 | K51: =O51 -> 2468.88 | O51: =IF(K42<>"",0,VLOOKUP($F51,TS4L4_HDD,10,FALSE))*I51 -> 2468.88 | P51: =VLOOKUP($F51,TS4L4_HDD,11,FALSE) -> 0 | Q51: =IF(K42<>"","",VLOOKUP($F51,TS4L4_HDD,12,FALSE)) -> L3N14
I52: =IF(AND(I53<>4,P7="NUT1"),"‼",IF(AND(I53<>12,P7="NUT2"),"‼",IF(AND(I53<>0,P7="VSAN1"),"‼",IF(AND(I53<>9,P7="VSAN2"),"‼","")))) -> 
F53: =ConfigurationTS4L3!A74 -> PM1643a 3.84TB Entry SAS 12Gb Hot Swap SSD | H53: =VLOOKUP($F53,TS4L4_HDD,13,FALSE) -> TS4L3-SSD-RI3,8TB | I53: 4 | K53: =O53 -> 4444 | O53: =IF(K42<>"",0,VLOOKUP($F53,TS4L4_HDD,10,FALSE))*I53 -> 4444 | P53: =VLOOKUP($F53,TS4L4_HDD,11,FALSE) -> 0 | Q53: =IF(K42<>"","",VLOOKUP($F53,TS4L4_HDD,12,FALSE)) -> L3N26
I54: =IF(AND(I55<>0,P7="NUT1"),"‼",IF(AND(I55<>0,P7="NUT2"),"‼",IF(AND(I55<>3,P7="VSAN1"),"‼",IF(AND(I55<>3,P7="VSAN2"),"‼","")))) -> 
F55: =ConfigurationTS4L3!A75 -> PM1645a 1.6TB Mainstream SAS 12Gb Hot Swap SSD | H55: =VLOOKUP($F55,TS4L4_HDD,13,FALSE) -> TS4L3-SSD-RI1,6TB | I55: 0 | K55: =O55 -> 0 | O55: =IF(K42<>"",0,VLOOKUP($F55,TS4L4_HDD,10,FALSE))*I55 -> 0 | P55: =VLOOKUP($F55,TS4L4_HDD,11,FALSE)*I55 -> 0 | Q55: =IF(K42<>"","",VLOOKUP($F55,TS4L4_HDD,12,FALSE)) -> L3N27
F57: =ConfigurationTS4L3!A76 -> ThinkSystem 3.2TB Mixed Use SAS 24Gb HS SSD | H57: =VLOOKUP($F57,TS4L4_HDD,13,FALSE) -> TS4L3-SSDSAS3.2TBMU | I57: 0 | K57: =O57 -> 0 | O57: =IF($K$42<>"",0,VLOOKUP($F57,TS4L4_HDD,10,FALSE))*I57 -> 0 | P57: =VLOOKUP($F57,TS4L4_HDD,11,FALSE) -> 0 | Q57: =IF($K$42<>"","",VLOOKUP($F57,TS4L4_HDD,12,FALSE)) -> L3N54
F59: =ConfigurationTS4L3!A77 -> ThinkSystem 6.4TB Mixed Use SAS 24Gb HS SSD | H59: =VLOOKUP($F59,TS4L4_HDD,13,FALSE) -> TS4L3-SSDSAS6.4TBMU | I59: 0 | K59: =O59 -> 0 | O59: =IF($K$42<>"",0,VLOOKUP($F59,TS4L4_HDD,10,FALSE))*I59 -> 0 | P59: =VLOOKUP($F59,TS4L4_HDD,11,FALSE) -> 0 | Q59: =IF($K$42<>"","",VLOOKUP($F59,TS4L4_HDD,12,FALSE)) -> L3N55
F61: =ConfigurationTS4L3!A78 -> ThinkSystem 7.68TB Read Intensive SAS 24Gb HS SSD | H61: =VLOOKUP($F61,TS4L4_HDD,13,FALSE) -> TS4L3-SSDSAS7.68TBRI | I61: 0 | K61: =O61 -> 0 | O61: =IF($K$42<>"",0,VLOOKUP($F61,TS4L4_HDD,10,FALSE))*I61 -> 0 | P61: =VLOOKUP($F61,TS4L4_HDD,11,FALSE) -> 0 | Q61: =IF($K$42<>"","",VLOOKUP($F61,TS4L4_HDD,12,FALSE)) -> L3N56
F63: =ConfigurationTS4L3!A79 -> ThinkSystem 15.36TB Read Intensive SAS 24Gb HS SSD | H63: =VLOOKUP($F63,TS4L4_HDD,13,FALSE) -> TS4L3-SSDSAS15.36TBRI | I63: 0 | K63: =O63 -> 0 | O63: =IF($K$42<>"",0,VLOOKUP($F63,TS4L4_HDD,10,FALSE))*I63 -> 0 | P63: =VLOOKUP($F63,TS4L4_HDD,11,FALSE) -> 0 | Q63: =IF($K$42<>"","",VLOOKUP($F63,TS4L4_HDD,12,FALSE)) -> L3N57
F65: =ConfigurationTS4L3!A80 -> ThinkSystem 3.84TB Read Intensive SATA 6Gb HS SSD | H65: =VLOOKUP($F65,TS4L4_HDD,13,FALSE) -> TS4L3-SSDSATA3.84TBRI | I65: 0 | K65: =O65 -> 0 | O65: =IF($K$42<>"",0,VLOOKUP($F65,TS4L4_HDD,10,FALSE))*I65 -> 0 | P65: =VLOOKUP($F65,TS4L4_HDD,11,FALSE) -> 0 | Q65: =IF($K$42<>"","",VLOOKUP($F65,TS4L4_HDD,12,FALSE)) -> L3N58
F67: =ConfigurationTS4L3!A81 -> ThinkSystem 7.68TB Read Intensive SATA 6Gb HS SSD | H67: =VLOOKUP($F67,TS4L4_HDD,13,FALSE) -> TS4L3-SSDSATA7.68TBRI | I67: 0 | K67: =O67 -> 0 | O67: =IF($K$42<>"",0,VLOOKUP($F67,TS4L4_HDD,10,FALSE))*I67 -> 0 | P67: =VLOOKUP($F67,TS4L4_HDD,11,FALSE)*I67 -> 0 | Q67: =IF($K$42<>"","",VLOOKUP($F67,TS4L4_HDD,12,FALSE)) -> L3N59
F69: =ConfigurationTS4L3!A82 -> ThinkSystem 20TB 7.2K SAS 12Gb Hot Swap 512e HDD | H69: =VLOOKUP($F69,TS4L4_HDD,13,FALSE) -> TS4L3-HDD_SAS20TB_HW | I69: 0 | K69: =O69 -> 0 | O69: =IF($K$42<>"",0,VLOOKUP($F69,TS4L4_HDD,10,FALSE))*I69 -> 0 | P69: =VLOOKUP($F69,TS4L4_HDD,11,FALSE) -> 0 | Q69: =IF($K$42<>"","",VLOOKUP($F69,TS4L4_HDD,12,FALSE)) -> L3N60
F71: =ConfigurationTS4L3!A83 -> ThinkSystem 16TB 7.2K SATA 6Gb Hot Swap 512e HDD | H71: =VLOOKUP($F71,TS4L4_HDD,13,FALSE) -> TS4L3-HDD_SATA16TB_HW | I71: 0 | K71: =O71 -> 0 | O71: =IF($K$42<>"",0,VLOOKUP($F71,TS4L4_HDD,10,FALSE))*I71 -> 0 | P71: =VLOOKUP($F71,TS4L4_HDD,11,FALSE) -> 0 | Q71: =IF($K$42<>"","",VLOOKUP($F71,TS4L4_HDD,12,FALSE)) -> L3N61
F73: =ConfigurationTS4L3!A84 -> ThinkSystem 3.5" 16TB 7.2K SAS 12Gb Hot Swap 512e HDD | H73: =VLOOKUP($F73,TS4L4_HDD,13,FALSE) -> TS4L3-HDD_SAS16TB_HW | I73: 0 | K73: =O73 -> 0 | O73: =IF($K$42<>"",0,VLOOKUP($F73,TS4L4_HDD,10,FALSE))*I73 -> 0 | P73: =VLOOKUP($F73,TS4L4_HDD,11,FALSE) -> 0 | Q73: =IF($K$42<>"","",VLOOKUP($F73,TS4L4_HDD,12,FALSE)) -> L3N62
F75: =ConfigurationTS4L3!A85 -> ThinkSystem 3.5" 800GB Write Intensive SAS 12Gb HS SSD | H75: =VLOOKUP($F75,TS4L4_HDD,13,FALSE) -> TS4L3-SSD_SAS800GB_WI | I75: 0 | K75: =O75 -> 0 | O75: =IF($K$42<>"",0,VLOOKUP($F75,TS4L4_HDD,10,FALSE))*I75 -> 0 | P75: =VLOOKUP($F75,TS4L4_HDD,11,FALSE) -> 0 | Q75: =IF($K$42<>"","",VLOOKUP($F75,TS4L4_HDD,12,FALSE)) -> L3N63
F77: =ConfigurationTS4L3!A86 -> ThinkSystem 3.5" 1.6TB Write Intensive SAS 12Gb HS SSD | H77: =VLOOKUP($F77,TS4L4_HDD,13,FALSE) -> TS4L3-SSD_SAS1.6TB_WI | I77: 0 | K77: =O77 -> 0 | O77: =IF($K$42<>"",0,VLOOKUP($F77,TS4L4_HDD,10,FALSE))*I77 -> 0 | P77: =VLOOKUP($F77,TS4L4_HDD,11,FALSE) -> 0 | Q77: =IF($K$42<>"","",VLOOKUP($F77,TS4L4_HDD,12,FALSE)) -> L3N64
F79: =ConfigurationTS4L3!A87 -> ThinkSystem 3.5" 3.2TB Write Intensive SAS 12Gb HS SSD | H79: =VLOOKUP($F79,TS4L4_HDD,13,FALSE) -> TS4L3-SSD_SAS3.2TB_WI | I79: 0 | K79: =O79 -> 0 | O79: =IF($K$42<>"",0,VLOOKUP($F79,TS4L4_HDD,10,FALSE))*I79 -> 0 | P79: =VLOOKUP($F79,TS4L4_HDD,11,FALSE)*I79 -> 0 | Q79: =IF($K$42<>"","",VLOOKUP($F79,TS4L4_HDD,12,FALSE)) -> L3N65
F81: Power Supply | G81: =IF(K81="","",R82) -> 
F82: 2 x 1800W (230V) Hot-Swap Power Supply
F84: Embedded Systems Management
F85: Xclarity Controller Enterpise
F89: PCI Slot 1 Processor 1 x16 PCIe Gen4 for HL/FH
F90: Broadcom 57416 10GBASE-T 2-Port PCIe Ethernet Adapter | H90: =VLOOKUP($F90,TS4L3_PCI,13,) -> TS4L3-BaseT | I90: =VLOOKUP($F90,TS4L3_PCI,7,FALSE) -> 1 | K90: =O90+P90 -> 213.16 | O90: =VLOOKUP($F90,TS4L3_PCI,10,FALSE) -> 213.16 | P90: =VLOOKUP($F90,TS4L3_PCI,11,FALSE) -> 0 | Q90: =VLOOKUP($F90,TS4L3_PCI,12,FALSE) -> L3N09
F92: PCI Slot 2 Processor 1 x8 PCIe Gen4 for HL/FH
F93: Broadcom 57416 10GBASE-T 2-Port PCIe Ethernet Adapter | H93: =VLOOKUP($F93,TS4L3_PCI,13,FALSE) -> TS4L3-BaseT | I93: =VLOOKUP($F93,TS4L3_PCI,7,FALSE) -> 1 | K93: =O93+P93 -> 213.16 | O93: =VLOOKUP($F93,TS4L3_PCI,10,FALSE) -> 213.16 | P93: =VLOOKUP($F93,TS4L3_PCI,11,FALSE) -> 0 | Q93: =VLOOKUP($F93,TS4L3_PCI,12,FALSE) -> L3N09
F95: PCI Slot 3 Processor 1 x8 PCIe Gen4 for HL/FH
F96: Slot non Utilizzato | H96: =VLOOKUP($F96,TS4L3_PCI,13,FALSE) ->  | I96: =VLOOKUP($F96,TS4L3_PCI,7,FALSE) ->  | K96: =O96+P96 -> 0 | O96: =VLOOKUP($F96,TS4L3_PCI,10,FALSE) -> 0 | P96: =VLOOKUP($F96,TS4L3_PCI,11,FALSE) -> 0 | Q96: =VLOOKUP($F96,TS4L3_PCI,12,FALSE) -> 
F98: PCI Slot 4 Processor 2 x8 PCIe Gen4 for HL/FH | G98: =IF($S$88="SW","GPU Slot",IF($S$88="DW","GPU Slot","")) -> 
F99: Slot non Utilizzato | H99: =VLOOKUP($F99,TS4L3_PCI,13,FALSE) ->  | I99: =VLOOKUP($F99,TS4L3_PCI,7,FALSE) ->  | K99: =O99+P99 -> 0 | O99: =VLOOKUP($F99,TS4L3_PCI,10,FALSE) -> 0 | P99: =VLOOKUP($F99,TS4L3_PCI,11,FALSE) -> 0 | Q99: =VLOOKUP($F99,TS4L3_PCI,12,FALSE) -> 
F101: PCI Slot 5 Processor 2 x8 PCIe Gen4 for HL/FH | G101: =IF($S$88="SW","GPU Slot","") -> 
F102: Slot non Utilizzato | H102: =VLOOKUP($F102,TS4L3_PCI,13,FALSE) ->  | I102: =VLOOKUP($F102,TS4L3_PCI,7,FALSE) ->  | K102: =O102+P102 -> 0 | O102: =VLOOKUP($F102,TS4L3_PCI,10,FALSE) -> 0 | P102: =VLOOKUP($F102,TS4L3_PCI,11,FALSE) -> 0 | Q102: =VLOOKUP($F102,TS4L3_PCI,12,FALSE) -> 
F104: PCI Slot 6 Processor 2 x16 PCIe Gen4 for HL/LP
F105: Slot non Utilizzato | H105: =VLOOKUP($F105,TS4L3_PCI,13,FALSE) ->  | I105: =VLOOKUP($F105,TS4L3_PCI,7,FALSE) ->  | K105: =O105+P105 -> 0 | O105: =VLOOKUP($F105,TS4L3_PCI,10,FALSE) -> 0 | P105: =VLOOKUP($F105,TS4L3_PCI,11,FALSE) -> 0 | Q105: =VLOOKUP($F105,TS4L3_PCI,12,FALSE) -> 
F107: PCI Slot 7 Processor 2 x8 PCIe Gen4 for HL/FH | G107: =IF($S$88="SW","GPU Slot","") -> 
F108: Slot non Utilizzato | H108: =VLOOKUP($F108,TS4L3_PCI,13,FALSE) ->  | I108: =VLOOKUP($F108,TS4L3_PCI,7,FALSE) ->  | K108: =O108+P108 -> 0 | O108: =VLOOKUP($F108,TS4L3_PCI,10,FALSE) -> 0 | P108: =VLOOKUP($F108,TS4L3_PCI,11,FALSE) -> 0 | Q108: =VLOOKUP($F108,TS4L3_PCI,12,FALSE) -> 
F110: PCI Slot 8 Processor 2 x8 PCIe Gen4 for HL/FH | G110: =IF($S$88="SW","GPU Slot",IF($S$88="DW","GPU Slot","")) -> 
F111: Slot non Utilizzato | H111: =VLOOKUP($F111,TS4L3_PCI,13,FALSE) ->  | I111: =VLOOKUP($F111,TS4L3_PCI,7,FALSE) ->  | K111: =O111+P111 -> 0 | O111: =VLOOKUP($F111,TS4L3_PCI,10,FALSE) -> 0 | P111: =VLOOKUP($F111,TS4L3_PCI,11,FALSE) -> 0 | Q111: =VLOOKUP($F111,TS4L3_PCI,12,FALSE) -> 
F113: Garanzia
F114: Manutenzione in garanzia (36 mesi) | H114: =VLOOKUP($F114,TS4L4_WARR,13,FALSE) ->  | I114: =VLOOKUP($F114,TS4L4_WARR,7,FALSE) ->  | K114: =O114 -> 0 | O114: =VLOOKUP($F114,TS4L4_WARR,10,FALSE) -> 0 | P114: =VLOOKUP($F114,TS4L4_WARR,11,FALSE) -> 0 | Q114: =VLOOKUP($F114,TS4L4_WARR,12,FALSE) -> 
F116: Hard Disk Retention | I116: =IF(AND($F$117="Hard Disk Retention 60 mesi",$I$114=""),"Selezionare Estensione di Garanzia 24 Mesi",IF(AND(F114="Estensione della Garanzia Per ulteriori 24 Mesi",F117="Hard Disk Retention 36 mesi"),"Selezionare Hard Disk Retention 60 Mesi","")) -> 
F117: No Hard Disk Retention | H117: =VLOOKUP(F117,TS4L4_HDDRET,13,FALSE) ->  | I117: =IF(F117="","",IF(F117="No Hard Disk Retention","",VLOOKUP(F117,TS4L4_HDDRET,7,FALSE))) ->  | K117: =O117 -> 0 | O117: =IF(I116<>"","",VLOOKUP(F117,TS4L4_HDDRET,10,FALSE)) -> 0 | P117: =IFERROR(U117,VLOOKUP(F117,TS4L4_HDDRET,11,FALSE)) -> 0 | Q117: =IF(I116<>"","",VLOOKUP(F117,TS4L4_HDDRET,12,FALSE)) -> 
H119: Configurazione | I119: =SUM(O11:O117)*I8 -> 0 | O119: =IF(AND($I$117=1,$I$114=""),"Selezionare Estensione di Garanzia 24 Mesi","") -> 
H120: 0.2 | I120: =SUM(P11:P117)*I8 -> 0
H121: Totale | I121: =SUM(I119:I120) -> 0
F123: NOTE

Sheet Lotto3_SR650_1
F2: Convenzione Tecnologie Server 4 - Lotto 3 | H2: =IF(R111>1,"ERRORE NELLA CONFIGURAZIONE","") ->  | K2: =IF(Riepilogo_Ordine!K98>Riepilogo_Ordine!G98,"Superata Quota 20%","") ->  | AD2: SalvaPDF
K3: Articoli 20% Totali | P3: Check CPU | Q3: Check RAM | R3: Check Dischi | S3: Check PCI | T3: Check Win | U3: Check Gar | V3: Check Tot | AD3: =IF(I8>0,1,0) -> 0
H4: =IF(V4>1,"Errori nella Configurazione",IF(P4>0,"Errore nella Selezione della CPU",IF(Q4>0,"Errore Nella Selezione della RAM",IF(R4>0,"Errore Nella selezione dei Dischi",IF(S4>0,"Errore nella Selezione Slot PCI",IF(T4>0,"Errore nella Selezione Licenze Windows",IF(U4>0,"Errore nella Selezione Estensione di Garanzia",""))))))) ->  | I4: Totale Altre Opzioni | K4: =Riepilogo_Ordine!K98 -> 0 | P4: =IF(I22<>"",1,0) -> 0 | Q4: =IF(I25<>"",1,0) -> 0 | R4: =IF(K42<>"",1,0) -> 0 | S4: =IF(I89<>"",1,0) -> 0 | T4: =IF(I27<>"",1,0) -> 0 | U4: =IF(I116<>"",1,0) -> 0 | V4: =SUM(P4:U4) -> 0
I5: =Altre_Opzioni!H10 -> 0 | K5: Quota Residua 20 %
H6: Guida alla Convenzione | I6: Totale Configurazione | K6: =Riepilogo_Ordine!G99 -> 0
F7: =IF(Riepilogo_Ordine!P8>0,"Compilare i Dati nel Foglio Riepilogo per Stampare in PDF","") -> Compilare i Dati nel Foglio Riepilogo per Stampare in PDF | I7: =IF(H4<>"",0,I119+I120) -> 0 | K7: Totale Ordine Iva Esclusa
F8: LENOVO THINKSYSTEM SR650 V2 | H8: Quantità Server | I8: 0 | K8: =Riepilogo_Ordine!K99 -> 0
F10: Base | S10: Lenovo ThinkSystem SR650 V2 Server
F11: Lenovo ThinkSystem SR650 V2 Server | H11: =IF($I$8=0,"",VLOOKUP(F11,TS4L4_Base,13,FALSE)) ->  | I11: =IF($I$8>0,1,"") ->  | K11: =O11 -> 2050.54 | O11: =VLOOKUP($F$11,TS4L4_Base,10,FALSE) -> 2050.54 | Q11: =VLOOKUP($F11,TS4L4_Base,12,FALSE) -> L3N01 | W11: =IF(F11=ConfigurationTS4L3!A15,"NutanixA",IF(Lotto3_SR650_1!F11=ConfigurationTS4L3!#REF!,"NutanixB",IF(Lotto3_SR650_1!F11=ConfigurationTS4L3!A16,"NutanixC",IF(Lotto3_SR650_1!F11=ConfigurationTS4L3!A17,"VsanA",IF(Lotto3_SR650_1!F11=ConfigurationTS4L3!#REF!,"VsanB",IF(Lotto3_SR650_1!F11=ConfigurationTS4L3!A18,"VsanC")))))) -> 
R15: =IF(T11<>"","vsan","") ->  | S15: =IF(AND(T15="GP1",F26>512),"Selezionare RAM Corretta","") -> 
F16: Chassis Configuration | H16: =IF($S$88="SW","MAX 4 GPU",IF($S$88="DW","MAX 2 GPU","")) -> 
F17: =IF(I23=1,VLOOKUP($F$11,TS4L4_Chassis,3,FALSE),VLOOKUP($F$11,TS4L4_Chassis,2,FALSE)) -> Chassis fino a 12 x 3.5 Hard Drives | H17: =IF($I$23=1,VLOOKUP($F$11,TS4L4_Chassis,11,FALSE),VLOOKUP($F$11,TS4L4_Chassis,9,FALSE)) -> TS4L3-Opz2CPU | I17: =IF($I$8=0,0,VLOOKUP(F11,TS4L4_Chassis,7,0)) -> 0 | K17: =O17+P17 -> 0 | P17: =VLOOKUP($F$11,TS4L4_Chassis,10,FALSE)*I17 -> 0 | Q17: =IF(I17=0,"",(VLOOKUP($F11,TS4L4_Chassis,12,FALSE))) ->  | T17: 1
F19: Processor
F20: Intel Xeon Silver 4310 12C 120W 2.1GHz Processor | O20: =IF(I17=1,VLOOKUP($F$20,TS4L4_CPU,11,FALSE),VLOOKUP($F$20,TS4L4_CPU,11,FALSE)) -> 0 | P20: =IF(I17=1,VLOOKUP($F$20,TS4L4_CPU,11,FALSE),VLOOKUP($F$20,TS4L4_CPU,11,FALSE)) -> 0 | Q20: =IF(P20=0,0,VLOOKUP($F20,TS4L4_CPU,12,FALSE)) -> 0
F22: Additional Processor
F23: Intel Xeon Silver 4310 12C 120W 2.1GHz Processor | H23: =IF(I17=1,VLOOKUP($F$20,TS4L4_CPU,13,FALSE),VLOOKUP($F$23,TS4L4_CPU,13,FALSE)) -> TS4L3-CPU | I23: =IF(I17=1,VLOOKUP($F$23,TS4L4_CPU,7,FALSE),VLOOKUP($F$23,TS4L4_CPU,7,FALSE)) -> 1 | K23: =O23 -> 623.57 | O23: =IF(I17=1,VLOOKUP($F$20,TS4L4_CPU,10,FALSE),VLOOKUP($F$23,TS4L4_CPU,10,FALSE)) -> 623.57 | P23: =IF(I17=1,VLOOKUP($F$20,TS4L4_CPU,11,FALSE),VLOOKUP($F$23,TS4L4_CPU,11,FALSE)) -> 0 | Q23: =IF(I17=1,VLOOKUP(F20,TS4L4_CPU,12,FALSE),VLOOKUP($F23,TS4L4_CPU,12,FALSE)) -> L3N02 | S23: =IF(I23=1,"Intel Xeon Silver 4310 12C 120W 2.1GHz Processor",F23) -> Intel Xeon Silver 4310 12C 120W 2.1GHz Processor
F25: Memory Capacity (GB) | H25: ↓ Selezionare Taglio RAM ↓ | I25: =IF(AND(F26>512,I23<>1,H26="TS4L3-RAM32"),"Selezionare RAM 64 GB o Aggiungere CPU",IF(AND(F26>1024,I23<>1,H26="TS4L3-RAM64"),"Selezionare RAM Corretta o Aggiungere CPU",IF(AND(F26>1024,I23=1,H26="TS4L3-RAM32"),"Selezionare RAM Corretta",IF(AND(F26>512,I23="",H26="TS4L3-RAM32"),"Selezionare RAM Corretta o Aggiungere CPU",IF(AND(F26<128,I23=1,H26="TS4L3-RAM64"),"Selezionare RAM Corretta",""))))) -> 
F26: 128 | H26: TS4L3-RAM64 | I26: =IF(I25<>"",0,T26) -> 1 | K26: =O26 -> 478.29 | O26: =U26 -> 478.29 | Q26: =IF(I25<>"",0,V26) -> L3N04 | S26: =IF(I25<>"",0,IF(AND(H26="TS4L3-RAM32",I23=""),VLOOKUP($F$26,TS4L3_RAM1CPU32GB,13,FALSE),IF(AND(H26="TS4L3-RAM32",I23=1),VLOOKUP($F$26,TS4L3_RAM2CPU32GB,13,FALSE),IF(AND(H26="TS4L3-RAM64",I23=""),VLOOKUP($F$26,TS4L3_RAM1CPU64GB,13,FALSE),IF(AND(H26="TS4L3-RAM64",I23=1),VLOOKUP($F$26,TS4L3_RAM2CPU64GB,13,FALSE),""))))) -> TS4L3-RAM64 | T26: =IF(AND(H26="TS4L3-RAM32",I23=""),VLOOKUP($F$26,TS4L3_RAM1CPU32GB,7,FALSE),IF(AND(H26="TS4L3-RAM32",I23=1),VLOOKUP($F$26,TS4L3_RAM2CPU32GB,7,FALSE),IF(AND(H26="TS4L3-RAM64",I23=""),VLOOKUP($F$26,TS4L3_RAM1CPU64GB,7,FALSE),IF(AND(H26="TS4L3-RAM64",I23=1),VLOOKUP($F$26,TS4L3_RAM2CPU64GB,7,FALSE),"")))) -> 1 | U26: =IF(I25<>"",0,IF(AND(H26="TS4L3-RAM32",I23=""),VLOOKUP($F$26,TS4L3_RAM1CPU32GB,10,FALSE),IF(AND(H26="TS4L3-RAM32",I23=1),VLOOKUP($F$26,TS4L3_RAM2CPU32GB,10,FALSE),IF(AND(H26="TS4L3-RAM64",I23=""),VLOOKUP($F$26,TS4L3_RAM1CPU64GB,10,FALSE),IF(AND(H26="TS4L3-RAM64",I23=1),VLOOKUP($F$26,TS4L3_RAM2CPU64GB,10,FALSE),""))))) -> 478.29 | V26: =IF(I25<>"",0,IF(AND(H26="TS4L3-RAM32",I23=""),VLOOKUP($F$26,TS4L3_RAM1CPU32GB,12,FALSE),IF(AND(H26="TS4L3-RAM32",I23=1),VLOOKUP($F$26,TS4L3_RAM2CPU32GB,12,FALSE),IF(AND(H26="TS4L3-RAM64",I23=""),VLOOKUP($F$26,TS4L3_RAM1CPU64GB,12,FALSE),IF(AND(H26="TS4L3-RAM64",I23=1),VLOOKUP($F$26,TS4L3_RAM2CPU64GB,12,FALSE),""))))) -> L3N04
F28: Operating System STANDARD
F29: No Operating System | H29: =VLOOKUP($F$29,TS4L3_OS,13,FALSE) ->  | I29: 0 | K29: =O29 -> 0 | O29: =VLOOKUP($F$29,TS4L3_OS,10,FALSE)*I29 -> 0 | P29: =VLOOKUP($F$29,TS4L3_OS,11,FALSE) -> 0 | Q29: =VLOOKUP($F29,TS4L3_OS,12,FALSE) ->  | S29: =IF(AND(F23="No Additional Processor",I29>=3),TRUE,FALSE) -> FALSE
F30: Windows Server 2022 Standard Edition, Add License,2CORE | H30: =VLOOKUP($F$30,TS4L3_OS,13,FALSE) -> TS4L3-WINSRV2C | I30: 0 | K30: =O30 -> 0 | O30: =VLOOKUP($F$30,TS4L3_OS,10,FALSE)*I30 -> 0 | P30: =VLOOKUP($F$29,TS4L3_OS,11,FALSE) -> 0 | Q30: =VLOOKUP($F30,TS4L3_OS,12,FALSE) -> L3N21 | S30: =IF(AND(F23<>"No Additional Processor",I29>=3),TRUE,FALSE) -> FALSE
F32: Operating System Device CAL / User CAL
F33: 1-pack of Windows Server 2022/2019 Device CALs (STD or DC) | H33: =VLOOKUP($F$33,TS4L3_OS,13,FALSE) -> TS4L3-WINDEVCAL | I33: 0 | K33: =O33 -> 0 | O33: =VLOOKUP($F$33,TS4L3_OS,10,FALSE)*I33 -> 0 | P33: =VLOOKUP($F$29,TS4L3_OS,11,FALSE) -> 0 | Q33: =VLOOKUP($F33,TS4L3_OS,12,FALSE) -> L3N19
F34: 1-pack of Windows Server 2022/2019 User CALs (STD or DC) | H34: =VLOOKUP($F$34,TS4L3_OS,13,FALSE) -> TS4L3-WINUSRCAL | I34: 0 | K34: =O34 -> 0 | O34: =VLOOKUP($F$34,TS4L3_OS,10,FALSE)*I34 -> 0 | P34: =VLOOKUP($F$29,TS4L3_OS,11,FALSE) -> 0 | Q34: =VLOOKUP($F34,TS4L3_OS,12,FALSE) -> L3N20
F36: Disk Controller
F37: =IF(I17=0,ConfigurationTS4L3!A98,ConfigurationTS4L3!A98) -> RAID 9350-16i 4GB Flash PCIe 12Gb Adapter | H37: =VLOOKUP(F37,TS4L3_CTRL,13,FALSE) -> TS4L3-DiskController | I37: =VLOOKUP($F37,TS4L3_CTRL,7,FALSE) ->  | K37: =P37 -> 0 | O37: =IF(F37=ConfigurationTS4L3!A48,0,VLOOKUP($F37,TS4L4_CRTL,10,FALSE)) -> 0 | P37: =IF(I17=1,0,VLOOKUP($F37,TS4L4_CRTL,11,FALSE)) -> 0 | Q37: ="" ->  | S37: =IF(F11="PowerEdge R7525 Server (vSAN Ready)","Vsan","") -> 
F39: Abilitazione RAID su dischi NVMe | H39: =IF(F40="NO RAID","Il RAID sui dischi NVMe di base non è abilitato","") -> 
F40: Intel VROC (VMD NVMe RAID) Premium | H40: =VLOOKUP(F40,TS4L3_RAID,13,FALSE) -> TS4L3-VROC | I40: =VLOOKUP($F40,TS4L3_RAID,7,FALSE) -> 1 | K40: =P40 -> 380 | O40: =VLOOKUP($F40,TS4L3_RAID,10,FALSE) -> 0 | P40: =VLOOKUP($F40,TS4L3_RAID,11,FALSE) -> 380 | Q40: =VLOOKUP($F40,TS4L3_RAID,12,FALSE) -> L3N52 | S40: =IF(F17="PowerEdge R7525 Server (vSAN Ready)","Vsan","") -> 
F42: Hard Drivers Bays n° 12 + 2 Dischi nVME di Boot | H42: Usati | I42: Disponibili | K42: =IF(I43<0,"Troppi Dischi","") -> 
H43: =SUM(I45:I79) -> 0 | I43: =12-H43 -> 12
F45: =ConfigurationTS4L3!A70 -> 8TB 7.2K SAS 12Gb Hot Swap 512e HDD | H45: =VLOOKUP($F45,TS4L4_HDD,13,FALSE) -> TS4L3-HDD8TB | I45: 0 | K45: =O45 -> 0 | O45: =IF(K42<>"",0,VLOOKUP($F45,TS4L4_HDD,10,FALSE))*I45 -> 0 | P45: =VLOOKUP($F45,TS4L4_HDD,11,FALSE) -> 0 | Q45: =IF(K42<>"","",VLOOKUP($F45,TS4L4_HDD,12,FALSE)) -> L3N11
F47: =ConfigurationTS4L3!A71 -> 2TB 7.2K SAS 12Gb Hot Swap 512n HDD | H47: =VLOOKUP($F47,TS4L4_HDD,13,FALSE) -> TS4L3-HDD2TB | I47: 0 | K47: =O47 -> 0 | O47: =IF(K42<>"",0,VLOOKUP($F47,TS4L4_HDD,10,FALSE))*I47 -> 0 | P47: =VLOOKUP($F47,TS4L4_HDD,11,FALSE) -> 0 | Q47: =IF(K42<>"","",VLOOKUP($F47,TS4L4_HDD,12,FALSE)) -> L3N12
F49: =ConfigurationTS4L3!A72 -> 1TB 7.2K SAS 12Gb Hot Swap 512n HDD | H49: =VLOOKUP($F49,TS4L4_HDD,13,FALSE) -> TS4L3-HDD1TB | I49: 0 | K49: =O49 -> 0 | O49: =IF(K42<>"",0,VLOOKUP($F49,TS4L4_HDD,10,FALSE))*I49 -> 0 | P49: =VLOOKUP($F49,TS4L4_HDD,11,FALSE) -> 0 | Q49: =IF(K42<>"","",VLOOKUP($F49,TS4L4_HDD,12,FALSE)) -> L3N13
F51: =ConfigurationTS4L3!A73 -> 12TB 7.2K SAS 12Gb Hot Swap 512e HDD | H51: =VLOOKUP($F51,TS4L4_HDD,13,FALSE) -> TS4L3-HDD12TB | I51: 0 | K51: =O51 -> 0 | O51: =IF(K42<>"",0,VLOOKUP($F51,TS4L4_HDD,10,FALSE))*I51 -> 0 | P51: =VLOOKUP($F51,TS4L4_HDD,11,FALSE) -> 0 | Q51: =IF(K42<>"","",VLOOKUP($F51,TS4L4_HDD,12,FALSE)) -> L3N14
F53: =ConfigurationTS4L3!A74 -> PM1643a 3.84TB Entry SAS 12Gb Hot Swap SSD | H53: =VLOOKUP($F53,TS4L4_HDD,13,FALSE) -> TS4L3-SSD-RI3,8TB | I53: 0 | K53: =O53 -> 0 | O53: =IF(K42<>"",0,VLOOKUP($F53,TS4L4_HDD,10,FALSE))*I53 -> 0 | P53: =VLOOKUP($F53,TS4L4_HDD,11,FALSE) -> 0 | Q53: =IF(K42<>"","",VLOOKUP($F53,TS4L4_HDD,12,FALSE)) -> L3N26
F55: =ConfigurationTS4L3!A75 -> PM1645a 1.6TB Mainstream SAS 12Gb Hot Swap SSD | H55: =VLOOKUP($F55,TS4L4_HDD,13,FALSE) -> TS4L3-SSD-RI1,6TB | I55: 0 | K55: =O55 -> 0 | O55: =IF(K42<>"",0,VLOOKUP($F55,TS4L4_HDD,10,FALSE))*I55 -> 0 | P55: =VLOOKUP($F55,TS4L4_HDD,11,FALSE)*I55 -> 0 | Q55: =IF(K42<>"","",VLOOKUP($F55,TS4L4_HDD,12,FALSE)) -> L3N27
F57: =ConfigurationTS4L3!A76 -> ThinkSystem 3.2TB Mixed Use SAS 24Gb HS SSD | H57: =VLOOKUP($F57,TS4L4_HDD,13,FALSE) -> TS4L3-SSDSAS3.2TBMU | I57: 0 | K57: =O57 -> 0 | O57: =IF($K$42<>"",0,VLOOKUP($F57,TS4L4_HDD,10,FALSE))*I57 -> 0 | P57: =VLOOKUP($F57,TS4L4_HDD,11,FALSE) -> 0 | Q57: =IF($K$42<>"","",VLOOKUP($F57,TS4L4_HDD,12,FALSE)) -> L3N54
F59: =ConfigurationTS4L3!A77 -> ThinkSystem 6.4TB Mixed Use SAS 24Gb HS SSD | H59: =VLOOKUP($F59,TS4L4_HDD,13,FALSE) -> TS4L3-SSDSAS6.4TBMU | I59: 0 | K59: =O59 -> 0 | O59: =IF($K$42<>"",0,VLOOKUP($F59,TS4L4_HDD,10,FALSE))*I59 -> 0 | P59: =VLOOKUP($F59,TS4L4_HDD,11,FALSE) -> 0 | Q59: =IF($K$42<>"","",VLOOKUP($F59,TS4L4_HDD,12,FALSE)) -> L3N55
F61: =ConfigurationTS4L3!A78 -> ThinkSystem 7.68TB Read Intensive SAS 24Gb HS SSD | H61: =VLOOKUP($F61,TS4L4_HDD,13,FALSE) -> TS4L3-SSDSAS7.68TBRI | I61: 0 | K61: =O61 -> 0 | O61: =IF($K$42<>"",0,VLOOKUP($F61,TS4L4_HDD,10,FALSE))*I61 -> 0 | P61: =VLOOKUP($F61,TS4L4_HDD,11,FALSE) -> 0 | Q61: =IF($K$42<>"","",VLOOKUP($F61,TS4L4_HDD,12,FALSE)) -> L3N56
F63: =ConfigurationTS4L3!A79 -> ThinkSystem 15.36TB Read Intensive SAS 24Gb HS SSD | H63: =VLOOKUP($F63,TS4L4_HDD,13,FALSE) -> TS4L3-SSDSAS15.36TBRI | I63: 0 | K63: =O63 -> 0 | O63: =IF($K$42<>"",0,VLOOKUP($F63,TS4L4_HDD,10,FALSE))*I63 -> 0 | P63: =VLOOKUP($F63,TS4L4_HDD,11,FALSE) -> 0 | Q63: =IF($K$42<>"","",VLOOKUP($F63,TS4L4_HDD,12,FALSE)) -> L3N57
F65: =ConfigurationTS4L3!A80 -> ThinkSystem 3.84TB Read Intensive SATA 6Gb HS SSD | H65: =VLOOKUP($F65,TS4L4_HDD,13,FALSE) -> TS4L3-SSDSATA3.84TBRI | I65: 0 | K65: =O65 -> 0 | O65: =IF($K$42<>"",0,VLOOKUP($F65,TS4L4_HDD,10,FALSE))*I65 -> 0 | P65: =VLOOKUP($F65,TS4L4_HDD,11,FALSE) -> 0 | Q65: =IF($K$42<>"","",VLOOKUP($F65,TS4L4_HDD,12,FALSE)) -> L3N58
F67: =ConfigurationTS4L3!A81 -> ThinkSystem 7.68TB Read Intensive SATA 6Gb HS SSD | H67: =VLOOKUP($F67,TS4L4_HDD,13,FALSE) -> TS4L3-SSDSATA7.68TBRI | I67: 0 | K67: =O67 -> 0 | O67: =IF($K$42<>"",0,VLOOKUP($F67,TS4L4_HDD,10,FALSE))*I67 -> 0 | P67: =VLOOKUP($F67,TS4L4_HDD,11,FALSE)*I67 -> 0 | Q67: =IF($K$42<>"","",VLOOKUP($F67,TS4L4_HDD,12,FALSE)) -> L3N59
F69: =ConfigurationTS4L3!A82 -> ThinkSystem 20TB 7.2K SAS 12Gb Hot Swap 512e HDD | H69: =VLOOKUP($F69,TS4L4_HDD,13,FALSE) -> TS4L3-HDD_SAS20TB_HW | I69: 0 | K69: =O69 -> 0 | O69: =IF($K$42<>"",0,VLOOKUP($F69,TS4L4_HDD,10,FALSE))*I69 -> 0 | P69: =VLOOKUP($F69,TS4L4_HDD,11,FALSE) -> 0 | Q69: =IF($K$42<>"","",VLOOKUP($F69,TS4L4_HDD,12,FALSE)) -> L3N60
F71: =ConfigurationTS4L3!A83 -> ThinkSystem 16TB 7.2K SATA 6Gb Hot Swap 512e HDD | H71: =VLOOKUP($F71,TS4L4_HDD,13,FALSE) -> TS4L3-HDD_SATA16TB_HW | I71: 0 | K71: =O71 -> 0 | O71: =IF($K$42<>"",0,VLOOKUP($F71,TS4L4_HDD,10,FALSE))*I71 -> 0 | P71: =VLOOKUP($F71,TS4L4_HDD,11,FALSE) -> 0 | Q71: =IF($K$42<>"","",VLOOKUP($F71,TS4L4_HDD,12,FALSE)) -> L3N61
F73: =ConfigurationTS4L3!A84 -> ThinkSystem 3.5" 16TB 7.2K SAS 12Gb Hot Swap 512e HDD | H73: =VLOOKUP($F73,TS4L4_HDD,13,FALSE) -> TS4L3-HDD_SAS16TB_HW | I73: 0 | K73: =O73 -> 0 | O73: =IF($K$42<>"",0,VLOOKUP($F73,TS4L4_HDD,10,FALSE))*I73 -> 0 | P73: =VLOOKUP($F73,TS4L4_HDD,11,FALSE) -> 0 | Q73: =IF($K$42<>"","",VLOOKUP($F73,TS4L4_HDD,12,FALSE)) -> L3N62
F75: =ConfigurationTS4L3!A85 -> ThinkSystem 3.5" 800GB Write Intensive SAS 12Gb HS SSD | H75: =VLOOKUP($F75,TS4L4_HDD,13,FALSE) -> TS4L3-SSD_SAS800GB_WI | I75: 0 | K75: =O75 -> 0 | O75: =IF($K$42<>"",0,VLOOKUP($F75,TS4L4_HDD,10,FALSE))*I75 -> 0 | P75: =VLOOKUP($F75,TS4L4_HDD,11,FALSE) -> 0 | Q75: =IF($K$42<>"","",VLOOKUP($F75,TS4L4_HDD,12,FALSE)) -> L3N63
F77: =ConfigurationTS4L3!A86 -> ThinkSystem 3.5" 1.6TB Write Intensive SAS 12Gb HS SSD | H77: =VLOOKUP($F77,TS4L4_HDD,13,FALSE) -> TS4L3-SSD_SAS1.6TB_WI | I77: 0 | K77: =O77 -> 0 | O77: =IF($K$42<>"",0,VLOOKUP($F77,TS4L4_HDD,10,FALSE))*I77 -> 0 | P77: =VLOOKUP($F77,TS4L4_HDD,11,FALSE) -> 0 | Q77: =IF($K$42<>"","",VLOOKUP($F77,TS4L4_HDD,12,FALSE)) -> L3N64
F79: =ConfigurationTS4L3!A87 -> ThinkSystem 3.5" 3.2TB Write Intensive SAS 12Gb HS SSD | H79: =VLOOKUP($F79,TS4L4_HDD,13,FALSE) -> TS4L3-SSD_SAS3.2TB_WI | I79: 0 | K79: =O79 -> 0 | O79: =IF($K$42<>"",0,VLOOKUP($F79,TS4L4_HDD,10,FALSE))*I79 -> 0 | P79: =VLOOKUP($F79,TS4L4_HDD,11,FALSE)*I79 -> 0 | Q79: =IF($K$42<>"","",VLOOKUP($F79,TS4L4_HDD,12,FALSE)) -> L3N65
F81: Power Supply | G81: =IF(K81="","",R82) -> 
F82: =ConfigurationTS4L3!A94 -> 2 x 750W(230V/115V) Platinum Hot-Swap Power Supply v2 | O82: =VLOOKUP($F82,TS4L4_PSU,10,FALSE) -> 0 | P82: =VLOOKUP($F82,TS4L4_PSU,11,FALSE) -> 0 | Q82: =IF(I82<>1,"",VLOOKUP($F82,TS4L4_PSU,12,FALSE)) -> 
F84: Embedded Systems Management
F85: Xclarity Controller Enterpise
F89: PCI Slot 1 Processor 1 x16 PCIe Gen4 for HL/FH
F90: RISERVATO SCHEDA SAS HBA ThinkSystem 4350 | H90: =VLOOKUP($F90,TS4L3_PCI,13,) ->  | I90: =VLOOKUP($F90,TS4L3_PCI,7,FALSE) ->  | K90: =O90+P90 -> 0 | O90: =VLOOKUP($F90,TS4L3_PCI,10,FALSE) -> 0 | P90: =VLOOKUP($F90,TS4L3_PCI,11,FALSE) -> 0 | Q90: =VLOOKUP($F90,TS4L3_PCI,12,FALSE) -> 
F92: PCI Slot 2 Processor 1 x8 PCIe Gen4 for HL/FH
F93: Slot non Utilizzato | H93: =VLOOKUP($F93,TS4L3_PCI,13,FALSE) ->  | I93: =VLOOKUP($F93,TS4L3_PCI,7,FALSE) ->  | K93: =O93+P93 -> 0 | O93: =VLOOKUP($F93,TS4L3_PCI,10,FALSE) -> 0 | P93: =VLOOKUP($F93,TS4L3_PCI,11,FALSE) -> 0 | Q93: =VLOOKUP($F93,TS4L3_PCI,12,FALSE) -> 
F95: PCI Slot 3 Processor 1 x8 PCIe Gen4 for HL/FH
F96: Slot non Utilizzato | H96: =VLOOKUP($F96,TS4L3_PCI,13,FALSE) ->  | I96: =VLOOKUP($F96,TS4L3_PCI,7,FALSE) ->  | K96: =O96+P96 -> 0 | O96: =VLOOKUP($F96,TS4L3_PCI,10,FALSE) -> 0 | P96: =VLOOKUP($F96,TS4L3_PCI,11,FALSE) -> 0 | Q96: =VLOOKUP($F96,TS4L3_PCI,12,FALSE) -> 
F98: PCI Slot 4 Processor 2 x8 PCIe Gen4 for HL/FH | G98: =IF($S$88="SW","GPU Slot",IF($S$88="DW","GPU Slot","")) -> 
F99: Slot non Utilizzato | H99: =VLOOKUP($F99,TS4L3_PCI,13,FALSE) ->  | I99: =VLOOKUP($F99,TS4L3_PCI,7,FALSE) ->  | K99: =O99+P99 -> 0 | O99: =VLOOKUP($F99,TS4L3_PCI,10,FALSE) -> 0 | P99: =VLOOKUP($F99,TS4L3_PCI,11,FALSE) -> 0 | Q99: =VLOOKUP($F99,TS4L3_PCI,12,FALSE) -> 
F101: PCI Slot 5 Processor 2 x8 PCIe Gen4 for HL/FH | G101: =IF($S$88="SW","GPU Slot","") -> 
F102: Slot non Utilizzato | H102: =VLOOKUP($F102,TS4L3_PCI,13,FALSE) ->  | I102: =VLOOKUP($F102,TS4L3_PCI,7,FALSE) ->  | K102: =O102+P102 -> 0 | O102: =VLOOKUP($F102,TS4L3_PCI,10,FALSE) -> 0 | P102: =VLOOKUP($F102,TS4L3_PCI,11,FALSE) -> 0 | Q102: =VLOOKUP($F102,TS4L3_PCI,12,FALSE) -> 
F104: PCI Slot 6 Processor 2 x16 PCIe Gen4 for HL/LP
F105: Slot non Utilizzato | H105: =VLOOKUP($F105,TS4L3_PCI,13,FALSE) ->  | I105: =VLOOKUP($F105,TS4L3_PCI,7,FALSE) ->  | K105: =O105+P105 -> 0 | O105: =VLOOKUP($F105,TS4L3_PCI,10,FALSE) -> 0 | P105: =VLOOKUP($F105,TS4L3_PCI,11,FALSE) -> 0 | Q105: =VLOOKUP($F105,TS4L3_PCI,12,FALSE) -> 
F107: PCI Slot 7 Processor 2 x8 PCIe Gen4 for HL/FH | G107: =IF($S$88="SW","GPU Slot","") -> 
F108: Slot non Utilizzato | H108: =VLOOKUP($F108,TS4L3_PCI,13,FALSE) ->  | I108: =VLOOKUP($F108,TS4L3_PCI,7,FALSE) ->  | K108: =O108+P108 -> 0 | O108: =VLOOKUP($F108,TS4L3_PCI,10,FALSE) -> 0 | P108: =VLOOKUP($F108,TS4L3_PCI,11,FALSE) -> 0 | Q108: =VLOOKUP($F108,TS4L3_PCI,12,FALSE) -> 
F110: PCI Slot 8 Processor 2 x8 PCIe Gen4 for HL/FH | G110: =IF($S$88="SW","GPU Slot",IF($S$88="DW","GPU Slot","")) -> 
F111: Slot non Utilizzato | H111: =VLOOKUP($F111,TS4L3_PCI,13,FALSE) ->  | I111: =VLOOKUP($F111,TS4L3_PCI,7,FALSE) ->  | K111: =O111+P111 -> 0 | O111: =VLOOKUP($F111,TS4L3_PCI,10,FALSE) -> 0 | P111: =VLOOKUP($F111,TS4L3_PCI,11,FALSE) -> 0 | Q111: =VLOOKUP($F111,TS4L3_PCI,12,FALSE) -> 
F113: Garanzia
F114: Manutenzione in garanzia (36 mesi) | H114: =VLOOKUP($F114,TS4L4_WARR,13,FALSE) ->  | I114: =VLOOKUP($F114,TS4L4_WARR,7,FALSE) ->  | K114: =O114 -> 0 | O114: =VLOOKUP($F114,TS4L4_WARR,10,FALSE) -> 0 | P114: =VLOOKUP($F114,TS4L4_WARR,11,FALSE) -> 0 | Q114: =VLOOKUP($F114,TS4L4_WARR,12,FALSE) -> 
F116: Hard Disk Retention | I116: =IF(AND($F$117="Hard Disk Retention 60 mesi",$I$114=""),"Selezionare Estensione di Garanzia 24 Mesi",IF(AND(F114="Estensione della Garanzia Per ulteriori 24 Mesi",F117="Hard Disk Retention 36 mesi"),"Selezionare Hard Disk Retention 60 Mesi","")) -> 
F117: No Hard Disk Retention | H117: =VLOOKUP(F117,TS4L4_HDDRET,13,FALSE) ->  | I117: =IF(F117="","",IF(F117="No Hard Disk Retention","",VLOOKUP(F117,TS4L4_HDDRET,7,FALSE))) ->  | K117: =O117 -> 0 | O117: =IF(I116<>"","",VLOOKUP(F117,TS4L4_HDDRET,10,FALSE)) -> 0 | P117: =IFERROR(U117,VLOOKUP(F117,TS4L4_HDDRET,11,FALSE)) -> 0 | Q117: =IF(I116<>"","",VLOOKUP(F117,TS4L4_HDDRET,12,FALSE)) -> 
H119: Configurazione | I119: =SUM(O11:O117)*I8 -> 0 | O119: =IF(AND($I$117=1,$I$114=""),"Selezionare Estensione di Garanzia 24 Mesi","") -> 
H120: 0.2 | I120: =SUM(P11:P117)*I8 -> 0
H121: Totale | I121: =SUM(I119:I120) -> 0
F123: NOTE

Sheet Lotto3_SR650_2
F2: Convenzione Tecnologie Server 4 - Lotto 3 | H2: =IF(R111>1,"ERRORE NELLA CONFIGURAZIONE","") ->  | K2: =IF(Riepilogo_Ordine!K98>Riepilogo_Ordine!G98,"Superata Quota 20%","") ->  | AD2: SalvaPDF
K3: Articoli 20% Totali | P3: Check CPU | Q3: Check RAM | R3: Check Dischi | S3: Check PCI | T3: Check Win | U3: Check Gar | V3: Check Tot | AD3: =IF(I8>0,1,0) -> 0
H4: =IF(V4>1,"Errori nella Configurazione",IF(P4>0,"Errore nella Selezione della CPU",IF(Q4>0,"Errore Nella Selezione della RAM",IF(R4>0,"Errore Nella selezione dei Dischi",IF(S4>0,"Errore nella Selezione Slot PCI",IF(T4>0,"Errore nella Selezione Licenze Windows",IF(U4>0,"Errore nella Selezione Estensione di Garanzia",""))))))) ->  | I4: Totale Altre Opzioni | K4: =Riepilogo_Ordine!K98 -> 0 | P4: =IF(I22<>"",1,0) -> 0 | Q4: =IF(I25<>"",1,0) -> 0 | R4: =IF(K42<>"",1,0) -> 0 | S4: =IF(I89<>"",1,0) -> 0 | T4: =IF(I28<>"",1,0) -> 0 | U4: =IF(I116<>"",1,0) -> 0 | V4: =SUM(P4:U4) -> 0
I5: =Altre_Opzioni!H10 -> 0 | K5: Quota Residua 20 %
H6: Guida alla Convenzione | I6: Totale Configurazione | K6: =Riepilogo_Ordine!G99 -> 0
F7: =IF(Riepilogo_Ordine!P8>0,"Compilare i Dati nel Foglio Riepilogo per Stampare in PDF","") -> Compilare i Dati nel Foglio Riepilogo per Stampare in PDF | I7: =I119+I120 -> 0 | K7: Totale Ordine Iva Esclusa
F8: LENOVO THINKSYSTEM SR650 V2 | H8: Quantità Server | I8: 0 | K8: =Riepilogo_Ordine!K99 -> 0
F10: Base | S10: Lenovo ThinkSystem SR650 V2 Server
F11: Lenovo ThinkSystem SR650 V2 Server | H11: =IF($I$8=0,"",VLOOKUP(F11,TS4L4_Base,13,FALSE)) ->  | I11: =IF($I$8>0,1,"") ->  | K11: =O11 -> 2050.54 | O11: =VLOOKUP($F$11,TS4L4_Base,10,FALSE) -> 2050.54 | Q11: =VLOOKUP($F11,TS4L4_Base,12,FALSE) -> L3N01 | W11: =IF(F11=ConfigurationTS4L3!A15,"NutanixA",IF(Lotto3_SR650_2!F11=ConfigurationTS4L3!#REF!,"NutanixB",IF(Lotto3_SR650_2!F11=ConfigurationTS4L3!A16,"NutanixC",IF(Lotto3_SR650_2!F11=ConfigurationTS4L3!A17,"VsanA",IF(Lotto3_SR650_2!F11=ConfigurationTS4L3!#REF!,"VsanB",IF(Lotto3_SR650_2!F11=ConfigurationTS4L3!A18,"VsanC")))))) -> 
R15: =IF(T11<>"","vsan","") ->  | S15: =IF(AND(T15="GP1",F26>512),"Selezionare RAM Corretta","") -> 
F16: Chassis Configuration | H16: =IF($S$88="SW","MAX 4 GPU",IF($S$88="DW","MAX 2 GPU","")) -> 
F17: =IF(I23=1,VLOOKUP($F$11,TS4L4_Chassis,3,FALSE),VLOOKUP($F$11,TS4L4_Chassis,2,FALSE)) -> Chassis fino a 12 x 3.5 Hard Drives | H17: =IF($I$23=1,VLOOKUP($F$11,TS4L4_Chassis,11,FALSE),VLOOKUP($F$11,TS4L4_Chassis,9,FALSE)) -> TS4L3-SRV | I17: =IF($I$8=0,0,VLOOKUP(F11,TS4L4_Chassis,7,0)) -> 0 | K17: =O17+P17 -> 0 | P17: =VLOOKUP($F$11,TS4L4_Chassis,10,FALSE)*I17 -> 0 | Q17: =IF(I17=0,"",(VLOOKUP($F11,TS4L4_Chassis,12,FALSE))) ->  | T17: 1
F19: Processor
F20: Intel Xeon Silver 4310 12C 120W 2.1GHz Processor | O20: =IF(I17=1,VLOOKUP($F$20,TS4L4_CPU,11,FALSE),VLOOKUP($F$20,TS4L4_CPU,11,FALSE)) -> 0 | P20: =IF(I17=1,VLOOKUP($F$20,TS4L4_CPU,11,FALSE),VLOOKUP($F$20,TS4L4_CPU,11,FALSE)) -> 0 | Q20: =IF(P20=0,0,VLOOKUP($F20,TS4L4_CPU,12,FALSE)) -> 0
F22: Additional Processor
F23: No Additional Processor | H23: =IF(I17=1,VLOOKUP($F$20,TS4L4_CPU,13,FALSE),VLOOKUP($F$23,TS4L4_CPU,13,FALSE)) ->  | I23: =IF(I17=1,VLOOKUP($F$23,TS4L4_CPU,7,FALSE),VLOOKUP($F$23,TS4L4_CPU,7,FALSE)) ->  | K23: =O23 -> 0 | O23: =IF(I17=1,VLOOKUP($F$20,TS4L4_CPU,10,FALSE),VLOOKUP($F$23,TS4L4_CPU,10,FALSE)) -> 0 | P23: =IF(I17=1,VLOOKUP($F$20,TS4L4_CPU,11,FALSE),VLOOKUP($F$23,TS4L4_CPU,11,FALSE)) -> 0 | Q23: =IF(I17=1,VLOOKUP(F20,TS4L4_CPU,12,FALSE),VLOOKUP($F23,TS4L4_CPU,12,FALSE)) ->  | S23: =IF(I23=1,"Intel Xeon Silver 4310 12C 120W 2.1GHz Processor",F23) -> No Additional Processor
F25: Memory Capacity (GB) | H25: ↓ Selezionare Taglio RAM ↓ | I25: =IF(AND(F26>512,I23<>1,H26="TS4L3-RAM32"),"Selezionare RAM 64 GB o Aggiungere CPU",IF(AND(F26>1024,I23<>1,H26="TS4L3-RAM64"),"Selezionare RAM Corretta o Aggiungere CPU",IF(AND(F26>1024,I23=1,H26="TS4L3-RAM32"),"Selezionare RAM Corretta",IF(AND(F26>512,I23="",H26="TS4L3-RAM32"),"Selezionare RAM Corretta o Aggiungere CPU",IF(AND(F26<128,I23=1,H26="TS4L3-RAM64"),"Selezionare RAM Corretta",""))))) -> 
F26: 64 | H26: TS4L3-RAM32 | I26: =IF(I25<>"",0,T26) -> 0 | K26: =O26 -> 0 | O26: =U26 -> 0 | Q26: =IF(I25<>"",0,V26) -> L3N03 | S26: =IF(I25<>"",0,IF(AND(H26="TS4L3-RAM32",I23=""),VLOOKUP($F$26,TS4L3_RAM1CPU32GB,13,FALSE),IF(AND(H26="TS4L3-RAM32",I23=1),VLOOKUP($F$26,TS4L3_RAM2CPU32GB,13,FALSE),IF(AND(H26="TS4L3-RAM64",I23=""),VLOOKUP($F$26,TS4L3_RAM1CPU64GB,13,FALSE),IF(AND(H26="TS4L3-RAM64",I23=1),VLOOKUP($F$26,TS4L3_RAM2CPU64GB,13,FALSE),""))))) -> TS4L3-RAM32 | T26: =IF(AND(H26="TS4L3-RAM32",I23=""),VLOOKUP($F$26,TS4L3_RAM1CPU32GB,7,FALSE),IF(AND(H26="TS4L3-RAM32",I23=1),VLOOKUP($F$26,TS4L3_RAM2CPU32GB,7,FALSE),IF(AND(H26="TS4L3-RAM64",I23=""),VLOOKUP($F$26,TS4L3_RAM1CPU64GB,7,FALSE),IF(AND(H26="TS4L3-RAM64",I23=1),VLOOKUP($F$26,TS4L3_RAM2CPU64GB,7,FALSE),"")))) -> 0 | U26: =IF(I25<>"",0,IF(AND(H26="TS4L3-RAM32",I23=""),VLOOKUP($F$26,TS4L3_RAM1CPU32GB,10,FALSE),IF(AND(H26="TS4L3-RAM32",I23=1),VLOOKUP($F$26,TS4L3_RAM2CPU32GB,10,FALSE),IF(AND(H26="TS4L3-RAM64",I23=""),VLOOKUP($F$26,TS4L3_RAM1CPU64GB,10,FALSE),IF(AND(H26="TS4L3-RAM64",I23=1),VLOOKUP($F$26,TS4L3_RAM2CPU64GB,10,FALSE),""))))) -> 0 | V26: =IF(I25<>"",0,IF(AND(H26="TS4L3-RAM32",I23=""),VLOOKUP($F$26,TS4L3_RAM1CPU32GB,12,FALSE),IF(AND(H26="TS4L3-RAM32",I23=1),VLOOKUP($F$26,TS4L3_RAM2CPU32GB,12,FALSE),IF(AND(H26="TS4L3-RAM64",I23=""),VLOOKUP($F$26,TS4L3_RAM1CPU64GB,12,FALSE),IF(AND(H26="TS4L3-RAM64",I23=1),VLOOKUP($F$26,TS4L3_RAM2CPU64GB,12,FALSE),""))))) -> L3N03
F28: Operating System STANDARD
F29: No Operating System | H29: =VLOOKUP($F$29,TS4L3_OS,13,FALSE) ->  | I29: 0 | K29: =O29 -> 0 | O29: =VLOOKUP($F$29,TS4L3_OS,10,FALSE)*I29 -> 0 | P29: =VLOOKUP($F$29,TS4L3_OS,11,FALSE) -> 0 | Q29: =VLOOKUP($F29,TS4L3_OS,12,FALSE) ->  | S29: =IF(AND(F23="No Additional Processor",I29>=3),TRUE,FALSE) -> FALSE
F30: Windows Server 2022 Standard Edition, Add License,2CORE | H30: =VLOOKUP($F$30,TS4L3_OS,13,FALSE) -> TS4L3-WINSRV2C | I30: 0 | K30: =O30 -> 0 | O30: =VLOOKUP($F$30,TS4L3_OS,10,FALSE)*I30 -> 0 | P30: =VLOOKUP($F$29,TS4L3_OS,11,FALSE) -> 0 | Q30: =VLOOKUP($F30,TS4L3_OS,12,FALSE) -> L3N21 | S30: =IF(AND(F23<>"No Additional Processor",I29>=3),TRUE,FALSE) -> FALSE
F32: Operating System Device CAL / User CAL
F33: 1-pack of Windows Server 2022/2019 Device CALs (STD or DC) | H33: =VLOOKUP($F$33,TS4L3_OS,13,FALSE) -> TS4L3-WINDEVCAL | I33: 0 | K33: =O33 -> 0 | O33: =VLOOKUP($F$33,TS4L3_OS,10,FALSE)*I33 -> 0 | P33: =VLOOKUP($F$29,TS4L3_OS,11,FALSE) -> 0 | Q33: =VLOOKUP($F33,TS4L3_OS,12,FALSE) -> L3N19
F34: 1-pack of Windows Server 2022/2019 User CALs (STD or DC) | H34: =VLOOKUP($F$34,TS4L3_OS,13,FALSE) -> TS4L3-WINUSRCAL | I34: 0 | K34: =O34 -> 0 | O34: =VLOOKUP($F$34,TS4L3_OS,10,FALSE)*I34 -> 0 | P34: =VLOOKUP($F$29,TS4L3_OS,11,FALSE) -> 0 | Q34: =VLOOKUP($F34,TS4L3_OS,12,FALSE) -> L3N20
F36: Disk Controller
F37: =IF(I17=0,ConfigurationTS4L3!A98,ConfigurationTS4L3!A98) -> RAID 9350-16i 4GB Flash PCIe 12Gb Adapter | H37: =VLOOKUP(F37,TS4L3_CTRL,13,FALSE) -> TS4L3-DiskController | I37: =VLOOKUP($F37,TS4L3_CTRL,7,FALSE) ->  | K37: =P37 -> 0 | O37: =IF(F37=ConfigurationTS4L3!A48,0,VLOOKUP($F37,TS4L4_CRTL,10,FALSE)) -> 0 | P37: =IF(I17=1,0,VLOOKUP($F37,TS4L4_CRTL,11,FALSE)) -> 0 | Q37: ="" ->  | S37: =IF(F11="PowerEdge R7525 Server (vSAN Ready)","Vsan","") -> 
F39: Abilitazione RAID su dischi NVMe | H39: =IF(F40="NO RAID","Il RAID sui dischi NVMe di base non è abilitato","") -> 
F40: Intel VROC (VMD NVMe RAID) Premium | H40: =VLOOKUP(F40,TS4L3_RAID,13,FALSE) -> TS4L3-VROC | I40: =VLOOKUP($F40,TS4L3_RAID,7,FALSE) -> 1 | K40: =P40 -> 380 | O40: =VLOOKUP($F40,TS4L3_RAID,10,FALSE) -> 0 | P40: =VLOOKUP($F40,TS4L3_RAID,11,FALSE) -> 380 | Q40: =VLOOKUP($F40,TS4L3_RAID,12,FALSE) -> L3N52 | S40: =IF(F17="PowerEdge R7525 Server (vSAN Ready)","Vsan","") -> 
F42: Hard Drivers Bays n° 12 + 2 Dischi nVME di Boot | H42: Usati | I42: Disponibili | K42: =IF(I43<0,"Troppi Dischi","") -> 
H43: =SUM(I45:I79) -> 6 | I43: =12-H43 -> 6
F45: =ConfigurationTS4L3!A70 -> 8TB 7.2K SAS 12Gb Hot Swap 512e HDD | H45: =VLOOKUP($F45,TS4L4_HDD,13,FALSE) -> TS4L3-HDD8TB | I45: 1 | K45: =O45 -> 206.8 | O45: =IF(K42<>"",0,VLOOKUP($F45,TS4L4_HDD,10,FALSE))*I45 -> 206.8 | P45: =VLOOKUP($F45,TS4L4_HDD,11,FALSE) -> 0 | Q45: =IF(K42<>"","",VLOOKUP($F45,TS4L4_HDD,12,FALSE)) -> L3N11
F47: =ConfigurationTS4L3!A71 -> 2TB 7.2K SAS 12Gb Hot Swap 512n HDD | H47: =VLOOKUP($F47,TS4L4_HDD,13,FALSE) -> TS4L3-HDD2TB | I47: 2 | K47: =O47 -> 311.78 | O47: =IF(K42<>"",0,VLOOKUP($F47,TS4L4_HDD,10,FALSE))*I47 -> 311.78 | P47: =VLOOKUP($F47,TS4L4_HDD,11,FALSE) -> 0 | Q47: =IF(K42<>"","",VLOOKUP($F47,TS4L4_HDD,12,FALSE)) -> L3N12
F49: =ConfigurationTS4L3!A72 -> 1TB 7.2K SAS 12Gb Hot Swap 512n HDD | H49: =VLOOKUP($F49,TS4L4_HDD,13,FALSE) -> TS4L3-HDD1TB | I49: 3 | K49: =O49 -> 416.79 | O49: =IF(K42<>"",0,VLOOKUP($F49,TS4L4_HDD,10,FALSE))*I49 -> 416.79 | P49: =VLOOKUP($F49,TS4L4_HDD,11,FALSE) -> 0 | Q49: =IF(K42<>"","",VLOOKUP($F49,TS4L4_HDD,12,FALSE)) -> L3N13
F51: =ConfigurationTS4L3!A73 -> 12TB 7.2K SAS 12Gb Hot Swap 512e HDD | H51: =VLOOKUP($F51,TS4L4_HDD,13,FALSE) -> TS4L3-HDD12TB | I51: 0 | K51: =O51 -> 0 | O51: =IF(K42<>"",0,VLOOKUP($F51,TS4L4_HDD,10,FALSE))*I51 -> 0 | P51: =VLOOKUP($F51,TS4L4_HDD,11,FALSE) -> 0 | Q51: =IF(K42<>"","",VLOOKUP($F51,TS4L4_HDD,12,FALSE)) -> L3N14
F53: =ConfigurationTS4L3!A74 -> PM1643a 3.84TB Entry SAS 12Gb Hot Swap SSD | H53: =VLOOKUP($F53,TS4L4_HDD,13,FALSE) -> TS4L3-SSD-RI3,8TB | I53: 0 | K53: =O53 -> 0 | O53: =IF(K42<>"",0,VLOOKUP($F53,TS4L4_HDD,10,FALSE))*I53 -> 0 | P53: =VLOOKUP($F53,TS4L4_HDD,11,FALSE) -> 0 | Q53: =IF(K42<>"","",VLOOKUP($F53,TS4L4_HDD,12,FALSE)) -> L3N26
F55: =ConfigurationTS4L3!A75 -> PM1645a 1.6TB Mainstream SAS 12Gb Hot Swap SSD | H55: =VLOOKUP($F55,TS4L4_HDD,13,FALSE) -> TS4L3-SSD-RI1,6TB | I55: 0 | K55: =O55 -> 0 | O55: =IF(K42<>"",0,VLOOKUP($F55,TS4L4_HDD,10,FALSE))*I55 -> 0 | P55: =VLOOKUP($F55,TS4L4_HDD,11,FALSE)*I55 -> 0 | Q55: =IF(K42<>"","",VLOOKUP($F55,TS4L4_HDD,12,FALSE)) -> L3N27
F57: =ConfigurationTS4L3!A76 -> ThinkSystem 3.2TB Mixed Use SAS 24Gb HS SSD | H57: =VLOOKUP($F57,TS4L4_HDD,13,FALSE) -> TS4L3-SSDSAS3.2TBMU | I57: 0 | K57: =O57 -> 0 | O57: =IF($K$42<>"",0,VLOOKUP($F57,TS4L4_HDD,10,FALSE))*I57 -> 0 | P57: =VLOOKUP($F57,TS4L4_HDD,11,FALSE) -> 0 | Q57: =IF($K$42<>"","",VLOOKUP($F57,TS4L4_HDD,12,FALSE)) -> L3N54
F59: =ConfigurationTS4L3!A77 -> ThinkSystem 6.4TB Mixed Use SAS 24Gb HS SSD | H59: =VLOOKUP($F59,TS4L4_HDD,13,FALSE) -> TS4L3-SSDSAS6.4TBMU | I59: 0 | K59: =O59 -> 0 | O59: =IF($K$42<>"",0,VLOOKUP($F59,TS4L4_HDD,10,FALSE))*I59 -> 0 | P59: =VLOOKUP($F59,TS4L4_HDD,11,FALSE) -> 0 | Q59: =IF($K$42<>"","",VLOOKUP($F59,TS4L4_HDD,12,FALSE)) -> L3N55
F61: =ConfigurationTS4L3!A78 -> ThinkSystem 7.68TB Read Intensive SAS 24Gb HS SSD | H61: =VLOOKUP($F61,TS4L4_HDD,13,FALSE) -> TS4L3-SSDSAS7.68TBRI | I61: 0 | K61: =O61 -> 0 | O61: =IF($K$42<>"",0,VLOOKUP($F61,TS4L4_HDD,10,FALSE))*I61 -> 0 | P61: =VLOOKUP($F61,TS4L4_HDD,11,FALSE) -> 0 | Q61: =IF($K$42<>"","",VLOOKUP($F61,TS4L4_HDD,12,FALSE)) -> L3N56
F63: =ConfigurationTS4L3!A79 -> ThinkSystem 15.36TB Read Intensive SAS 24Gb HS SSD | H63: =VLOOKUP($F63,TS4L4_HDD,13,FALSE) -> TS4L3-SSDSAS15.36TBRI | I63: 0 | K63: =O63 -> 0 | O63: =IF($K$42<>"",0,VLOOKUP($F63,TS4L4_HDD,10,FALSE))*I63 -> 0 | P63: =VLOOKUP($F63,TS4L4_HDD,11,FALSE) -> 0 | Q63: =IF($K$42<>"","",VLOOKUP($F63,TS4L4_HDD,12,FALSE)) -> L3N57
F65: =ConfigurationTS4L3!A80 -> ThinkSystem 3.84TB Read Intensive SATA 6Gb HS SSD | H65: =VLOOKUP($F65,TS4L4_HDD,13,FALSE) -> TS4L3-SSDSATA3.84TBRI | I65: 0 | K65: =O65 -> 0 | O65: =IF($K$42<>"",0,VLOOKUP($F65,TS4L4_HDD,10,FALSE))*I65 -> 0 | P65: =VLOOKUP($F65,TS4L4_HDD,11,FALSE) -> 0 | Q65: =IF($K$42<>"","",VLOOKUP($F65,TS4L4_HDD,12,FALSE)) -> L3N58
F67: =ConfigurationTS4L3!A81 -> ThinkSystem 7.68TB Read Intensive SATA 6Gb HS SSD | H67: =VLOOKUP($F67,TS4L4_HDD,13,FALSE) -> TS4L3-SSDSATA7.68TBRI | I67: 0 | K67: =O67 -> 0 | O67: =IF($K$42<>"",0,VLOOKUP($F67,TS4L4_HDD,10,FALSE))*I67 -> 0 | P67: =VLOOKUP($F67,TS4L4_HDD,11,FALSE)*I67 -> 0 | Q67: =IF($K$42<>"","",VLOOKUP($F67,TS4L4_HDD,12,FALSE)) -> L3N59
F69: =ConfigurationTS4L3!A82 -> ThinkSystem 20TB 7.2K SAS 12Gb Hot Swap 512e HDD | H69: =VLOOKUP($F69,TS4L4_HDD,13,FALSE) -> TS4L3-HDD_SAS20TB_HW | I69: 0 | K69: =O69 -> 0 | O69: =IF($K$42<>"",0,VLOOKUP($F69,TS4L4_HDD,10,FALSE))*I69 -> 0 | P69: =VLOOKUP($F69,TS4L4_HDD,11,FALSE) -> 0 | Q69: =IF($K$42<>"","",VLOOKUP($F69,TS4L4_HDD,12,FALSE)) -> L3N60
F71: =ConfigurationTS4L3!A83 -> ThinkSystem 16TB 7.2K SATA 6Gb Hot Swap 512e HDD | H71: =VLOOKUP($F71,TS4L4_HDD,13,FALSE) -> TS4L3-HDD_SATA16TB_HW | I71: 0 | K71: =O71 -> 0 | O71: =IF($K$42<>"",0,VLOOKUP($F71,TS4L4_HDD,10,FALSE))*I71 -> 0 | P71: =VLOOKUP($F71,TS4L4_HDD,11,FALSE) -> 0 | Q71: =IF($K$42<>"","",VLOOKUP($F71,TS4L4_HDD,12,FALSE)) -> L3N61
F73: =ConfigurationTS4L3!A84 -> ThinkSystem 3.5" 16TB 7.2K SAS 12Gb Hot Swap 512e HDD | H73: =VLOOKUP($F73,TS4L4_HDD,13,FALSE) -> TS4L3-HDD_SAS16TB_HW | I73: 0 | K73: =O73 -> 0 | O73: =IF($K$42<>"",0,VLOOKUP($F73,TS4L4_HDD,10,FALSE))*I73 -> 0 | P73: =VLOOKUP($F73,TS4L4_HDD,11,FALSE) -> 0 | Q73: =IF($K$42<>"","",VLOOKUP($F73,TS4L4_HDD,12,FALSE)) -> L3N62
F75: =ConfigurationTS4L3!A85 -> ThinkSystem 3.5" 800GB Write Intensive SAS 12Gb HS SSD | H75: =VLOOKUP($F75,TS4L4_HDD,13,FALSE) -> TS4L3-SSD_SAS800GB_WI | I75: 0 | K75: =O75 -> 0 | O75: =IF($K$42<>"",0,VLOOKUP($F75,TS4L4_HDD,10,FALSE))*I75 -> 0 | P75: =VLOOKUP($F75,TS4L4_HDD,11,FALSE) -> 0 | Q75: =IF($K$42<>"","",VLOOKUP($F75,TS4L4_HDD,12,FALSE)) -> L3N63
F77: =ConfigurationTS4L3!A86 -> ThinkSystem 3.5" 1.6TB Write Intensive SAS 12Gb HS SSD | H77: =VLOOKUP($F77,TS4L4_HDD,13,FALSE) -> TS4L3-SSD_SAS1.6TB_WI | I77: 0 | K77: =O77 -> 0 | O77: =IF($K$42<>"",0,VLOOKUP($F77,TS4L4_HDD,10,FALSE))*I77 -> 0 | P77: =VLOOKUP($F77,TS4L4_HDD,11,FALSE) -> 0 | Q77: =IF($K$42<>"","",VLOOKUP($F77,TS4L4_HDD,12,FALSE)) -> L3N64
F79: =ConfigurationTS4L3!A87 -> ThinkSystem 3.5" 3.2TB Write Intensive SAS 12Gb HS SSD | H79: =VLOOKUP($F79,TS4L4_HDD,13,FALSE) -> TS4L3-SSD_SAS3.2TB_WI | I79: 0 | K79: =O79 -> 0 | O79: =IF($K$42<>"",0,VLOOKUP($F79,TS4L4_HDD,10,FALSE))*I79 -> 0 | P79: =VLOOKUP($F79,TS4L4_HDD,11,FALSE)*I79 -> 0 | Q79: =IF($K$42<>"","",VLOOKUP($F79,TS4L4_HDD,12,FALSE)) -> L3N65
F81: Power Supply | G81: =IF(K81="","",R82) -> 
F82: =ConfigurationTS4L3!A94 -> 2 x 750W(230V/115V) Platinum Hot-Swap Power Supply v2 | O82: =VLOOKUP($F82,TS4L4_PSU,10,FALSE) -> 0 | P82: =VLOOKUP($F82,TS4L4_PSU,11,FALSE) -> 0 | Q82: =IF(I82<>1,"",VLOOKUP($F82,TS4L4_PSU,12,FALSE)) -> 
F84: Embedded Systems Management
F85: Xclarity Controller Enterpise
F89: PCI Slot 1 Processor 1 x16 PCIe Gen4 for HL/FH
F90: RISERVATO SCHEDA SAS HBA ThinkSystem 4350 | H90: =VLOOKUP($F90,TS4L3_PCI,13,) ->  | I90: =VLOOKUP($F90,TS4L3_PCI,7,FALSE) ->  | K90: =O90+P90 -> 0 | O90: =VLOOKUP($F90,TS4L3_PCI,10,FALSE) -> 0 | P90: =VLOOKUP($F90,TS4L3_PCI,11,FALSE) -> 0 | Q90: =VLOOKUP($F90,TS4L3_PCI,12,FALSE) -> 
F92: PCI Slot 2 Processor 1 x8 PCIe Gen4 for HL/FH
F93: Slot non Utilizzato | H93: =VLOOKUP($F93,TS4L3_PCI,13,FALSE) ->  | I93: =VLOOKUP($F93,TS4L3_PCI,7,FALSE) ->  | K93: =O93+P93 -> 0 | O93: =VLOOKUP($F93,TS4L3_PCI,10,FALSE) -> 0 | P93: =VLOOKUP($F93,TS4L3_PCI,11,FALSE) -> 0 | Q93: =VLOOKUP($F93,TS4L3_PCI,12,FALSE) -> 
F95: PCI Slot 3 Processor 1 x8 PCIe Gen4 for HL/FH
F96: Slot non Utilizzato | H96: =VLOOKUP($F96,TS4L3_PCI,13,FALSE) ->  | I96: =VLOOKUP($F96,TS4L3_PCI,7,FALSE) ->  | K96: =O96+P96 -> 0 | O96: =VLOOKUP($F96,TS4L3_PCI,10,FALSE) -> 0 | P96: =VLOOKUP($F96,TS4L3_PCI,11,FALSE) -> 0 | Q96: =VLOOKUP($F96,TS4L3_PCI,12,FALSE) -> 
F98: PCI Slot 4 Processor 2 x8 PCIe Gen4 for HL/FH | G98: =IF($S$88="SW","GPU Slot",IF($S$88="DW","GPU Slot","")) -> 
F99: Slot non Utilizzato | H99: =VLOOKUP($F99,TS4L3_PCI,13,FALSE) ->  | I99: =VLOOKUP($F99,TS4L3_PCI,7,FALSE) ->  | K99: =O99+P99 -> 0 | O99: =VLOOKUP($F99,TS4L3_PCI,10,FALSE) -> 0 | P99: =VLOOKUP($F99,TS4L3_PCI,11,FALSE) -> 0 | Q99: =VLOOKUP($F99,TS4L3_PCI,12,FALSE) -> 
F101: PCI Slot 5 Processor 2 x8 PCIe Gen4 for HL/FH | G101: =IF($S$88="SW","GPU Slot","") -> 
F102: Slot non Utilizzato | H102: =VLOOKUP($F102,TS4L3_PCI,13,FALSE) ->  | I102: =VLOOKUP($F102,TS4L3_PCI,7,FALSE) ->  | K102: =O102+P102 -> 0 | O102: =VLOOKUP($F102,TS4L3_PCI,10,FALSE) -> 0 | P102: =VLOOKUP($F102,TS4L3_PCI,11,FALSE) -> 0 | Q102: =VLOOKUP($F102,TS4L3_PCI,12,FALSE) -> 
F104: PCI Slot 6 Processor 2 x16 PCIe Gen4 for HL/LP
F105: Slot non Utilizzato | H105: =VLOOKUP($F105,TS4L3_PCI,13,FALSE) ->  | I105: =VLOOKUP($F105,TS4L3_PCI,7,FALSE) ->  | K105: =O105+P105 -> 0 | O105: =VLOOKUP($F105,TS4L3_PCI,10,FALSE) -> 0 | P105: =VLOOKUP($F105,TS4L3_PCI,11,FALSE) -> 0 | Q105: =VLOOKUP($F105,TS4L3_PCI,12,FALSE) -> 
F107: PCI Slot 7 Processor 2 x8 PCIe Gen4 for HL/FH | G107: =IF($S$88="SW","GPU Slot","") -> 
F108: Slot non Utilizzato | H108: =VLOOKUP($F108,TS4L3_PCI,13,FALSE) ->  | I108: =VLOOKUP($F108,TS4L3_PCI,7,FALSE) ->  | K108: =O108+P108 -> 0 | O108: =VLOOKUP($F108,TS4L3_PCI,10,FALSE) -> 0 | P108: =VLOOKUP($F108,TS4L3_PCI,11,FALSE) -> 0 | Q108: =VLOOKUP($F108,TS4L3_PCI,12,FALSE) -> 
F110: PCI Slot 8 Processor 2 x8 PCIe Gen4 for HL/FH | G110: =IF($S$88="SW","GPU Slot",IF($S$88="DW","GPU Slot","")) -> 
F111: Slot non Utilizzato | H111: =VLOOKUP($F111,TS4L3_PCI,13,FALSE) ->  | I111: =VLOOKUP($F111,TS4L3_PCI,7,FALSE) ->  | K111: =O111+P111 -> 0 | O111: =VLOOKUP($F111,TS4L3_PCI,10,FALSE) -> 0 | P111: =VLOOKUP($F111,TS4L3_PCI,11,FALSE) -> 0 | Q111: =VLOOKUP($F111,TS4L3_PCI,12,FALSE) -> 
F113: Garanzia
F114: Manutenzione in garanzia (36 mesi) | H114: =VLOOKUP($F114,TS4L4_WARR,13,FALSE) ->  | I114: =VLOOKUP($F114,TS4L4_WARR,7,FALSE) ->  | K114: =O114 -> 0 | O114: =VLOOKUP($F114,TS4L4_WARR,10,FALSE) -> 0 | P114: =VLOOKUP($F114,TS4L4_WARR,11,FALSE) -> 0 | Q114: =VLOOKUP($F114,TS4L4_WARR,12,FALSE) -> 
F116: Hard Disk Retention | I116: =IF(AND($F$117="Hard Disk Retention 60 mesi",$I$114=""),"Selezionare Estensione di Garanzia 24 Mesi",IF(AND(F114="Estensione della Garanzia Per ulteriori 24 Mesi",F117="Hard Disk Retention 36 mesi"),"Selezionare Hard Disk Retention 60 Mesi","")) -> 
F117: No Hard Disk Retention | H117: =VLOOKUP(F117,TS4L4_HDDRET,13,FALSE) ->  | I117: =IF(F117="","",IF(F117="No Hard Disk Retention","",VLOOKUP(F117,TS4L4_HDDRET,7,FALSE))) ->  | K117: =O117 -> 0 | O117: =IF(I116<>"","",VLOOKUP(F117,TS4L4_HDDRET,10,FALSE)) -> 0 | P117: =IFERROR(U117,VLOOKUP(F117,TS4L4_HDDRET,11,FALSE)) -> 0 | Q117: =IF(I116<>"","",VLOOKUP(F117,TS4L4_HDDRET,12,FALSE)) -> 
H119: Configurazione | I119: =SUM(O11:O117)*I8 -> 0 | O119: =IF(AND($I$117=1,$I$114=""),"Selezionare Estensione di Garanzia 24 Mesi","") -> 
H120: 0.2 | I120: =SUM(P11:P117)*I8 -> 0
H121: Totale | I121: =SUM(I119:I120) -> 0
F123: NOTE

Sheet Altre_Opzioni
E2: Opzioni | H2: Totale altre opzioni
E5: Opzione Rack APC con PDU Monofase
E6: Armadio Rack 42U 600x1200, 2 x PDU Monofase 2G, ZeroU, 32A, 230V, (36) C13 & (6) C19 | G6: =VLOOKUP($E6,TS4L4_ALL,13,FALSE) ->  | L6: =VLOOKUP($E6,TS4L4_ALL,10,FALSE)*H6 ->  | M6: =VLOOKUP($E6,TS4L4_ALL,11,FALSE)*H6 ->  | N6: =VLOOKUP($E6,TS4L4_ALL,12,FALSE) -> 
E8: Opzione Rack APC con PDU Trifase
E9: Armadio Rack 42U 600x1200, 2 x PDU Trifase 2G, ZeroU, 22.0kW(32A) 17.3kW(24A), 230V, (30) C13 & (12) C19 | G9: =VLOOKUP($E9,TS4L4_ALL,13,FALSE) ->  | L9: =VLOOKUP($E9,TS4L4_ALL,10,FALSE)*H9 ->  | M9: =VLOOKUP($E9,TS4L4_ALL,11,FALSE)*H9 ->  | N9: =VLOOKUP($E9,TS4L4_ALL,12,FALSE) -> 
H10: =SUM(L13:L77) -> 0
E12: OpzRack
E13: =ConfigurationTS4L3!A112 -> Armadio Rack 42U | G13: =VLOOKUP($E13,TS4L3_RACK,13,FALSE) -> TS4L3-RACK | H13: 0 | J13: =L13 -> 0 | L13: =VLOOKUP($E13,TS4L3_RACK,10,FALSE)*H13 -> 0 | M13: =VLOOKUP($E13,TS4L3_RACK,11,FALSE) -> 0 | N13: =VLOOKUP($E13,TS4L3_RACK,12,FALSE) -> L3N25
E16: Prodotti VMware
E17: VMware vSphere 7 Standard Acceleration Kit OEM for 6 CPU, 3YR License and Maintenance | G17: =VLOOKUP($E17,TS4L4_ALL,13,FALSE) ->  | M17: =VLOOKUP($E17,TS4L4_ALL,11,FALSE)*H17 ->  | N17: =VLOOKUP($E17,TS4L4_ALL,12,FALSE) -> 
E18: VMware vSphere 7 Standard OEM, 1 CPU (max 32 cores/CPU socket), 3YR License and Maintenance | G18: =VLOOKUP($E18,TS4L4_ALL,13,FALSE) ->  | M18: =VLOOKUP($E18,TS4L4_ALL,11,FALSE)*H18 ->  | N18: =VLOOKUP($E18,TS4L4_ALL,12,FALSE) -> 
E19: VMware vSphere 7 Enterprise Plus Acceleration Kit OEM for 6 CPU, 3YR License and Maintenance | G19: =VLOOKUP($E19,TS4L4_ALL,13,FALSE) ->  | M19: =VLOOKUP($E19,TS4L4_ALL,11,FALSE)*H19 ->  | N19: =VLOOKUP($E19,TS4L4_ALL,12,FALSE) -> 
E20: VMware vSphere 7 Enterprise Plus OEM, 1 CPU (max 32 cores/CPU socket), 3YR License and Maintenance | G20: =VLOOKUP($E20,TS4L4_ALL,13,FALSE) ->  | M20: =VLOOKUP($E20,TS4L4_ALL,11,FALSE)*H20 ->  | N20: =VLOOKUP($E20,TS4L4_ALL,12,FALSE) -> 
E21: VMware vCenter 7 Standard OEM ,Per Instance,3YR License and Maintenance | G21: =VLOOKUP($E21,TS4L4_ALL,13,FALSE) ->  | M21: =VLOOKUP($E21,TS4L4_ALL,11,FALSE)*H21 ->  | N21: =VLOOKUP($E21,TS4L4_ALL,12,FALSE) -> 
E22: VMware vSAN 7 Enterprise OEM, 1 CPU (max 32 cores/CPU socket), 3YR License and Maintenance | G22: =VLOOKUP($E22,TS4L4_ALL,13,FALSE) ->  | M22: =VLOOKUP($E22,TS4L4_ALL,11,FALSE)*H22 ->  | N22: =VLOOKUP($E22,TS4L4_ALL,12,FALSE) -> 
E23: VMware Horizon 8 Advanced OEM,10 Pack,CCU, 3YR License and Maintenance | G23: =VLOOKUP($E23,TS4L4_ALL,13,FALSE) ->  | M23: =VLOOKUP($E23,TS4L4_ALL,11,FALSE)*H23 ->  | N23: =VLOOKUP($E23,TS4L4_ALL,12,FALSE) -> 
E24: VMware Horizon 8 Enterprise OEM,10 Pack,CCU, 3YR License and Maintenance | G24: =VLOOKUP($E24,TS4L4_ALL,13,FALSE) ->  | M24: =VLOOKUP($E24,TS4L4_ALL,11,FALSE)*H24 ->  | N24: =VLOOKUP($E24,TS4L4_ALL,12,FALSE) -> 
E25: VMware Horizon Advanced OEM, 10 Pack, Named User, 3YR License and Maintenance | G25: =VLOOKUP($E25,TS4L4_ALL,13,FALSE) ->  | M25: =VLOOKUP($E25,TS4L4_ALL,11,FALSE)*H25 ->  | N25: =VLOOKUP($E25,TS4L4_ALL,12,FALSE) -> 
E26: VMware Horizon 8 Enterprise OEM,10 Pack, Named User, 3YR License and Maintenance | G26: =VLOOKUP($E26,TS4L4_ALL,13,FALSE) ->  | M26: =VLOOKUP($E26,TS4L4_ALL,11,FALSE)*H26 ->  | N26: =VLOOKUP($E26,TS4L4_ALL,12,FALSE) -> 
E29: Enclosure Dischi SAS 3.5" (No disk)
E30: Enclosure SAS 12 Slot 3.5", 3YR ProSupport and 4hr Mission Critical | G30: =VLOOKUP($E30,TS4L4_ALL,13,FALSE) ->  | M30: =VLOOKUP($E30,TS4L4_ALL,11,FALSE)*H30 ->  | N30: =VLOOKUP($E30,TS4L4_ALL,12,FALSE) -> 
E31: Enclosure SAS 12 Slot 3.5", 5YR ProSupport and 4hr Mission Critical | G31: =VLOOKUP($E31,ConfigurationTS4L3!#REF!,13,FALSE) ->  | M31: =VLOOKUP($E31,TS4L4_ALL,11,FALSE)*H31 ->  | N31: =VLOOKUP($E31,TS4L4_ALL,12,FALSE) -> 
E32: Dischi per Enclosure 3.5"
E33: HDD 16TB SAS 12Gbps 7k 3.5in Hot-Plug per Enclosure 3.5" | G33: =VLOOKUP($E33,ConfigurationTS4L3!#REF!,13,FALSE) ->  | M33: =VLOOKUP($E33,TS4L4_ALL,11,FALSE)*H33 ->  | N33: =VLOOKUP($E33,TS4L4_ALL,12,FALSE) -> 
E34: HDD 12TB SAS 12Gbps 7k 3.5in Hot-Plug per Enclosure 3.5" | G34: =VLOOKUP($E34,ConfigurationTS4L3!#REF!,13,FALSE) ->  | M34: =VLOOKUP($E34,TS4L4_ALL,11,FALSE)*H34 ->  | N34: =VLOOKUP($E34,TS4L4_ALL,12,FALSE) -> 
E35: HDD 8TB SAS 12Gbps 7k 3.5in Hot-Plug per Enclosure 3.5" | G35: =VLOOKUP($E35,ConfigurationTS4L3!#REF!,13,FALSE) ->  | M35: =VLOOKUP($E35,TS4L4_ALL,11,FALSE)*H35 ->  | N35: =VLOOKUP($E35,TS4L4_ALL,12,FALSE) -> 
E37: Enclosure Dischi SAS 2.5" (No disk)
E38: Enclosure SAS 12 Slot 2.5", 3YR ProSupport and 4hr Mission Critical | G38: =VLOOKUP($E38,TS4L4_ALL,13,FALSE) ->  | M38: =VLOOKUP($E38,TS4L4_ALL,11,FALSE)*H38 ->  | N38: =VLOOKUP($E38,TS4L4_ALL,12,FALSE) -> 
E39: Enclosure SAS 12 Slot 2.5", 5YR ProSupport and 4hr Mission Critical | G39: =VLOOKUP($E39,ConfigurationTS4L3!#REF!,13,FALSE) ->  | M39: =VLOOKUP($E39,TS4L4_ALL,11,FALSE)*H39 ->  | N39: =VLOOKUP($E39,TS4L4_ALL,12,FALSE) -> 
E40: Dischi per Enclosure 2.5"
E41: HDD 2400GB 10K SAS 12Gbps 2.5in Hot-plug per Enclosure 2.5" | G41: =VLOOKUP($E41,ConfigurationTS4L3!#REF!,13,FALSE) ->  | M41: =VLOOKUP($E41,TS4L4_ALL,11,FALSE)*H41 ->  | N41: =VLOOKUP($E41,TS4L4_ALL,12,FALSE) -> 
E42: SSD 960GB SAS RI 12Gbps 2.5in Hot-plug, 1 DWPD per Enclosure 2.5" | G42: =VLOOKUP($E42,TS4L4_ALL,13,FALSE) ->  | M42: =VLOOKUP($E42,TS4L4_ALL,11,FALSE)*H42 ->  | N42: =VLOOKUP($E42,TS4L4_ALL,12,FALSE) -> 
E45: NVIDIA Virtual GPU Software Packaging
E46: NVIDIA vApps Subscription License 1 Year, 1 CCU | G46: =VLOOKUP($E46,TS4L4_ALL,13,FALSE) ->  | M46: =VLOOKUP($E46,TS4L4_ALL,11,FALSE)*H46 ->  | N46: =VLOOKUP($E46,TS4L4_ALL,12,FALSE) -> 
E47: NVIDIA vApps Subscription License 3 Years, 1 CCU | G47: =VLOOKUP($E47,TS4L4_ALL,13,FALSE) ->  | M47: =VLOOKUP($E47,TS4L4_ALL,11,FALSE)*H47 ->  | N47: =VLOOKUP($E47,TS4L4_ALL,12,FALSE) -> 
E48: NVIDIA vApps Subscription License 5 Years, 1 CCU | G48: =VLOOKUP($E48,TS4L4_ALL,13,FALSE) ->  | M48: =VLOOKUP($E48,TS4L4_ALL,11,FALSE)*H48 ->  | N48: =VLOOKUP($E48,TS4L4_ALL,12,FALSE) -> 
E49: NVIDIA vPC Subscription License 1 Year, 1 CCU | G49: =VLOOKUP($E49,TS4L4_ALL,13,FALSE) ->  | M49: =VLOOKUP($E49,TS4L4_ALL,11,FALSE)*H49 ->  | N49: =VLOOKUP($E49,TS4L4_ALL,12,FALSE) -> 
E50: NVIDIA vPC Subscription License 3 Years, 1 CCU | G50: =VLOOKUP($E50,TS4L4_ALL,13,FALSE) ->  | M50: =VLOOKUP($E50,TS4L4_ALL,11,FALSE)*H50 ->  | N50: =VLOOKUP($E50,TS4L4_ALL,12,FALSE) -> 
E51: NVIDIA vPC Subscription License 5 Years, 1 CCU | G51: =VLOOKUP($E51,TS4L4_ALL,13,FALSE) ->  | M51: =VLOOKUP($E51,TS4L4_ALL,11,FALSE)*H51 ->  | N51: =VLOOKUP($E51,TS4L4_ALL,12,FALSE) -> 
E52: NVIDIA RTX vWS Subscription License 1 Year, 1 CCU | G52: =VLOOKUP($E52,TS4L4_ALL,13,FALSE) ->  | M52: =VLOOKUP($E52,TS4L4_ALL,11,FALSE)*H52 ->  | N52: =VLOOKUP($E52,TS4L4_ALL,12,FALSE) -> 
E53: NVIDIA RTX vWS Subscription License 3 Years, 1 CCU | G53: =VLOOKUP($E53,TS4L4_ALL,13,FALSE) ->  | M53: =VLOOKUP($E53,TS4L4_ALL,11,FALSE)*H53 ->  | N53: =VLOOKUP($E53,TS4L4_ALL,12,FALSE) -> 
E54: NVIDIA RTX vWS Subscription License 5 Years, 1 CCU | G54: =VLOOKUP($E54,TS4L4_ALL,13,FALSE) ->  | M54: =VLOOKUP($E54,TS4L4_ALL,11,FALSE)*H54 ->  | N54: =VLOOKUP($E54,TS4L4_ALL,12,FALSE) -> 
E55: NVIDIA Virtual Compute Server Subscription, 1 GPU (Max 8 CC VMs), 1 Year | G55: =VLOOKUP($E55,TS4L4_ALL,13,FALSE) ->  | M55: =VLOOKUP($E55,TS4L4_ALL,11,FALSE)*H55 ->  | N55: =VLOOKUP($E55,TS4L4_ALL,12,FALSE) -> 
E56: NVIDIA Virtual Compute Server Subscription, 1 GPU (Max 8 CC VMs), 3 Years | G56: =VLOOKUP($E56,TS4L4_ALL,13,FALSE) ->  | M56: =VLOOKUP($E56,TS4L4_ALL,11,FALSE)*H56 ->  | N56: =VLOOKUP($E56,TS4L4_ALL,12,FALSE) -> 
E57: NVIDIA Virtual Compute Server Subscription, 1 GPU (Max 8 CC VMs), 5 Years | G57: =VLOOKUP($E57,TS4L4_ALL,13,FALSE) ->  | M57: =VLOOKUP($E57,TS4L4_ALL,11,FALSE)*H57 ->  | N57: =VLOOKUP($E57,TS4L4_ALL,12,FALSE) -> 
E58: NVIDIA vApps Bundle Perpetual License Plus 4yr vApps SUMS, 1CCU | G58: =VLOOKUP($E58,TS4L4_ALL,13,FALSE) ->  | M58: =VLOOKUP($E58,TS4L4_ALL,11,FALSE)*H58 ->  | N58: =VLOOKUP($E58,TS4L4_ALL,12,FALSE) -> 
E59: NVIDIA vApps Bundle Perpetual License Plus 5yr vApps SUMS, 1CCU | G59: =VLOOKUP($E59,TS4L4_ALL,13,FALSE) ->  | M59: =VLOOKUP($E59,TS4L4_ALL,11,FALSE)*H59 ->  | N59: =VLOOKUP($E59,TS4L4_ALL,12,FALSE) -> 
E60: NVIDIA vPC Bundle Perpetual License Plus 4yr vPC SUMS, 1CCU | G60: =VLOOKUP($E60,TS4L4_ALL,13,FALSE) ->  | M60: =VLOOKUP($E60,TS4L4_ALL,11,FALSE)*H60 ->  | N60: =VLOOKUP($E60,TS4L4_ALL,12,FALSE) -> 
E61: NVIDIA vPC Bundle Perpetual License Plus 5yr vPC SUMS, 1CCU | G61: =VLOOKUP($E61,TS4L4_ALL,13,FALSE) ->  | M61: =VLOOKUP($E61,TS4L4_ALL,11,FALSE)*H61 ->  | N61: =VLOOKUP($E61,TS4L4_ALL,12,FALSE) -> 
E62: NVIDIA RTX vWS Bundle Perpetual License Plus 4yr RTX vWS SUMS, 1CCU | G62: =VLOOKUP($E62,TS4L4_ALL,13,FALSE) ->  | M62: =VLOOKUP($E62,TS4L4_ALL,11,FALSE)*H62 ->  | N62: =VLOOKUP($E62,TS4L4_ALL,12,FALSE) -> 
E63: NVIDIA RTX vWS Bundle Perpetual License Plus 5yr RTX vWS SUMS, 1CCU | G63: =VLOOKUP($E63,TS4L4_ALL,13,FALSE) ->  | M63: =VLOOKUP($E63,TS4L4_ALL,11,FALSE)*H63 ->  | N63: =VLOOKUP($E63,TS4L4_ALL,12,FALSE) -> 
E64: NVIDIA vPC to NVIDIA RTX vWS Upgrade 4 year SUMS Bundle | G64: =VLOOKUP($E64,TS4L4_ALL,13,FALSE) ->  | M64: =VLOOKUP($E64,TS4L4_ALL,11,FALSE)*H64 ->  | N64: =VLOOKUP($E64,TS4L4_ALL,12,FALSE) -> 
E65: NVIDIA vPC to NVIDIA RTX vWS Upgrade 5 year SUMS Bundle | G65: =VLOOKUP($E65,TS4L4_ALL,13,FALSE) ->  | M65: =VLOOKUP($E65,TS4L4_ALL,11,FALSE)*H65 ->  | N65: =VLOOKUP($E65,TS4L4_ALL,12,FALSE) -> 
E68: OpzUps (3000VA)
E69: =ConfigurationTS4L3!A116 -> UPS PowerMe RPMM/9K - 3000VA | G69: =VLOOKUP($E69,TS4L3_UPS,13,FALSE) -> TS4L3-UPS | H69: 0 | J69: =L69 -> 0 | L69: =VLOOKUP($E69,TS4L3_UPS,10,FALSE)*H69 -> 0 | M69: =VLOOKUP($E69,TS4L3_UPS,11,FALSE)*I69 -> 0 | N69: =VLOOKUP($E69,TS4L3_UPS,12,FALSE) -> L3N15
E72: OpzGUI
E73: =ConfigurationTS4L3!A120 -> Unità KVM - monitor 17", cavo combi PS/2&USB | G73: =VLOOKUP($E73,TS4L3_GUI,13,FALSE) -> TS4L3-GUI | H73: 0 | J73: =L73 -> 0 | L73: =VLOOKUP($E73,TS4L3_GUI,10,FALSE)*H73 -> 0 | M73: =VLOOKUP($E73,TS4L3_GUI,11,FALSE)*H73 -> 0 | N73: =VLOOKUP($E73,TS4L3_GUI,12,FALSE) -> L3N16
E76: OpzKVM
E77: =ConfigurationTS4L3!A124 -> KVM Switch IP per GUI 16P | G77: =VLOOKUP($E77,TS4L3_KVM,13,FALSE) -> TS4L3-KVM | H77: 0 | J77: =L77 -> 0 | L77: =VLOOKUP($E77,TS4L3_KVM,10,FALSE)*H77 -> 0 | M77: =VLOOKUP($E77,TS4L3_KVM,11,FALSE)*H77 -> 0 | N77: =VLOOKUP($E77,TS4L3_KVM,12,FALSE) -> L3N17

Sheet Riepilogo_Ordine
F2: Convenzione Tecnologie Server 4 - Lotto 3 | I2: =IF(P8>0,"Compilare i Dati Necessari (*) all'Ordine o controllare le Configurazioni per Stampare in PDF","Dati Completi") -> Compilare i Dati Necessari (*) all'Ordine o controllare le Configurazioni per Stampare in PDF | Y2: SI
F3: Riepilogo Ordine Consip N° (*) | R3: 0 | S3: 0 | T3: 1 | V3: =SUM(R3:T3) -> 1 | Y3: SI
Y4: SI
F5: Ente Ordinante (*) | I5: Data Ordine (*) | P5: Ordine | Q5: Ente | R5: data | S5: Ref Cons | T5: mail | U5: tel | V5: Ref Inst | W5: mail | X5: Tel | Y5: SI
P6: =IF(F4>0,0,1) -> 1 | Q6: =IF(F6>0,0,1) -> 1 | R6: =IF(I6>0,0,1) -> 1 | S6: =IF(F8>0,0,1) -> 1 | T6: =IF(H8>0,0,1) -> 1 | U6: =IF(J8>0,0,1) -> 1 | V6: =IF(F10>0,0,1) -> 1 | W6: =IF(H10>0,0,1) -> 1 | X6: =IF(J10>0,0,1) -> 1 | Y6: SI
F7: Referente Consegna (*) | H7: Mail (*) | J7: Tel (*) | X7: 0.2 | Y7: SI
P8: =SUM(P6:X6)+SUM(R10:T10)+X8 -> 9 | R8: =IF(F11<>"",1,0) -> 0 | S8: =IF(H11<>"",1,0) -> 0 | T8: =IF(I11<>"",1,0) -> 0 | V8: =SUM(R8:T8) -> 0 | X8: 0 | Y8: SI
F9: Referente Installazione (*) | H9: Mail (*) | J9: Tel (*) | Y9: SI
R10: =IF(Lotto3_SR650_1!H4<>"",1,0) -> 0 | S10: =IF(Lotto3_SR650_2!H4<>"",1,0) -> 0 | T10: =IF(SR650_Iper_Convergenza!H4<>"",1,0) -> 0 | Y10: SI
F11: =IF(R10>0,"Errore nella Configurazione 1","") ->  | H11: =IF(S10>0,"Errore nella Configurazione 2","") ->  | I11: =IF(T10>0,"Errore nella Configurazione Iper Convergenza","") ->  | Y11: SI
F12: Articoli in convenzione | R12: Config 1 | S12: Config 2 | T12: Config 3 | U12: Totale | Y12: SI
F13: Codice Produttore | G13: Codice Convenzione | H13: Descrizione | I13: Qtà | J13: Costo unitario | K13: Costo Totale | P13: N° | Q13: Codice Convenzione | R13: =IF(R10>0,0,Lotto3_SR650_1!I8) -> 0 | S13: =IF(S10>0,0,Lotto3_SR650_2!I8) -> 0 | T13: =IF(T10>0,0,SR650_Iper_Convergenza!I8) -> 0 | Y13: SI
F14: =IF(I14="","",VLOOKUP(P14,Tabella_Prezzi,10,FALSE)) ->  | G14: =IF(I14="","",VLOOKUP(P14,Tabella_Prezzi,6,FALSE)) ->  | H14: =IF(I14="","",VLOOKUP(P14,Tabella_Prezzi,8,FALSE)) ->  | I14: =IF(U14>0,U14,"") ->  | J14: =IF(I14="","",VLOOKUP(P14,Tabella_Prezzi,4,FALSE)) ->  | K14: =IF(F14="","",J14*I14) ->  | P14: L3N01 | Q14: TS4L4-SRV | R14: =COUNTIF(TS4L3_1,P14)*$R$13 -> 0 | S14: =COUNTIF(TS4L3_2,P14)*$S$13 -> 0 | T14: =COUNTIF(TS4L3_3,P14)*$T$13 -> 0 | U14: =SUM(R14:T14) -> 0 | Y14: =IF(I14<>"","SI","NO") -> NO
F15: =IF(I15="","",VLOOKUP(P15,Tabella_Prezzi,10,FALSE)) ->  | G15: =IF(I15="","",VLOOKUP(P15,Tabella_Prezzi,6,FALSE)) ->  | H15: =IF(I15="","",VLOOKUP(P15,Tabella_Prezzi,8,FALSE)) ->  | I15: =IF(U15>0,U15,"") ->  | J15: =IF(I15="","",VLOOKUP(P15,Tabella_Prezzi,4,FALSE)) ->  | K15: =IF(F15="","",J15*I15) ->  | P15: L3N01-NVMe | Q15: TS4L4-SRV-NVMe | R15: =COUNTIF(TS4L3_1,P15)*$R$13 -> 0 | S15: =COUNTIF(TS4L3_2,P15)*$S$13 -> 0 | T15: =COUNTIF(TS4L3_3,P15)*$T$13 -> 0 | U15: 0 | Y15: =IF(I15<>"","SI","NO") -> NO
F16: =IF(I16="","",VLOOKUP(P16,Tabella_Prezzi,10,FALSE)) ->  | G16: =IF(I16="","",VLOOKUP(P16,Tabella_Prezzi,6,FALSE)) ->  | H16: =IF(I16="","",VLOOKUP(P16,Tabella_Prezzi,8,FALSE)) ->  | I16: =IF(U16>0,U16,"") ->  | J16: =IF(I16="","",VLOOKUP(P16,Tabella_Prezzi,4,FALSE)) ->  | K16: =IF(F16="","",J16*I16) ->  | P16: L3N01-vSAN | Q16: TS4L4-SRV-vSAN | R16: =COUNTIF(TS4L3_1,P16)*$R$13 -> 0 | S16: =COUNTIF(TS4L3_2,P16)*$S$13 -> 0 | T16: =COUNTIF(TS4L3_3,P16)*$T$13 -> 0 | U16: 0 | Y16: =IF(I16<>"","SI","NO") -> NO
F17: =IF(I17="","",VLOOKUP(P17,Tabella_Prezzi,10,FALSE)) ->  | G17: =IF(I17="","",VLOOKUP(P17,Tabella_Prezzi,6,FALSE)) ->  | H17: =IF(I17="","",VLOOKUP(P17,Tabella_Prezzi,8,FALSE)) ->  | I17: =IF(U17>0,U17,"") ->  | J17: =IF(I17="","",VLOOKUP(P17,Tabella_Prezzi,4,FALSE)) ->  | K17: =IF(F17="","",J17*I17) ->  | P17: L3N02 | Q17: TS4L4-CPU | R17: =COUNTIF(TS4L3_1,P17)*$R$13 -> 0 | S17: =COUNTIF(TS4L3_2,P17)*$S$13 -> 0 | T17: =COUNTIF(TS4L3_3,P17)*$T$13 -> 0 | U17: 0 | Y17: =IF(I17<>"","SI","NO") -> NO
I18: =IF(U18>0,U18,"") ->  | K18: =IF(F18="","",J18*I18) ->  | P18: L3N03 | Q18: TS4L3-RAM32 | R18: =COUNTIF(TS4L3_1,P18)*Lotto3_SR650_1!I26*$R$13 -> 0 | S18: =COUNTIF(TS4L3_2,P18)*Lotto3_SR650_2!I26*$S$13 -> 0 | T18: =COUNTIF(TS4L3_3,P18)*SR650_Iper_Convergenza!I26*$T$13 -> 0 | U18: 0 | Y18: =IF(I18<>"","SI","NO") -> NO
P19: L3N04 | Q19: TS4L3-RAM64 | R19: =COUNTIF(TS4L3_1,P19)*Lotto3_SR650_1!I26*$R$13 -> 0 | S19: =COUNTIF(TS4L3_2,P19)*Lotto3_SR650_2!I26*$S$13 -> 0 | T19: =COUNTIF(TS4L3_3,P19)*SR650_Iper_Convergenza!I26*$T$13 -> 0 | U19: 0 | Y19: NO
P20: L3N05 | Q20: TS4L3-LAN1 | R20: =COUNTIF(TS4L3_1,P20)*$R$13 -> 0 | S20: =COUNTIF(TS4L3_2,P20)*$S$13 -> 0 | T20: =COUNTIF(TS4L3_3,P20)*$T$13 -> 0 | U20: 0 | Y20: NO
P21: L3N06 | Q21: TS4L3-LAN10 | R21: 0 | S21: 0 | T21: 0 | U21: 0 | Y21: NO
P22: L3N07 | Q22: TS4L3-LAN25 | R22: 0 | S22: 0 | T22: 0 | U22: 0 | Y22: NO
P23: L3N08 | Q23: TS4L3-CNA10 | R23: 0 | S23: 0 | T23: 0 | U23: 0 | Y23: NO
P24: L3N09 | Q24: TS4L3-BaseT | R24: 0 | S24: 0 | T24: 0 | U24: 0 | Y24: NO
P25: L3N10 | Q25: TS4L3- FibreChannel | R25: 0 | S25: 0 | T25: 0 | U25: 0 | Y25: NO
P26: L3N11 | Q26: TS4L3-HDD8TB | R26: =COUNTIF(TS4L3_1,P26)*V26*$R$13 -> 0 | S26: =COUNTIF(TS4L3_2,P26)*W26*$S$13 -> 0 | T26: =COUNTIF(TS4L3_3,P26)*X26*$T$13 -> 0 | U26: 0 | V26: =Lotto3_SR650_1!I45 -> 0 | W26: =Lotto3_SR650_2!I45 -> 1 | X26: =SR650_Iper_Convergenza!I45 -> 0 | Y26: NO
P27: L3N12 | Q27: TS4L3-HDD2TB | R27: 0 | S27: 0 | T27: 0 | U27: 0 | V27: =Lotto3_SR650_1!I47 -> 0 | W27: =Lotto3_SR650_2!I47 -> 2 | X27: =SR650_Iper_Convergenza!I47 -> 0 | Y27: NO
P28: L3N13 | Q28: TS4L3-HDD1TB | R28: 0 | S28: 0 | T28: 0 | U28: 0 | V28: =Lotto3_SR650_1!I49 -> 0 | W28: =Lotto3_SR650_2!I49 -> 3 | X28: =SR650_Iper_Convergenza!I49 -> 0 | Y28: NO
P29: L3N14 | Q29: TS4L3-HDD12TB | R29: 0 | S29: 0 | T29: 0 | U29: 0 | V29: =Lotto3_SR650_1!I51 -> 0 | W29: =Lotto3_SR650_2!I51 -> 0 | X29: =SR650_Iper_Convergenza!I51 -> 8 | Y29: NO
F30: =IF(I30="","",VLOOKUP(P30,Tabella_Prezzi,10,FALSE)) ->  | G30: =IF(I30="","",VLOOKUP(P30,Tabella_Prezzi,6,FALSE)) ->  | H30: =IF(I30="","",VLOOKUP(P30,Tabella_Prezzi,8,FALSE)) ->  | I30: =IF(U30>0,U30,"") ->  | J30: =IF(I30="","",VLOOKUP(P30,Tabella_Prezzi,4,FALSE)) ->  | K30: =IF(F30="","",J30*I30) ->  | P30: L3N26 | Q30: TS4L3-SSD-RI3,8TB | R30: 0 | S30: 0 | T30: 0 | U30: 0 | V30: =Lotto3_SR650_1!I53 -> 0 | W30: =Lotto3_SR650_2!I53 -> 0 | X30: =SR650_Iper_Convergenza!I53 -> 4 | Y30: =IF(I30<>"","SI","NO") -> NO
F31: =IF(I31="","",VLOOKUP(P31,Tabella_Prezzi,10,FALSE)) ->  | G31: =IF(I31="","",VLOOKUP(P31,Tabella_Prezzi,6,FALSE)) ->  | H31: =IF(I31="","",VLOOKUP(P31,Tabella_Prezzi,8,FALSE)) ->  | I31: =IF(U31>0,U31,"") ->  | J31: =IF(I31="","",VLOOKUP(P31,Tabella_Prezzi,4,FALSE)) ->  | K31: =IF(F31="","",J31*I31) ->  | P31: L3N27 | Q31: TS4L3-SSD-RI1,6TB | R31: 0 | S31: 0 | T31: 0 | U31: 0 | V31: =Lotto3_SR650_1!I55 -> 0 | W31: =Lotto3_SR650_2!I55 -> 0 | X31: =SR650_Iper_Convergenza!I55 -> 0 | Y31: =IF(I31<>"","SI","NO") -> NO
P32: L3N15 | Q32: TS4L3-UPS | U32: =Altre_Opzioni!H69 -> 0 | Y32: NO
P33: L3N16 | Q33: TS4L3-GUI | U33: =Altre_Opzioni!H73 -> 0 | Y33: NO
P34: L3N17 | Q34: TS4L3-KVM | U34: =Altre_Opzioni!H77 -> 0 | Y34: NO
P35: L3N18 | Q35: TS4L3-WINSRVSTD | R35: =COUNTIF(TS4L3_1,P35)*V35*$R$13 -> 0 | S35: =COUNTIF(TS4L3_2,P35)*W35*$S$13 -> 0 | T35: =COUNTIF(TS4L3_3,P35)*X35*$T$13 -> 0 | U35: 0 | V35: =Lotto3_SR650_1!I29 -> 0 | Y35: NO
P36: L3N19 | Q36: TS4L3-WINDEVCAL | R36: =COUNTIF(TS4L3_1,P36)*V36*$R$13 -> 0 | S36: =COUNTIF(TS4L3_2,P36)*W36*$S$13 -> 0 | T36: =COUNTIF(TS4L3_3,P36)*X36*$T$13 -> 0 | U36: 0 | V36: =Lotto3_SR650_1!I33 -> 0 | Y36: NO
P37: L3N20 | Q37: TS4L3-WINUSRCAL | R37: =COUNTIF(TS4L3_1,P37)*V37*$R$13 -> 0 | S37: =COUNTIF(TS4L3_2,P37)*W37*$S$13 -> 0 | T37: =COUNTIF(TS4L3_3,P37)*X37*$T$13 -> 0 | U37: 0 | V37: =Lotto3_SR650_1!I34 -> 0 | Y37: NO
P38: L3N21 | Q38: TS4L3-WINSRV2C | R38: =COUNTIF(TS4L3_1,P38)*V38*$R$13 -> 0 | S38: =COUNTIF(TS4L3_2,P38)*W38*$S$13 -> 0 | T38: =COUNTIF(TS4L3_3,P38)*X38*$T$13 -> 0 | U38: 0 | V38: =Lotto3_SR650_1!I30 -> 0 | Y38: NO
P39: L3N22 | Q39: TS4L3-LINUX | R39: =COUNTIF(TS4L3_1,P39)*$R$13 -> 0 | S39: =COUNTIF(TS4L3_2,P39)*$S$13 -> 0 | T39: =COUNTIF(TS4L3_3,P39)*$T$13 -> 0 | U39: 0 | V39: =Lotto3_SR650_1!I29 -> 0 | Y39: NO
P40: L3N23 | Q40: TS4L3-HDRTN36 | R40: =COUNTIF(TS4L3_1,P40)*$R$13 -> 0 | S40: =COUNTIF(TS4L3_2,P40)*$S$13 -> 0 | T40: =COUNTIF(TS4L3_3,P40)*$T$13 -> 0 | U40: 0 | Y40: NO
P41: L3N23E | Q41: TS4L3-HDRTN60 | R41: =COUNTIF(TS4L3_1,P41)*$R$13 -> 0 | S41: =COUNTIF(TS4L3_2,P41)*$S$13 -> 0 | T41: =COUNTIF(TS4L3_3,P41)*$T$13 -> 0 | U41: 0 | Y41: NO
P42: L3N24 | Q42: TS4L3-OpzEst24 | U42: 0 | Y42: NO
P43: L3N25 | Q43: TS4L3-RACK | U43: 0 | Y43: NO
Y44: SI
F45: =IF(G99<0,"Superata Quota 20%","") ->  | Y45: =IF($K$98>0,"SI","NO") -> NO
F46: Opzioni 20 % | R46: Config 1 | S46: Config 2 | T46: Config 3 | U46: Totale | Y46: =IF($K$98>0,"SI","NO") -> NO
F47: Codice Produttore | G47: Codice Convenzione | H47: Descrizione | I47: Qtà | J47: Costo unitario | K47: Costo Totale | P47: N° | Q47: Codice Convenzione | R47: 0 | S47: 0 | T47: 0 | U47: =SUM(R47:T47) -> 0 | V47: Quantità 1 | W47: Quantità 2 | X47: Quantità 3 | Y47: =IF($K$98>0,"SI","NO") -> NO
F48: =IF(I48="","",VLOOKUP(P48,Tabella_Prezzi,10,FALSE)) ->  | G48: =IF(I48="","",VLOOKUP(P48,Tabella_Prezzi,6,FALSE)) ->  | H48: =IF(I48="","",VLOOKUP(P48,Tabella_Prezzi,8,FALSE)) ->  | I48: =IF(U48>0,U48,"") ->  | J48: =IF(I48="","",VLOOKUP(P48,Tabella_Prezzi,4,FALSE)) ->  | K48: =IF(F48="","",J48*I48) ->  | P48: L3N50 | Q48: TS4L3-DiskController | R48: =COUNTIF(TS4L3_1,P48)*$R$13 -> 0 | S48: =COUNTIF(TS4L3_2,P48)*$S$13 -> 0 | T48: =COUNTIF(TS4L3_3,P48)*$T$13 -> 0 | U48: =SUM(R48:T48) -> 0 | Y48: =IF($I48<>"","SI","NO") -> NO
I49: =IF(U49>0,U49,"") ->  | K49: =IF(F49="","",J49*I49) ->  | P49: L3N51 | Q49: TS4L3-PSU | R49: =COUNTIF(TS4L3_1,P49)*$R$13 -> 0 | S49: =COUNTIF(TS4L3_2,P49)*$S$13 -> 0 | T49: =COUNTIF(TS4L3_3,P49)*$T$13 -> 0 | U49: 0 | Y49: =IF($I49<>"","SI","NO") -> NO
G50: =IF(I50="","",VLOOKUP(P50,Tabella_Prezzi,6,FALSE)) ->  | I50: =IF(U50>0,U50,"") ->  | K50: =IF(F50="","",J50*I50) ->  | P50: L3N52 | Q50: TS4L3-VROC | R50: =COUNTIF(TS4L3_1,P50)*$R$13 -> 0 | S50: =COUNTIF(TS4L3_2,P50)*$S$13 -> 0 | T50: =COUNTIF(TS4L3_3,P50)*$T$13 -> 0 | U50: 0 | Y50: NO
P51: L3N53 | Q51: TS4L3-RAID | R51: =COUNTIF(TS4L3_1,P51)*$R$13 -> 0 | S51: =COUNTIF(TS4L3_2,P51)*$S$13 -> 0 | T51: =COUNTIF(TS4L3_3,P51)*$T$13 -> 0 | U51: 0 | Y51: NO
P52: L3N54 | Q52: TS4L3-SSDSAS3.2TBMU | R52: =COUNTIF(TS4L3_1,P52)*V52*$R$13 -> 0 | S52: =COUNTIF(TS4L3_2,P52)*W52*$S$13 -> 0 | T52: =COUNTIF(TS4L3_3,P52)*X52*$T$13 -> 0 | U52: =SUM(R52:T52) -> 0 | V52: =Lotto3_SR650_1!I57 -> 0 | W52: 0 | X52: 0 | Y52: =IF($I52<>"","SI","NO") -> NO
P53: L3N55 | Q53: TS4L3-SSDSAS6.4TBMU | R53: 0 | S53: 0 | T53: 0 | U53: =SUM(R53:T53) -> 0 | V53: =Lotto3_SR650_1!I59 -> 0 | W53: 0 | X53: 0 | Y53: NO
P54: L3N56 | Q54: TS4L3-SSDSAS7.68TBRI | R54: 0 | S54: 0 | T54: 0 | U54: 0 | V54: =Lotto3_SR650_1!I61 -> 0 | W54: 0 | X54: 0 | Y54: NO
P55: L3N57 | Q55: TS4L3-SSDSAS15.36TBRI | R55: 0 | S55: 0 | T55: 0 | U55: 0 | V55: =Lotto3_SR650_1!I63 -> 0 | W55: 0 | X55: 0 | Y55: NO
P56: L3N58 | Q56: TS4L3-SSDSATA3.84TBRI | R56: 0 | S56: 0 | T56: 0 | U56: =SUM(R56:T56) -> 0 | V56: =Lotto3_SR650_1!I65 -> 0 | Y56: =IF($I56<>"","SI","NO") -> NO
P57: L3N59 | Q57: TS4L3-SSDSATA7.68TBRI | R57: 0 | S57: 0 | T57: 0 | U57: =SUM(R57:T57) -> 0 | V57: =Lotto3_SR650_1!I67 -> 0 | W57: 0 | X57: 0 | Y57: NO
P58: L3N60 | Q58: TS4L3-HDD_SAS20TB_HW | R58: 0 | S58: 0 | T58: 0 | U58: 0 | V58: =Lotto3_SR650_1!I69 -> 0 | W58: 0 | X58: 0 | Y58: NO
P59: L3N61 | Q59: TS4L3-HDD_SATA16TB_HW | R59: 0 | S59: 0 | T59: 0 | U59: 0 | V59: =Lotto3_SR650_1!I71 -> 0 | W59: 0 | X59: 0 | Y59: NO
P60: L3N62 | Q60: TS4L3-HDD_SAS16TB_HW | R60: 0 | S60: 0 | T60: 0 | U60: 0 | V60: =Lotto3_SR650_1!I73 -> 0 | W60: 0 | X60: 0 | Y60: =IF($I60<>"","SI","NO") -> NO
P61: L3N63 | Q61: TS4L3-SSD_SAS800GB_WI | R61: 0 | S61: 0 | T61: 0 | U61: 0 | V61: =Lotto3_SR650_1!I75 -> 0 | W61: 0 | X61: 0 | Y61: NO
P62: L3N64 | Q62: TS4L3-SSD_SAS1.6TB_WI | R62: 0 | S62: 0 | T62: 0 | U62: 0 | V62: =Lotto3_SR650_1!I77 -> 0 | W62: 0 | X62: 0 | Y62: NO
P63: L3N65 | Q63: TS4L3-SSD_SAS3.2TB_WI | R63: 0 | S63: 0 | T63: 0 | U63: 0 | V63: =Lotto3_SR650_1!I79 -> 0 | W63: 0 | X63: 0 | Y63: NO
P64: L3N66 | Q64: TS4L3-NUTANIX-A | R64: =COUNTIF(TS4L3_1,P64)*$R$13 -> 0 | S64: =COUNTIF(TS4L3_2,P64)*$S$13 -> 0 | T64: =COUNTIF(TS4L3_3,P64)*$T$13 -> 0 | U64: =SUM(R64:T64) -> 0 | Y64: =IF($I64<>"","SI","NO") -> NO
P65: L3N67 | Q65: TS4L3-NUTANIX-B | R65: 0 | S65: 0 | T65: 0 | U65: =SUM(R65:T65) -> 0 | Y65: NO
P66: L3N68 | Q66: TS4L3-NUTANIX-C | R66: 0 | S66: 0 | T66: 0 | U66: 0 | Y66: NO
P67: L3N69 | Q67: TS4L3-vSAN-A | R67: 0 | S67: 0 | T67: 0 | U67: 0 | Y67: NO
P68: L3N70 | Q68: TS4L3-vSAN-B | R68: 0 | S68: 0 | T68: 0 | U68: =SUM(R68:T68) -> 0 | Y68: =IF($I68<>"","SI","NO") -> NO
P69: L3N71 | Q69: TS4L3-vSAN-C | R69: 0 | S69: 0 | T69: 0 | U69: =SUM(R69:T69) -> 0 | Y69: NO
P70: L3N72 | Q70: TS4L3-PCI-BaseT-57454 | R70: 0 | S70: 0 | T70: 0 | U70: 0 | Y70: NO
P71: L3N73 | Q71: TS4L3-PCI-10/25GB-57454 | R71: 0 | S71: 0 | T71: 0 | U71: 0 | Y71: NO
P72: L3N74 | Q72: TS4L3-CX6-10/25GB-2Port | R72: 0 | S72: 0 | T72: 0 | U72: =SUM(R72:T72) -> 0 | Y72: =IF($I72<>"","SI","NO") -> NO
P73: L3N75 | Q73: TS4L3-CX6-100GB-2Port | R73: 0 | S73: 0 | T73: 0 | U73: =SUM(R73:T73) -> 0 | Y73: NO
P74: L3N76 | Q74: TS4L3-CX4-10/25GB-2Port | R74: 0 | S74: 0 | T74: 0 | U74: 0 | Y74: NO
P75: L3N77 | Q75: TS4L3-SFP28-10/25GB | R75: 0 | S75: 0 | T75: 0 | U75: 0 | Y75: NO
P76: L3N78 | Q76: TS4L3-SFP28.85C-10/25GB | R76: 0 | S76: 0 | T76: 0 | U76: 0 | Y76: NO
P77: L3N79 | Q77: TS4L3-SFP28-25GB | R77: 0 | S77: 0 | T77: 0 | U77: 0 | Y77: NO
P78: L3N80 | Q78: TS4L3-SFP+SR | R78: 0 | S78: 0 | T78: 0 | U78: 0 | Y78: =IF($I78<>"","SI","NO") -> NO
P79: L3N81 | Q79: TS4L3-QSFP28-100GBBase | R79: 0 | S79: 0 | T79: 0 | U79: 0 | Y79: NO
P80: L3N82 | Q80: TS4L3-QSFP28-100GB | R80: 0 | S80: 0 | T80: 0 | U80: 0 | Y80: NO
P81: L3N83 | Q81: TS4L3-FC-32GB-2Port | R81: 0 | S81: 0 | T81: 0 | U81: 0 | Y81: NO
P82: L3N84 | Q82: TS4L3-FC-64GB-2Port | R82: 0 | S82: 0 | T82: 0 | U82: 0 | Y82: =IF($I82<>"","SI","NO") -> NO
P83: L3N85 | Q83: TS4L3-MMF.Cable-5Mt-OM3 | R83: 0 | S83: 0 | T83: 0 | U83: 0 | Y83: NO
P84: L3N86 | Q84: TS4L3-MMF.Cable-5Mt-OM4 | R84: 0 | S84: 0 | T84: 0 | U84: 0 | Y84: NO
P85: L3N87 | Q85: TS4L3-MMF.Cable-15Mt-OM3 | R85: 0 | S85: 0 | T85: 0 | U85: 0 | Y85: NO
P86: L3N88 | Q86: TS4L3-MMF.Cable-25Mt-OM3 | R86: 0 | S86: 0 | T86: 0 | U86: 0 | Y86: NO
P87: L3N89 | Q87: TS4L3-MMF.Cable-15Mt-OM4 | R87: 0 | S87: 0 | T87: 0 | U87: 0 | Y87: NO
P88: L3N90 | Q88: TS4L3-MMF.Cable-25Mt-OM4 | R88: 0 | S88: 0 | T88: 0 | U88: 0 | Y88: NO
P89: L3N91 | Q89: TS4L3-MMF.Cable-3Mt-OM3 | R89: 0 | S89: 0 | T89: 0 | U89: 0 | Y89: =IF($I89<>"","SI","NO") -> NO
P90: L3N92 | Q90: TS4L3-MMF.Cable-3Mt-OM4 | R90: 0 | S90: 0 | T90: 0 | U90: 0 | Y90: NO
P91: L3N93 | Q91: TS4L3-CPU5315 | R91: 0 | S91: 0 | T91: 0 | U91: 0 | Y91: NO
P92: L3N94 | Q92: TS4L3-CPU6326 | Y92: NO
Y93: SI
Y94: SI
Y95: SI
Y96: SI
I97: Totale Convenzione | K97: =SUM(K14:K43) -> 0 | Y97: SI
F98: Quota Massima 20% | G98: =K100*20% -> 0 | I98: Totale 20% | K98: =SUM(K48:K93) -> 0 | Y98: SI
F99: Quota Residua 20% | G99: =G98-K98 -> 0 | I99: Totale Iva Esclusa | K99: =K97+K98 -> 0 | Y99: SI
I100: Totale Ordine | K100: =K99+(K99*22%) -> 0 | Y100: SI
Y101: SI

Sheet ConfigurationTS4L3 (hidden)
B2: Module Name | C2: Option ID | D2: Option Name | E2: Option List Price | F2: SKUs | G2: Qty | H2: SKU Customer Kit | I2: Attributo | J2: Valore inserito | L2: N° | M2: Codice Convenzione
A3: Lenovo ThinkSystem SR650 V2 Server | B3: Chassis with Up to 16 x 2.5 Hard Drives for 1CPU Configuration | C3: Chassis with Up to 16 x 2.5 Hard Drives for 2CPU Configuration | D3: =VLOOKUP(L3,Tabella_prezzi!$A$2:$L$65,8,FALSE) -> Lenovo ThinkSystem SR650 V2 Server | H3: =VLOOKUP(L3,Tabella_prezzi!$A$2:$L$65,9,FALSE) -> Lenovo ThinkSystem SR650 V2 Server | I3: TS4L4-Opz1CPU | J3: =VLOOKUP(L3,Tabella_prezzi!$A$2:$L$65,4,FALSE) -> 2050.54 | K3: TS4L4-Opz2CPU | L3: L3N01 | M3: =VLOOKUP(L3,Tabella_prezzi!$A$2:$L$65,6,FALSE) -> TS4L3-SRV
A4: Lenovo ThinkSystem SR650 V2 Server (nutanix) | B4: Chassis with Up to 16 x 2.5 Hard Drives for 2CPU Configuration | C4: Chassis with Up to 16 x 2.5 Hard Drives for 2CPU Configuration | D4: =VLOOKUP(L4,Tabella_prezzi!$A$2:$L$65,8,FALSE) -> 0 | G4: 1 | H4: =VLOOKUP(L4,Tabella_prezzi!$A$2:$L$65,9,FALSE) -> Lenovo ThinkSystem SR650 V2 Server | I4: TS4L4-Opz2CPU | J4: =VLOOKUP(L3,Tabella_prezzi!$A$2:$L$65,4,FALSE) -> 2050.54 | K4: TS4L4-Opz2CPU | L4: L3N200 | M4: =VLOOKUP(L4,Tabella_prezzi!$A$2:$L$65,6,FALSE) -> TS4L3-SRV
A5: =Tabella_prezzi!H56 -> Conversion Kit a sistemi HX (Hybrid) | B5: =VLOOKUP(L5,Tabella_prezzi!$A$2:$L$65,8,FALSE) -> Lenovo ThinkSystem SR650 V2 Server | C5: Kit Conversione Nutanix Chassis with Up to 16 x 2.5 Hard Drives for 2CPU Configuration | D5: =VLOOKUP(L5,Tabella_prezzi!$A$2:$L$65,8,FALSE) -> Lenovo ThinkSystem SR650 V2 Server | G5: 1 | H5: =VLOOKUP(L5,Tabella_prezzi!$A$2:$L$65,9,FALSE) -> Lenovo ThinkSystem SR650 V2 Server | I5: TS4L3-KIT-NUTANIX | J5: =VLOOKUP(L5,Tabella_prezzi!$A$2:$L$65,4,FALSE) -> 2050.54 | K5: TS4L3-KIT-NUTANIX | L5: L3N01 | M5: =VLOOKUP(L5,Tabella_prezzi!$A$2:$L$65,6,FALSE) -> TS4L3-SRV
A6: =Tabella_prezzi!#REF! ->  | B6: =VLOOKUP(L6,Tabella_prezzi!$A$2:$L$65,8,FALSE) -> Lenovo ThinkSystem SR650 V2 Server | C6: Chassis fino a 12 x 3.5 Hard Drives | D6: =VLOOKUP(L6,Tabella_prezzi!$A$2:$L$65,8,FALSE) -> Lenovo ThinkSystem SR650 V2 Server | G6: 1 | H6: =VLOOKUP(L6,Tabella_prezzi!$A$2:$L$65,9,FALSE) -> Lenovo ThinkSystem SR650 V2 Server | I6: TS4L3-Opz1CPU | J6: =VLOOKUP(L6,Tabella_prezzi!$A$2:$L$65,4,FALSE) -> 2050.54 | K6: TS4L3-Opz2CPU | L6: L3N01 | M6: =VLOOKUP(L6,Tabella_prezzi!$A$2:$L$65,6,FALSE) -> TS4L3-SRV
A7: =Tabella_prezzi!H57 -> Conversion Kit sistemi HX (All-Flash Medium-Large) | B7: =VLOOKUP(L7,Tabella_prezzi!$A$2:$L$65,8,FALSE) -> Lenovo ThinkSystem SR650 V2 Server | C7: Kit Conversione Nutanix Chassis with Up to 16 x 2.5 Hard Drives for 2CPU Configuration | D7: =VLOOKUP(L7,Tabella_prezzi!$A$2:$L$65,8,FALSE) -> Lenovo ThinkSystem SR650 V2 Server | G7: 1 | H7: =VLOOKUP(L7,Tabella_prezzi!$A$2:$L$65,9,FALSE) -> Lenovo ThinkSystem SR650 V2 Server | I7: TS4L3-KIT-NUTANIX | J7: =VLOOKUP(L7,Tabella_prezzi!$A$2:$L$65,4,FALSE) -> 2050.54 | K7: TS4L3-KIT-NUTANIX | L7: L3N01 | M7: =VLOOKUP(L7,Tabella_prezzi!$A$2:$L$65,6,FALSE) -> TS4L3-SRV
A8: =Tabella_prezzi!H58 -> Conversion Kit a sistemi VX (Hybrid Storage) | B8: =VLOOKUP(L8,Tabella_prezzi!$A$2:$L$65,8,FALSE) -> Lenovo ThinkSystem SR650 V2 Server | C8: Chassis fino a 12 x 3.5 Hard Drives | D8: =VLOOKUP(L8,Tabella_prezzi!$A$2:$L$65,8,FALSE) -> Lenovo ThinkSystem SR650 V2 Server | G8: 1 | H8: =VLOOKUP(L8,Tabella_prezzi!$A$2:$L$65,9,FALSE) -> Lenovo ThinkSystem SR650 V2 Server | I8: TS4L3-Opz1CPU | J8: =VLOOKUP(L8,Tabella_prezzi!$A$2:$L$65,4,FALSE) -> 2050.54 | K8: TS4L3-Opz2CPU | L8: L3N01 | M8: =VLOOKUP(L8,Tabella_prezzi!$A$2:$L$65,6,FALSE) -> TS4L3-SRV
A9: =Tabella_prezzi!#REF! ->  | B9: =VLOOKUP(L9,Tabella_prezzi!$A$2:$L$65,8,FALSE) -> Lenovo ThinkSystem SR650 V2 Server | C9: Kit Conversione Nutanix Chassis with Up to 16 x 2.5 Hard Drives for 2CPU Configuration | D9: =VLOOKUP(L9,Tabella_prezzi!$A$2:$L$65,8,FALSE) -> Lenovo ThinkSystem SR650 V2 Server | G9: 1 | H9: =VLOOKUP(L9,Tabella_prezzi!$A$2:$L$65,9,FALSE) -> Lenovo ThinkSystem SR650 V2 Server | I9: TS4L3-KIT-NUTANIX | J9: =VLOOKUP(L9,Tabella_prezzi!$A$2:$L$65,4,FALSE) -> 2050.54 | K9: TS4L3-KIT-NUTANIX | L9: L3N01 | M9: =VLOOKUP(L9,Tabella_prezzi!$A$2:$L$65,6,FALSE) -> TS4L3-SRV
A10: =Tabella_prezzi!H59 -> Conversion Kit a sistemi VX (All-Flash Medium-Large) | B10: =VLOOKUP(L10,Tabella_prezzi!$A$2:$L$65,8,FALSE) -> Lenovo ThinkSystem SR650 V2 Server | C10: Kit Conversione Nutanix Chassis with Up to 16 x 2.5 Hard Drives for 2CPU Configuration | D10: =VLOOKUP(L10,Tabella_prezzi!$A$2:$L$65,8,FALSE) -> Lenovo ThinkSystem SR650 V2 Server | G10: 1 | H10: =VLOOKUP(L10,Tabella_prezzi!$A$2:$L$65,9,FALSE) -> Lenovo ThinkSystem SR650 V2 Server | I10: TS4L3-KIT-NUTANIX | J10: =VLOOKUP(L10,Tabella_prezzi!$A$2:$L$65,4,FALSE) -> 2050.54 | K10: TS4L3-KIT-NUTANIX | L10: L3N01 | M10: =VLOOKUP(L10,Tabella_prezzi!$A$2:$L$65,6,FALSE) -> TS4L3-SRV
A13: TS4L3_Chassis
A14: Lenovo ThinkSystem SR650 V2 Server | B14: Chassis fino a 12 x 3.5 Hard Drives | C14: Chassis fino a 12 x 3.5 Hard Drives | D14: =VLOOKUP(L14,Tabella_prezzi!$A$2:$L$65,8,FALSE) -> Lenovo ThinkSystem SR650 V2 Server | H14: =VLOOKUP(L14,Tabella_prezzi!$A$2:$L$65,9,FALSE) -> Lenovo ThinkSystem SR650 V2 Server | I14: =VLOOKUP(L14,Tabella_prezzi!$A$2:$L$65,6,FALSE) -> TS4L3-SRV | J14: =VLOOKUP(L14,Tabella_prezzi!$A$2:$L$65,4,FALSE) -> 2050.54 | K14: TS4L3-Opz2CPU | L14: L3N01 | M14: =VLOOKUP(L14,Tabella_prezzi!$A$2:$L$65,6,FALSE) -> TS4L3-SRV
A15: =Tabella_prezzi!H56 -> Conversion Kit a sistemi HX (Hybrid) | B15: =VLOOKUP(L15,Tabella_prezzi!$A$2:$L$65,8,FALSE) -> Conversion Kit a sistemi HX (Hybrid) | C15: Kit Conversione Nutanix Chassis with Up to 12 x 3.5 Hard Drives for 2CPU Configuration | D15: =VLOOKUP(L15,Tabella_prezzi!$A$2:$L$65,8,FALSE) -> Conversion Kit a sistemi HX (Hybrid) | G15: 1 | H15: =VLOOKUP(L15,Tabella_prezzi!$A$2:$L$65,9,FALSE) -> Conversion Kit da SR650 V2 a sistemi HX (Hybrid) | I15: =VLOOKUP(L15,Tabella_prezzi!$A$2:$L$65,6,FALSE) -> TS4L3-NUTANIX-A | J15: =VLOOKUP(L15,Tabella_prezzi!$A$2:$L$65,4,FALSE) -> 4200 | K15: TS4L3-KIT-NUTANIX-A | L15: L3N66 | M15: =VLOOKUP(L15,Tabella_prezzi!$A$2:$L$65,6,FALSE) -> TS4L3-NUTANIX-A
A16: =Tabella_prezzi!H57 -> Conversion Kit sistemi HX (All-Flash Medium-Large) | B16: =VLOOKUP(L16,Tabella_prezzi!$A$2:$L$65,8,FALSE) -> Conversion Kit sistemi HX (All-Flash Medium-Large) | C16: Kit Conversione Nutanix Chassis with Up to 12 x 2.5 Hard Drives for 2CPU Configuration | D16: =VLOOKUP(L16,Tabella_prezzi!$A$2:$L$65,8,FALSE) -> Conversion Kit sistemi HX (All-Flash Medium-Large) | G16: 1 | H16: =VLOOKUP(L16,Tabella_prezzi!$A$2:$L$65,9,FALSE) -> Conversion Kit sistemi HX (All-Flash Medium-Large) | I16: =VLOOKUP(L16,Tabella_prezzi!$A$2:$L$65,6,FALSE) -> TS4L3-NUTANIX-B | J16: =VLOOKUP(L16,Tabella_prezzi!$A$2:$L$65,4,FALSE) -> 7546 | K16: TS4L3-KIT-NUTANIX-B | L16: L3N68 | M16: =VLOOKUP(L16,Tabella_prezzi!$A$2:$L$65,6,FALSE) -> TS4L3-NUTANIX-B
A17: =Tabella_prezzi!H58 -> Conversion Kit a sistemi VX (Hybrid Storage) | B17: =VLOOKUP(L17,Tabella_prezzi!$A$2:$L$65,8,FALSE) -> Conversion Kit a sistemi VX (Hybrid Storage) | C17: Kit Conversione vSAN Chassis with Up to 12 x 3.5 Hard Drives for 2CPU Configuration | D17: =VLOOKUP(L17,Tabella_prezzi!$A$2:$L$65,8,FALSE) -> Conversion Kit a sistemi VX (Hybrid Storage) | G17: 1 | H17: =VLOOKUP(L17,Tabella_prezzi!$A$2:$L$65,9,FALSE) -> Conversion Kit da SR650 V2 a sistemi VX (Hybrid Storage) | I17: =VLOOKUP(L17,Tabella_prezzi!$A$2:$L$65,6,FALSE) -> TS4L3-vSAN-A | J17: =VLOOKUP(L17,Tabella_prezzi!$A$2:$L$65,4,FALSE) -> 3200 | K17: TS4L3--KIT-VSAN-A | L17: L3N69 | M17: =VLOOKUP(L17,Tabella_prezzi!$A$2:$L$65,6,FALSE) -> TS4L3-vSAN-A
A18: =Tabella_prezzi!H59 -> Conversion Kit a sistemi VX (All-Flash Medium-Large) | B18: =VLOOKUP(L18,Tabella_prezzi!$A$2:$L$65,8,FALSE) -> Conversion Kit a sistemi VX (All-Flash Medium-Large) | C18: Kit Conversione vSAN Chassis with Up to 12 x 2.5 Hard Drives for 2CPU Configuration | D18: =VLOOKUP(L18,Tabella_prezzi!$A$2:$L$65,8,FALSE) -> Conversion Kit a sistemi VX (All-Flash Medium-Large) | G18: 1 | H18: =VLOOKUP(L18,Tabella_prezzi!$A$2:$L$65,9,FALSE) -> Conversion Kit da SR650 V2 a sistemi VX (All-Flash Medium-Large) | I18: =VLOOKUP(L18,Tabella_prezzi!$A$2:$L$65,6,FALSE) -> TS4L3-vSAN-B | J18: =VLOOKUP(L18,Tabella_prezzi!$A$2:$L$65,4,FALSE) -> 7131.5 | K18: TS4L3-KIT-VSAN-B | L18: L3N71 | M18: =VLOOKUP(L18,Tabella_prezzi!$A$2:$L$65,6,FALSE) -> TS4L3-vSAN-B
A19: TS4L3_CPU
A20: No Additional Processor | G20: ="" ->  | I20: ="" ->  | L20: ="" ->  | M20: ="" -> 
A21: =D21 -> Intel Xeon Silver 4310 12C 120W 2.1GHz Processor | D21: =VLOOKUP(L21,Tabella_prezzi!$A$2:$L$65,8,FALSE) -> Intel Xeon Silver 4310 12C 120W 2.1GHz Processor | G21: 1 | H21: =VLOOKUP(L21,Tabella_prezzi!$A$2:$L$65,9,FALSE) -> Intel Xeon Silver 4310 12C 120W 2.1GHz Processor | I21: =VLOOKUP(L21,Tabella_prezzi!$A$2:$L$65,3,FALSE) -> Kit n. 1 Processore aggiuntivo | J21: =VLOOKUP(L21,Tabella_prezzi!$A$2:$L$65,4,FALSE) -> 623.57 | L21: L3N02 | M21: =VLOOKUP(L21,Tabella_prezzi!$A$2:$L$65,6,FALSE) -> TS4L3-CPU
A22: =D22 -> Intel Xeon Gold 5315Y 8C 140W 3.2GHz Processor | D22: =VLOOKUP(L22,Tabella_prezzi!$A$2:$L$115,8,FALSE) -> Intel Xeon Gold 5315Y 8C 140W 3.2GHz Processor | G22: 1 | H22: =VLOOKUP(L22,Tabella_prezzi!$A$2:$L$115,9,FALSE) -> Intel Xeon Gold 5315Y 8C 140W 3.2GHz Processor | I22: =VLOOKUP(L22,Tabella_prezzi!$A$2:$L$115,3,FALSE) -> OpzCPU5315 | J22: =VLOOKUP(L22,Tabella_prezzi!$A$2:$L$115,4,FALSE) -> 0 | L22: L3N93 | M22: =VLOOKUP(L22,Tabella_prezzi!$A$2:$L$115,6,FALSE) -> TS4L3-CPU5315
A23: Intel Xeon Gold 6326 16C 185W 2.9GHz Processor | D23: =VLOOKUP(L23,Tabella_prezzi!$A$2:$L$115,8,FALSE) -> Intel Xeon Gold 6326 16C 185W 2.9GHz Processor | G23: 1 | H23: =VLOOKUP(L23,Tabella_prezzi!$A$2:$L$115,9,FALSE) -> Intel Xeon Gold 6326 16C 185W 2.9GHz Processor | I23: =VLOOKUP(L23,Tabella_prezzi!$A$2:$L$115,3,FALSE) -> Opzso nel KIT di Conversione | K23: =VLOOKUP(L23,Tabella_prezzi!$A$2:$L$115,4,FALSE) -> 0 | L23: L3N94 | M23: =VLOOKUP(L23,Tabella_prezzi!$A$2:$L$115,6,FALSE) -> Compreso nel KIT di Conversione
A25: TS4L3_RAM (1CPU) 32GB
A26: 32 | B26: Memory Capacity | D26: =D27 -> 32GB TruDDR4 3200 MHz (2Rx4 1.2V) RDIMM | F26: 370-AEVP | G26: 0 | H26: =H27 -> ThinkSystem 32GB TruDDR4 3200 MHz (2Rx4 1.2V) RDIMM | L26: ="" ->  | M26: =M27 -> TS4L3-RAM32 | O26: TS4L3-RAM32
A27: 64 | B27: Memory Capacity | D27: =VLOOKUP(L27,Tabella_prezzi!$A$2:$L$65,8,FALSE) -> 32GB TruDDR4 3200 MHz (2Rx4 1.2V) RDIMM | F27: 370-AEVP | G27: 0 | H27: =VLOOKUP(L27,Tabella_prezzi!$A$2:$L$65,9,FALSE) -> ThinkSystem 32GB TruDDR4 3200 MHz (2Rx4 1.2V) RDIMM | I27: =VLOOKUP(L27,Tabella_prezzi!$A$2:$L$65,3,FALSE) -> OpzRAM32GB | J27: =VLOOKUP(L27,Tabella_prezzi!$A$2:$L$65,4,FALSE)*G27 -> 0 | L27: L3N03 | M27: =VLOOKUP(L27,Tabella_prezzi!$A$2:$L$65,6,FALSE) -> TS4L3-RAM32 | O27: TS4L3-RAM64
A28: =(32*G28)+$A$27 -> 128 | B28: Memory Capacity | D28: =VLOOKUP(L28,Tabella_prezzi!$A$2:$L$65,8,FALSE) -> 32GB TruDDR4 3200 MHz (2Rx4 1.2V) RDIMM | F28: 370-AEVP | G28: 2 | H28: =VLOOKUP(L28,Tabella_prezzi!$A$2:$L$65,9,FALSE) -> ThinkSystem 32GB TruDDR4 3200 MHz (2Rx4 1.2V) RDIMM | I28: =VLOOKUP(L28,Tabella_prezzi!$A$2:$L$65,3,FALSE) -> OpzRAM32GB | J28: =VLOOKUP(L28,Tabella_prezzi!$A$2:$L$65,4,FALSE)*G28 -> 446.62 | L28: L3N03 | M28: =VLOOKUP(L28,Tabella_prezzi!$A$2:$L$65,6,FALSE) -> TS4L3-RAM32
A29: =(32*G29)+$A$27 -> 192 | B29: Memory Capacity | D29: =VLOOKUP(L29,Tabella_prezzi!$A$2:$L$65,8,FALSE) -> 32GB TruDDR4 3200 MHz (2Rx4 1.2V) RDIMM | F29: 370-AEVP | G29: 4 | H29: =VLOOKUP(L29,Tabella_prezzi!$A$2:$L$65,9,FALSE) -> ThinkSystem 32GB TruDDR4 3200 MHz (2Rx4 1.2V) RDIMM | I29: =VLOOKUP(L29,Tabella_prezzi!$A$2:$L$65,3,FALSE) -> OpzRAM32GB | J29: =VLOOKUP(L29,Tabella_prezzi!$A$2:$L$65,4,FALSE)*G29 -> 893.24 | L29: L3N03 | M29: =VLOOKUP(L29,Tabella_prezzi!$A$2:$L$65,6,FALSE) -> TS4L3-RAM32
A30: =(32*G30)+$A$27 -> 256 | B30: Memory Capacity | D30: =VLOOKUP(L30,Tabella_prezzi!$A$2:$L$65,8,FALSE) -> 32GB TruDDR4 3200 MHz (2Rx4 1.2V) RDIMM | F30: 370-AEVP | G30: 6 | H30: =VLOOKUP(L30,Tabella_prezzi!$A$2:$L$65,9,FALSE) -> ThinkSystem 32GB TruDDR4 3200 MHz (2Rx4 1.2V) RDIMM | I30: =VLOOKUP(L30,Tabella_prezzi!$A$2:$L$65,3,FALSE) -> OpzRAM32GB | J30: =VLOOKUP(L30,Tabella_prezzi!$A$2:$L$65,4,FALSE)*G30 -> 1339.86 | L30: L3N03 | M30: =VLOOKUP(L30,Tabella_prezzi!$A$2:$L$65,6,FALSE) -> TS4L3-RAM32
A31: 384 | B31: Memory Capacity | D31: =VLOOKUP(L31,Tabella_prezzi!$A$2:$L$65,8,FALSE) -> 32GB TruDDR4 3200 MHz (2Rx4 1.2V) RDIMM | F31: 370-AEVP | G31: 10 | H31: =VLOOKUP(L31,Tabella_prezzi!$A$2:$L$65,9,FALSE) -> ThinkSystem 32GB TruDDR4 3200 MHz (2Rx4 1.2V) RDIMM | I31: =VLOOKUP(L31,Tabella_prezzi!$A$2:$L$65,3,FALSE) -> OpzRAM32GB | J31: =VLOOKUP(L31,Tabella_prezzi!$A$2:$L$65,4,FALSE)*G31 -> 2233.1 | L31: L3N03 | M31: =VLOOKUP(L31,Tabella_prezzi!$A$2:$L$65,6,FALSE) -> TS4L3-RAM32
A32: 512 | B32: Memory Capacity | D32: =VLOOKUP(L32,Tabella_prezzi!$A$2:$L$65,8,FALSE) -> 32GB TruDDR4 3200 MHz (2Rx4 1.2V) RDIMM | F32: 370-AEVP | G32: 14 | H32: =VLOOKUP(L32,Tabella_prezzi!$A$2:$L$65,9,FALSE) -> ThinkSystem 32GB TruDDR4 3200 MHz (2Rx4 1.2V) RDIMM | I32: =VLOOKUP(L32,Tabella_prezzi!$A$2:$L$65,3,FALSE) -> OpzRAM32GB | J32: =VLOOKUP(L32,Tabella_prezzi!$A$2:$L$65,4,FALSE)*G32 -> 3126.34 | L32: L3N03 | M32: =VLOOKUP(L32,Tabella_prezzi!$A$2:$L$65,6,FALSE) -> TS4L3-RAM32
A33: TS4L3_RAM (1CPU) 64GB
A34: 64 | B34: Memory Capacity | D34: =VLOOKUP(L34,Tabella_prezzi!$A$2:$L$65,8,FALSE) -> 64GB TruDDR4 3200 MHz (2Rx4 1.2V) RDIMM | F34: 370-AEVP | G34: 0 | H34: =VLOOKUP(L34,Tabella_prezzi!$A$2:$L$65,9,FALSE) -> ThinkSystem 64GB TruDDR4 3200 MHz (2Rx4 1.2V) RDIMM | I34: =VLOOKUP(L34,Tabella_prezzi!$A$2:$L$65,3,FALSE) -> OpzRAM64GB | J34: =VLOOKUP(L34,Tabella_prezzi!$A$2:$L$65,4,FALSE)*G34 -> 0 | L34: L3N04 | M34: =VLOOKUP(L34,Tabella_prezzi!$A$2:$L$65,6,FALSE) -> TS4L3-RAM64
A35: =(64*G35)+$A$34 -> 128 | B35: Memory Capacity | D35: =VLOOKUP(L35,Tabella_prezzi!$A$2:$L$65,8,FALSE) -> 64GB TruDDR4 3200 MHz (2Rx4 1.2V) RDIMM | F35: 370-AEVP | G35: 1 | H35: =VLOOKUP(L35,Tabella_prezzi!$A$2:$L$65,9,FALSE) -> ThinkSystem 64GB TruDDR4 3200 MHz (2Rx4 1.2V) RDIMM | I35: =VLOOKUP(L35,Tabella_prezzi!$A$2:$L$65,3,FALSE) -> OpzRAM64GB | J35: =VLOOKUP(L35,Tabella_prezzi!$A$2:$L$65,4,FALSE)*G35 -> 478.29 | L35: L3N04 | M35: =VLOOKUP(L35,Tabella_prezzi!$A$2:$L$65,6,FALSE) -> TS4L3-RAM64
A36: =(64*G36)+$A$34 -> 256 | B36: Memory Capacity | D36: =VLOOKUP(L36,Tabella_prezzi!$A$2:$L$65,8,FALSE) -> 64GB TruDDR4 3200 MHz (2Rx4 1.2V) RDIMM | F36: 370-AEVP | G36: 3 | H36: =VLOOKUP(L36,Tabella_prezzi!$A$2:$L$65,9,FALSE) -> ThinkSystem 64GB TruDDR4 3200 MHz (2Rx4 1.2V) RDIMM | I36: =VLOOKUP(L36,Tabella_prezzi!$A$2:$L$65,3,FALSE) -> OpzRAM64GB | J36: =VLOOKUP(L36,Tabella_prezzi!$A$2:$L$65,4,FALSE)*G36 -> 1434.87 | L36: L3N04 | M36: =VLOOKUP(L36,Tabella_prezzi!$A$2:$L$65,6,FALSE) -> TS4L3-RAM64
A37: 384 | B37: Memory Capacity | D37: =VLOOKUP(L37,Tabella_prezzi!$A$2:$L$65,8,FALSE) -> 64GB TruDDR4 3200 MHz (2Rx4 1.2V) RDIMM | F37: 370-AEVP | G37: 5 | H37: =VLOOKUP(L37,Tabella_prezzi!$A$2:$L$65,9,FALSE) -> ThinkSystem 64GB TruDDR4 3200 MHz (2Rx4 1.2V) RDIMM | I37: =VLOOKUP(L37,Tabella_prezzi!$A$2:$L$65,3,FALSE) -> OpzRAM64GB | J37: =VLOOKUP(L37,Tabella_prezzi!$A$2:$L$65,4,FALSE)*G37 -> 2391.45 | L37: L3N04 | M37: =VLOOKUP(L37,Tabella_prezzi!$A$2:$L$65,6,FALSE) -> TS4L3-RAM64
A38: 512 | B38: Memory Capacity | D38: =VLOOKUP(L38,Tabella_prezzi!$A$2:$L$65,8,FALSE) -> 64GB TruDDR4 3200 MHz (2Rx4 1.2V) RDIMM | F38: 370-AEVP | G38: 7 | H38: =VLOOKUP(L38,Tabella_prezzi!$A$2:$L$65,9,FALSE) -> ThinkSystem 64GB TruDDR4 3200 MHz (2Rx4 1.2V) RDIMM | I38: =VLOOKUP(L38,Tabella_prezzi!$A$2:$L$65,3,FALSE) -> OpzRAM64GB | J38: =VLOOKUP(L38,Tabella_prezzi!$A$2:$L$65,4,FALSE)*G38 -> 3348.03 | L38: L3N04 | M38: =VLOOKUP(L38,Tabella_prezzi!$A$2:$L$65,6,FALSE) -> TS4L3-RAM64
A39: 768 | B39: Memory Capacity | D39: =VLOOKUP(L39,Tabella_prezzi!$A$2:$L$65,8,FALSE) -> 64GB TruDDR4 3200 MHz (2Rx4 1.2V) RDIMM | F39: 370-AEVP | G39: 11 | H39: =VLOOKUP(L39,Tabella_prezzi!$A$2:$L$65,9,FALSE) -> ThinkSystem 64GB TruDDR4 3200 MHz (2Rx4 1.2V) RDIMM | I39: =VLOOKUP(L39,Tabella_prezzi!$A$2:$L$65,3,FALSE) -> OpzRAM64GB | J39: =VLOOKUP(L39,Tabella_prezzi!$A$2:$L$65,4,FALSE)*G39 -> 5261.19 | L39: L3N04 | M39: =VLOOKUP(L39,Tabella_prezzi!$A$2:$L$65,6,FALSE) -> TS4L3-RAM64
A40: 1024 | B40: Memory Capacity | D40: =VLOOKUP(L40,Tabella_prezzi!$A$2:$L$65,8,FALSE) -> 64GB TruDDR4 3200 MHz (2Rx4 1.2V) RDIMM | F40: 370-AEVP | G40: 15 | H40: =VLOOKUP(L40,Tabella_prezzi!$A$2:$L$65,9,FALSE) -> ThinkSystem 64GB TruDDR4 3200 MHz (2Rx4 1.2V) RDIMM | I40: =VLOOKUP(L40,Tabella_prezzi!$A$2:$L$65,3,FALSE) -> OpzRAM64GB | J40: =VLOOKUP(L40,Tabella_prezzi!$A$2:$L$65,4,FALSE)*G40 -> 7174.35 | L40: L3N04 | M40: =VLOOKUP(L40,Tabella_prezzi!$A$2:$L$65,6,FALSE) -> TS4L3-RAM64
A41: TS4L3_RAM (vSAN)
A42: =(32*G42)+256 -> 512 | B42: Memory Capacity | D42: =D43 -> 32GB TruDDR4 3200 MHz (2Rx4 1.2V) RDIMM | F42: 370-AEVP | G42: 8 | H42: =H43 -> ThinkSystem 32GB TruDDR4 3200 MHz (2Rx4 1.2V) RDIMM | I42: =VLOOKUP(L42,Tabella_prezzi!$A$2:$L$65,3,FALSE) -> OpzRAM32GB | J42: =VLOOKUP(L42,Tabella_prezzi!$A$2:$L$65,4,FALSE)*G42 -> 1786.48 | L42: L3N03 | M42: =M43 -> TS4L3-RAM32
A43: =(32*G43)+256 -> 1024 | B43: Memory Capacity | D43: =VLOOKUP(L43,Tabella_prezzi!$A$2:$L$65,8,FALSE) -> 32GB TruDDR4 3200 MHz (2Rx4 1.2V) RDIMM | F43: 370-AEVP | G43: 24 | H43: =VLOOKUP(L43,Tabella_prezzi!$A$2:$L$65,9,FALSE) -> ThinkSystem 32GB TruDDR4 3200 MHz (2Rx4 1.2V) RDIMM | I43: =VLOOKUP(L43,Tabella_prezzi!$A$2:$L$65,3,FALSE) -> OpzRAM32GB | J43: =VLOOKUP(L43,Tabella_prezzi!$A$2:$L$65,4,FALSE)*G43 -> 5359.44 | L43: L3N03 | M43: =VLOOKUP(L43,Tabella_prezzi!$A$2:$L$65,6,FALSE) -> TS4L3-RAM32
A44: =(64*G44) -> 2048 | B44: Memory Capacity | D44: =VLOOKUP(L44,Tabella_prezzi!$A$2:$L$65,8,FALSE) -> 64GB TruDDR4 3200 MHz (2Rx4 1.2V) RDIMM | F44: 370-AEVP | G44: 32 | H44: =VLOOKUP(L44,Tabella_prezzi!$A$2:$L$65,9,FALSE) -> ThinkSystem 64GB TruDDR4 3200 MHz (2Rx4 1.2V) RDIMM | I44: =VLOOKUP(L44,Tabella_prezzi!$A$2:$L$65,3,FALSE) -> OpzRAM64GB | J44: =VLOOKUP(L44,Tabella_prezzi!$A$2:$L$65,4,FALSE)*G44 -> 15305.28 | L44: L3N04 | M44: =VLOOKUP(L44,Tabella_prezzi!$A$2:$L$65,6,FALSE) -> TS4L3-RAM64
A45: TS4L3_RAM (2CPU) 32GB
A46: 64 | B46: Memory Capacity | D46: =VLOOKUP(L46,Tabella_prezzi!$A$2:$L$65,8,FALSE) -> 32GB TruDDR4 3200 MHz (2Rx4 1.2V) RDIMM | F46: 370-AEVP | G46: 0 | H46: =VLOOKUP(L46,Tabella_prezzi!$A$2:$L$65,9,FALSE) -> ThinkSystem 32GB TruDDR4 3200 MHz (2Rx4 1.2V) RDIMM | I46: =VLOOKUP(L46,Tabella_prezzi!$A$2:$L$65,3,FALSE) -> OpzRAM32GB | J46: =VLOOKUP(L46,Tabella_prezzi!$A$2:$L$65,4,FALSE)*G46 -> 0 | L46: L3N03 | M46: =VLOOKUP(L46,Tabella_prezzi!$A$2:$L$65,6,FALSE) -> TS4L3-RAM32
A47: =(32*G47)+$A$27 -> 128 | B47: Memory Capacity | D47: =VLOOKUP(L47,Tabella_prezzi!$A$2:$L$65,8,FALSE) -> 32GB TruDDR4 3200 MHz (2Rx4 1.2V) RDIMM | F47: 370-AEVP | G47: 2 | H47: =VLOOKUP(L47,Tabella_prezzi!$A$2:$L$65,9,FALSE) -> ThinkSystem 32GB TruDDR4 3200 MHz (2Rx4 1.2V) RDIMM | I47: =VLOOKUP(L47,Tabella_prezzi!$A$2:$L$65,3,FALSE) -> OpzRAM32GB | J47: =VLOOKUP(L47,Tabella_prezzi!$A$2:$L$65,4,FALSE)*G47 -> 446.62 | L47: L3N03 | M47: =VLOOKUP(L47,Tabella_prezzi!$A$2:$L$65,6,FALSE) -> TS4L3-RAM32
A48: =(32*G48)+$A$27 -> 256 | B48: Memory Capacity | D48: =VLOOKUP(L48,Tabella_prezzi!$A$2:$L$65,8,FALSE) -> 32GB TruDDR4 3200 MHz (2Rx4 1.2V) RDIMM | F48: 370-AEVP | G48: 6 | H48: =VLOOKUP(L48,Tabella_prezzi!$A$2:$L$65,9,FALSE) -> ThinkSystem 32GB TruDDR4 3200 MHz (2Rx4 1.2V) RDIMM | I48: =VLOOKUP(L48,Tabella_prezzi!$A$2:$L$65,3,FALSE) -> OpzRAM32GB | J48: =VLOOKUP(L48,Tabella_prezzi!$A$2:$L$65,4,FALSE)*G48 -> 1339.86 | L48: L3N03 | M48: =VLOOKUP(L48,Tabella_prezzi!$A$2:$L$65,6,FALSE) -> TS4L3-RAM32
A49: 512 | B49: Memory Capacity | D49: =VLOOKUP(L49,Tabella_prezzi!$A$2:$L$65,8,FALSE) -> 32GB TruDDR4 3200 MHz (2Rx4 1.2V) RDIMM | F49: 370-AEVP | G49: 14 | H49: =VLOOKUP(L49,Tabella_prezzi!$A$2:$L$65,9,FALSE) -> ThinkSystem 32GB TruDDR4 3200 MHz (2Rx4 1.2V) RDIMM | I49: =VLOOKUP(L49,Tabella_prezzi!$A$2:$L$65,3,FALSE) -> OpzRAM32GB | J49: =VLOOKUP(L49,Tabella_prezzi!$A$2:$L$65,4,FALSE)*G49 -> 3126.34 | L49: L3N03 | M49: =VLOOKUP(L49,Tabella_prezzi!$A$2:$L$65,6,FALSE) -> TS4L3-RAM32
A50: 768 | B50: Memory Capacity | D50: =VLOOKUP(L50,Tabella_prezzi!$A$2:$L$65,8,FALSE) -> 32GB TruDDR4 3200 MHz (2Rx4 1.2V) RDIMM | F50: 370-AEVP | G50: 22 | H50: =VLOOKUP(L50,Tabella_prezzi!$A$2:$L$65,9,FALSE) -> ThinkSystem 32GB TruDDR4 3200 MHz (2Rx4 1.2V) RDIMM | I50: =VLOOKUP(L50,Tabella_prezzi!$A$2:$L$65,3,FALSE) -> OpzRAM32GB | J50: =VLOOKUP(L50,Tabella_prezzi!$A$2:$L$65,4,FALSE)*G50 -> 4912.82 | L50: L3N03 | M50: =VLOOKUP(L50,Tabella_prezzi!$A$2:$L$65,6,FALSE) -> TS4L3-RAM32
A51: 1024 | B51: Memory Capacity | D51: =VLOOKUP(L51,Tabella_prezzi!$A$2:$L$65,8,FALSE) -> 32GB TruDDR4 3200 MHz (2Rx4 1.2V) RDIMM | F51: 370-AEVP | G51: 30 | H51: =VLOOKUP(L51,Tabella_prezzi!$A$2:$L$65,9,FALSE) -> ThinkSystem 32GB TruDDR4 3200 MHz (2Rx4 1.2V) RDIMM | I51: =VLOOKUP(L51,Tabella_prezzi!$A$2:$L$65,3,FALSE) -> OpzRAM32GB | J51: =VLOOKUP(L51,Tabella_prezzi!$A$2:$L$65,4,FALSE)*G51 -> 6699.3 | L51: L3N03 | M51: =VLOOKUP(L51,Tabella_prezzi!$A$2:$L$65,6,FALSE) -> TS4L3-RAM32
A52: TS4L3_RAM (2CPU) 64GB
A53: =(64*G53)+$A$27 -> 128 | B53: Memory Capacity | D53: =VLOOKUP(L53,Tabella_prezzi!$A$2:$L$65,8,FALSE) -> 64GB TruDDR4 3200 MHz (2Rx4 1.2V) RDIMM | F53: 370-AEVP | G53: 1 | H53: =VLOOKUP(L53,Tabella_prezzi!$A$2:$L$65,9,FALSE) -> ThinkSystem 64GB TruDDR4 3200 MHz (2Rx4 1.2V) RDIMM | I53: =VLOOKUP(L53,Tabella_prezzi!$A$2:$L$65,3,FALSE) -> OpzRAM64GB | J53: =VLOOKUP(L53,Tabella_prezzi!$A$2:$L$65,4,FALSE)*G53 -> 478.29 | L53: L3N04 | M53: =VLOOKUP(L53,Tabella_prezzi!$A$2:$L$65,6,FALSE) -> TS4L3-RAM64
A54: =(64*G54)+$A$27 -> 256 | B54: Memory Capacity | D54: =VLOOKUP(L54,Tabella_prezzi!$A$2:$L$65,8,FALSE) -> 64GB TruDDR4 3200 MHz (2Rx4 1.2V) RDIMM | F54: 370-AEVP | G54: 3 | H54: =VLOOKUP(L54,Tabella_prezzi!$A$2:$L$65,9,FALSE) -> ThinkSystem 64GB TruDDR4 3200 MHz (2Rx4 1.2V) RDIMM | I54: =VLOOKUP(L54,Tabella_prezzi!$A$2:$L$65,3,FALSE) -> OpzRAM64GB | J54: =VLOOKUP(L54,Tabella_prezzi!$A$2:$L$65,4,FALSE)*G54 -> 1434.87 | L54: L3N04 | M54: =VLOOKUP(L54,Tabella_prezzi!$A$2:$L$65,6,FALSE) -> TS4L3-RAM64
A55: 512 | B55: Memory Capacity | D55: =VLOOKUP(L55,Tabella_prezzi!$A$2:$L$65,8,FALSE) -> 64GB TruDDR4 3200 MHz (2Rx4 1.2V) RDIMM | F55: 370-AEVP | G55: 7 | H55: =VLOOKUP(L55,Tabella_prezzi!$A$2:$L$65,9,FALSE) -> ThinkSystem 64GB TruDDR4 3200 MHz (2Rx4 1.2V) RDIMM | I55: =VLOOKUP(L55,Tabella_prezzi!$A$2:$L$65,3,FALSE) -> OpzRAM64GB | J55: =VLOOKUP(L55,Tabella_prezzi!$A$2:$L$65,4,FALSE)*G55 -> 3348.03 | L55: L3N04 | M55: =VLOOKUP(L55,Tabella_prezzi!$A$2:$L$65,6,FALSE) -> TS4L3-RAM64
A56: 1024 | B56: Memory Capacity | D56: =VLOOKUP(L56,Tabella_prezzi!$A$2:$L$65,8,FALSE) -> 64GB TruDDR4 3200 MHz (2Rx4 1.2V) RDIMM | F56: 370-AEVP | G56: 15 | H56: =VLOOKUP(L56,Tabella_prezzi!$A$2:$L$65,9,FALSE) -> ThinkSystem 64GB TruDDR4 3200 MHz (2Rx4 1.2V) RDIMM | I56: =VLOOKUP(L56,Tabella_prezzi!$A$2:$L$65,3,FALSE) -> OpzRAM64GB | J56: =VLOOKUP(L56,Tabella_prezzi!$A$2:$L$65,4,FALSE)*G56 -> 7174.35 | L56: L3N04 | M56: =VLOOKUP(L56,Tabella_prezzi!$A$2:$L$65,6,FALSE) -> TS4L3-RAM64
A57: 1536 | B57: Memory Capacity | D57: =VLOOKUP(L57,Tabella_prezzi!$A$2:$L$65,8,FALSE) -> 64GB TruDDR4 3200 MHz (2Rx4 1.2V) RDIMM | F57: 370-AEVP | G57: 23 | H57: =VLOOKUP(L57,Tabella_prezzi!$A$2:$L$65,9,FALSE) -> ThinkSystem 64GB TruDDR4 3200 MHz (2Rx4 1.2V) RDIMM | I57: =VLOOKUP(L57,Tabella_prezzi!$A$2:$L$65,3,FALSE) -> OpzRAM64GB | J57: =VLOOKUP(L57,Tabella_prezzi!$A$2:$L$65,4,FALSE)*G57 -> 11000.67 | L57: L3N04 | M57: =VLOOKUP(L57,Tabella_prezzi!$A$2:$L$65,6,FALSE) -> TS4L3-RAM64
A58: 2048 | B58: Memory Capacity | D58: =VLOOKUP(L58,Tabella_prezzi!$A$2:$L$65,8,FALSE) -> 64GB TruDDR4 3200 MHz (2Rx4 1.2V) RDIMM | F58: 370-AEVP | G58: 31 | H58: =VLOOKUP(L58,Tabella_prezzi!$A$2:$L$65,9,FALSE) -> ThinkSystem 64GB TruDDR4 3200 MHz (2Rx4 1.2V) RDIMM | I58: =VLOOKUP(L58,Tabella_prezzi!$A$2:$L$65,3,FALSE) -> OpzRAM64GB | J58: =VLOOKUP(L58,Tabella_prezzi!$A$2:$L$65,4,FALSE)*G58 -> 14826.99 | L58: L3N04 | M58: =VLOOKUP(L58,Tabella_prezzi!$A$2:$L$65,6,FALSE) -> TS4L3-RAM64
A59: 1 | B59: 2 | C59: 3 | D59: 4 | E59: 5 | F59: 6 | G59: 7 | H59: 8 | I59: 9 | J59: 10 | K59: 11 | L59: 12 | M59: 13 | N59: 14 | O59: 15 | P59: 16 | Q59: 17 | R59: 18 | S59: 19 | T59: 20 | U59: 21 | V59: 22 | W59: 23
A61: TS4L3_OS
A62: No Operating System | B62: Operating System | G62: 0 | I62: ="" ->  | L62: ="" ->  | M62: ="" ->  | N62: 0 | P62: ="" ->  | Q62: ="" ->  | S62: 0 | T62: 0 | W62: ="" -> 
A63: =D63 -> Windows Server 2022,Standard,ROK,16CORE | B63: Operating System | D63: =VLOOKUP(L63,Tabella_prezzi!$A$2:$L$65,9,FALSE) -> Windows Server 2022,Standard,ROK,16CORE | G63: 1 | H63: =VLOOKUP(L63,Tabella_prezzi!$A$2:$L$65,9,FALSE) -> Windows Server 2022,Standard,ROK,16CORE | I63: =VLOOKUP(L63,Tabella_prezzi!$A$2:$L$65,3,FALSE) -> OpzWinServSTD | J63: =VLOOKUP(L63,Tabella_prezzi!$A$2:$L$65,4,FALSE) -> 867.59 | L63: L3N18 | M63: =VLOOKUP(L63,Tabella_prezzi!$A$2:$L$65,6,FALSE) -> TS4L3-WINSRVSTD | N63: 16 | O63: =VLOOKUP(T63,Tabella_prezzi!$A$2:$L$65,9,FALSE) ->  | P63: =VLOOKUP(T63,Tabella_prezzi!$A$2:$L$65,3,FALSE) ->  | Q63: =VLOOKUP(T63,Tabella_prezzi!$A$2:$L$65,4,FALSE)*N63 ->  | S63: 6 | T63: L4N23 | U63: =VLOOKUP(T63,Tabella_prezzi!$A$2:$L$65,4,FALSE)*S63 ->  | W63: =VLOOKUP(T63,Tabella_prezzi!$A$2:$L$65,6,FALSE) -> 
A64: Ubuntu 22.04 LTS 64 Bit | B64: Operating System | D64: =VLOOKUP(L64,Tabella_prezzi!$A$2:$L$65,9,FALSE) -> Ubuntu 22.04 LTS 64 Bit | G64: 1 | H64: =VLOOKUP(L64,Tabella_prezzi!$A$2:$L$65,9,FALSE) -> Ubuntu 22.04 LTS 64 Bit | I64: =VLOOKUP(L64,Tabella_prezzi!$A$2:$L$65,3,FALSE) -> OpzOpenSource | J64: =VLOOKUP(L64,Tabella_prezzi!$A$2:$L$65,4,FALSE) -> 9.54 | L64: L3N22 | M64: =VLOOKUP(L64,Tabella_prezzi!$A$2:$L$65,6,FALSE) -> TS4L3-LINUX | N64: 16 | O64: =VLOOKUP(T64,Tabella_prezzi!$A$2:$L$65,9,FALSE) ->  | P64: =VLOOKUP(T64,Tabella_prezzi!$A$2:$L$65,3,FALSE) ->  | Q64: =VLOOKUP(T64,Tabella_prezzi!$A$2:$L$65,4,FALSE)*N64 ->  | S64: 6 | T64: L4N23 | U64: =VLOOKUP(T64,Tabella_prezzi!$A$2:$L$65,4,FALSE)*S64 ->  | W64: =VLOOKUP(T64,Tabella_prezzi!$A$2:$L$65,6,FALSE) -> 
A65: =D65 -> Windows Server 2022 Standard Edition, Add License,2CORE | B65: Operating System | D65: =VLOOKUP(L65,Tabella_prezzi!$A$2:$L$65,9,FALSE) -> Windows Server 2022 Standard Edition, Add License,2CORE | G65: 1 | H65: =VLOOKUP(L65,Tabella_prezzi!$A$2:$L$65,9,FALSE) -> Windows Server 2022 Standard Edition, Add License,2CORE | I65: =VLOOKUP(L65,Tabella_prezzi!$A$2:$L$65,3,FALSE) -> OpzWinServSTD2core | J65: =VLOOKUP(L65,Tabella_prezzi!$A$2:$L$65,4,FALSE) -> 126.25 | L65: L3N21 | M65: =VLOOKUP(L65,Tabella_prezzi!$A$2:$L$65,6,FALSE) -> TS4L3-WINSRV2C
A66: 1-pack of Windows Server 2022/2019 Device CALs (STD or DC) | B66: Operating System | D66: =VLOOKUP(L66,Tabella_prezzi!$A$2:$L$65,9,FALSE) -> 1-pack of Windows Server 2022/2019 Device CALs (STD or DC) | G66: 1 | H66: =VLOOKUP(L66,Tabella_prezzi!$A$2:$L$65,9,FALSE) -> 1-pack of Windows Server 2022/2019 Device CALs (STD or DC) | I66: =VLOOKUP(L66,Tabella_prezzi!$A$2:$L$65,3,FALSE) -> OpzDeviceCal | J66: =VLOOKUP(L66,Tabella_prezzi!$A$2:$L$65,4,FALSE) -> 37.37 | L66: L3N19 | M66: =VLOOKUP(L66,Tabella_prezzi!$A$2:$L$65,6,FALSE) -> TS4L3-WINDEVCAL
A67: =D67 -> 1-pack of Windows Server 2022/2019 User CALs (STD or DC) | B67: Operating System | D67: =VLOOKUP(L67,Tabella_prezzi!$A$2:$L$65,9,FALSE) -> 1-pack of Windows Server 2022/2019 User CALs (STD or DC) | G67: 1 | H67: =VLOOKUP(L67,Tabella_prezzi!$A$2:$L$65,9,FALSE) -> 1-pack of Windows Server 2022/2019 User CALs (STD or DC) | I67: =VLOOKUP(L67,Tabella_prezzi!$A$2:$L$65,3,FALSE) -> OpzUserCal | J67: =VLOOKUP(L67,Tabella_prezzi!$A$2:$L$65,4,FALSE) -> 47.47 | L67: L3N20 | M67: =VLOOKUP(L67,Tabella_prezzi!$A$2:$L$65,6,FALSE) -> TS4L3-WINUSRCAL
A68: TS4L3_HDD
A69: ="" ->  | G69: ="" ->  | I69: ="" ->  | L69: ="" ->  | M69: ="" -> 
A70: =VLOOKUP(L70,Tabella_prezzi!$A$2:$L$65,8,FALSE) -> 8TB 7.2K SAS 12Gb Hot Swap 512e HDD | B70: Hard Drives | D70: =VLOOKUP(L70,Tabella_prezzi!$A$2:$L$65,8,FALSE) -> 8TB 7.2K SAS 12Gb Hot Swap 512e HDD | G70: 1 | H70: =VLOOKUP(L70,Tabella_prezzi!$A$2:$L$65,9,FALSE) -> 3.5" 8TB 7.2K SAS 12Gb Hot Swap 512e HDD | I70: =VLOOKUP(L70,Tabella_prezzi!$A$2:$L$65,3,FALSE) -> OpzHDD8TB | J70: =VLOOKUP(L70,Tabella_prezzi!$A$2:$L$65,4,FALSE) -> 206.8 | L70: L3N11 | M70: =VLOOKUP(L70,Tabella_prezzi!$A$2:$L$65,6,FALSE) -> TS4L3-HDD8TB
A71: =VLOOKUP(L71,Tabella_prezzi!$A$2:$L$65,8,FALSE) -> 2TB 7.2K SAS 12Gb Hot Swap 512n HDD | B71: Hard Drives | D71: =VLOOKUP(L71,Tabella_prezzi!$A$2:$L$65,8,FALSE) -> 2TB 7.2K SAS 12Gb Hot Swap 512n HDD | G71: 1 | H71: =VLOOKUP(L71,Tabella_prezzi!$A$2:$L$65,9,FALSE) -> 3.5" 2TB 7.2K SAS 12Gb Hot Swap 512n HDD | I71: =VLOOKUP(L71,Tabella_prezzi!$A$2:$L$65,3,FALSE) -> OpzHDD2TB | J71: =VLOOKUP(L71,Tabella_prezzi!$A$2:$L$65,4,FALSE) -> 155.89 | L71: L3N12 | M71: =VLOOKUP(L71,Tabella_prezzi!$A$2:$L$65,6,FALSE) -> TS4L3-HDD2TB
A72: =VLOOKUP(L72,Tabella_prezzi!$A$2:$L$65,8,FALSE) -> 1TB 7.2K SAS 12Gb Hot Swap 512n HDD | B72: Hard Drives | D72: =VLOOKUP(L72,Tabella_prezzi!$A$2:$L$65,8,FALSE) -> 1TB 7.2K SAS 12Gb Hot Swap 512n HDD | G72: 1 | H72: =VLOOKUP(L72,Tabella_prezzi!$A$2:$L$65,9,FALSE) -> 3.5" 1TB 7.2K SAS 12Gb Hot Swap 512n HDD | I72: =VLOOKUP(L72,Tabella_prezzi!$A$2:$L$65,3,FALSE) -> OpzHDD1TB | J72: =VLOOKUP(L72,Tabella_prezzi!$A$2:$L$65,4,FALSE) -> 138.93 | L72: L3N13 | M72: =VLOOKUP(L72,Tabella_prezzi!$A$2:$L$65,6,FALSE) -> TS4L3-HDD1TB
A73: =VLOOKUP(L73,Tabella_prezzi!$A$2:$L$65,8,FALSE) -> 12TB 7.2K SAS 12Gb Hot Swap 512e HDD | B73: Hard Drives | D73: =VLOOKUP(L73,Tabella_prezzi!$A$2:$L$65,8,FALSE) -> 12TB 7.2K SAS 12Gb Hot Swap 512e HDD | G73: 1 | H73: =VLOOKUP(L73,Tabella_prezzi!$A$2:$L$65,9,FALSE) -> 3.5" 12TB 7.2K SAS 12Gb Hot Swap 512e HDD | I73: =VLOOKUP(L73,Tabella_prezzi!$A$2:$L$65,3,FALSE) -> OpzHDD12TB | J73: =VLOOKUP(L73,Tabella_prezzi!$A$2:$L$65,4,FALSE) -> 308.61 | L73: L3N14 | M73: =VLOOKUP(L73,Tabella_prezzi!$A$2:$L$65,6,FALSE) -> TS4L3-HDD12TB
A74: =D74 -> PM1643a 3.84TB Entry SAS 12Gb Hot Swap SSD | B74: Hard Drives | D74: =VLOOKUP(L74,Tabella_prezzi!$A$2:$L$65,8,FALSE) -> PM1643a 3.84TB Entry SAS 12Gb Hot Swap SSD | G74: 1 | H74: =VLOOKUP(L74,Tabella_prezzi!$A$2:$L$65,9,FALSE) -> 3.5" PM1643a 3.84TB Entry SAS 12Gb Hot Swap SSD | I74: =VLOOKUP(L74,Tabella_prezzi!$A$2:$L$65,3,FALSE) -> OpzSSD-RI3,8TB | J74: =VLOOKUP(L74,Tabella_prezzi!$A$2:$L$65,4,FALSE) -> 1111 | L74: L3N26 | M74: =VLOOKUP(L74,Tabella_prezzi!$A$2:$L$65,6,FALSE) -> TS4L3-SSD-RI3,8TB
A75: =D75 -> PM1645a 1.6TB Mainstream SAS 12Gb Hot Swap SSD | B75: Hard Drives | D75: =VLOOKUP(L75,Tabella_prezzi!$A$2:$L$65,8,FALSE) -> PM1645a 1.6TB Mainstream SAS 12Gb Hot Swap SSD | G75: 1 | H75: =VLOOKUP(L75,Tabella_prezzi!$A$2:$L$65,9,FALSE) -> 3.5" PM1645a 1.6TB Mainstream SAS 12Gb Hot Swap SSD | I75: =VLOOKUP(L75,Tabella_prezzi!$A$2:$L$65,3,FALSE) -> OpzSSD-RI1,6TB | J75: =VLOOKUP(L75,Tabella_prezzi!$A$2:$L$65,4,FALSE) -> 722.15 | L75: L3N27 | M75: =VLOOKUP(L75,Tabella_prezzi!$A$2:$L$65,6,FALSE) -> TS4L3-SSD-RI1,6TB
A76: =VLOOKUP(L76,Tabella_prezzi!$A$2:$L$65,8,FALSE) -> ThinkSystem 3.2TB Mixed Use SAS 24Gb HS SSD | B76: Hard Drives | D76: =VLOOKUP(L76,Tabella_prezzi!$A$2:$L$65,8,FALSE) -> ThinkSystem 3.2TB Mixed Use SAS 24Gb HS SSD | G76: 1 | H76: =VLOOKUP(L76,Tabella_prezzi!$A$2:$L$65,9,FALSE) -> ThinkSystem 3.5" PM1655 3.2TB Mixed Use SAS 24Gb HS SSD | I76: =VLOOKUP(L76,Tabella_prezzi!$A$2:$L$495,3,FALSE) -> OpzSSDSAS3.2TBMU | J76: =VLOOKUP(L76,Tabella_prezzi!$A$2:$L$495,4,FALSE) -> 9999 | L76: L3N54 | M76: =VLOOKUP(L76,Tabella_prezzi!$A$2:$L$65,6,FALSE) -> TS4L3-SSDSAS3.2TBMU
A77: =VLOOKUP(L77,Tabella_prezzi!$A$2:$L$65,8,FALSE) -> ThinkSystem 6.4TB Mixed Use SAS 24Gb HS SSD | B77: Hard Drives | D77: =VLOOKUP(L77,Tabella_prezzi!$A$2:$L$65,8,FALSE) -> ThinkSystem 6.4TB Mixed Use SAS 24Gb HS SSD | G77: 1 | H77: =VLOOKUP(L77,Tabella_prezzi!$A$2:$L$65,9,FALSE) -> ThinkSystem 3.5" PM1655 6.4TB Mixed Use SAS 24Gb HS SSD | I77: =VLOOKUP(L77,Tabella_prezzi!$A$2:$L$65,3,FALSE) -> OpzSSDSAS6.4TBMU | J77: =VLOOKUP(L77,Tabella_prezzi!$A$2:$L$65,4,FALSE) -> 9999 | L77: L3N55 | M77: =VLOOKUP(L77,Tabella_prezzi!$A$2:$L$65,6,FALSE) -> TS4L3-SSDSAS6.4TBMU
A78: =VLOOKUP(L78,Tabella_prezzi!$A$2:$L$65,8,FALSE) -> ThinkSystem 7.68TB Read Intensive SAS 24Gb HS SSD | B78: Hard Drives | D78: =VLOOKUP(L78,Tabella_prezzi!$A$2:$L$65,8,FALSE) -> ThinkSystem 7.68TB Read Intensive SAS 24Gb HS SSD | G78: 1 | H78: =VLOOKUP(L78,Tabella_prezzi!$A$2:$L$65,9,FALSE) -> ThinkSystem 3.5" PM1653 7.68TB Read Intensive SAS 24Gb HS SSD | I78: =VLOOKUP(L78,Tabella_prezzi!$A$2:$L$65,3,FALSE) -> OpzSSDSAS7.68TBRI | J78: =VLOOKUP(L78,Tabella_prezzi!$A$2:$L$65,4,FALSE) -> 9999 | L78: L3N56 | M78: =VLOOKUP(L78,Tabella_prezzi!$A$2:$L$65,6,FALSE) -> TS4L3-SSDSAS7.68TBRI
A79: =VLOOKUP(L79,Tabella_prezzi!$A$2:$L$65,8,FALSE) -> ThinkSystem 15.36TB Read Intensive SAS 24Gb HS SSD | B79: Hard Drives | D79: =VLOOKUP(L79,Tabella_prezzi!$A$2:$L$65,8,FALSE) -> ThinkSystem 15.36TB Read Intensive SAS 24Gb HS SSD | G79: 1 | H79: =VLOOKUP(L79,Tabella_prezzi!$A$2:$L$65,9,FALSE) -> ThinkSystem 3.5" PM1653 15.36TB Read Intensive SAS 24Gb HS SSD | I79: =VLOOKUP(L79,Tabella_prezzi!$A$2:$L$65,3,FALSE) -> OpzSSDSAS15.36TBRI | J79: =VLOOKUP(L79,Tabella_prezzi!$A$2:$L$65,4,FALSE) -> 9999 | L79: L3N57 | M79: =VLOOKUP(L79,Tabella_prezzi!$A$2:$L$65,6,FALSE) -> TS4L3-SSDSAS15.36TBRI
A80: =D80 -> ThinkSystem 3.84TB Read Intensive SATA 6Gb HS SSD | B80: Hard Drives | D80: =VLOOKUP(L80,Tabella_prezzi!$A$2:$L$65,8,FALSE) -> ThinkSystem 3.84TB Read Intensive SATA 6Gb HS SSD | G80: 1 | H80: =VLOOKUP(L80,Tabella_prezzi!$A$2:$L$65,9,FALSE) -> ThinkSystem 3.5" S4520 3.84TB Read Intensive SATA 6Gb HS SSD | I80: =VLOOKUP(L80,Tabella_prezzi!$A$2:$L$65,3,FALSE) -> OpzSSDSATA3.84TBRI | J80: =VLOOKUP(L80,Tabella_prezzi!$A$2:$L$65,4,FALSE) -> 9999 | L80: L3N58 | M80: =VLOOKUP(L80,Tabella_prezzi!$A$2:$L$65,6,FALSE) -> TS4L3-SSDSATA3.84TBRI
A81: =D81 -> ThinkSystem 7.68TB Read Intensive SATA 6Gb HS SSD | B81: Hard Drives | D81: =VLOOKUP(L81,Tabella_prezzi!$A$2:$L$65,8,FALSE) -> ThinkSystem 7.68TB Read Intensive SATA 6Gb HS SSD | G81: 1 | H81: =VLOOKUP(L81,Tabella_prezzi!$A$2:$L$65,9,FALSE) -> ThinkSystem 3.5" S4520 7.68TB Read Intensive SATA 6Gb HS SSD | I81: =VLOOKUP(L81,Tabella_prezzi!$A$2:$L$65,3,FALSE) -> OpzSSDSATA7.68TBRI | J81: =VLOOKUP(L81,Tabella_prezzi!$A$2:$L$65,4,FALSE) -> 9999 | L81: L3N59 | M81: =VLOOKUP(L81,Tabella_prezzi!$A$2:$L$65,6,FALSE) -> TS4L3-SSDSATA7.68TBRI
A82: =VLOOKUP(L82,Tabella_prezzi!$A$2:$L$65,8,FALSE) -> ThinkSystem 20TB 7.2K SAS 12Gb Hot Swap 512e HDD | B82: Hard Drives | D82: =VLOOKUP(L82,Tabella_prezzi!$A$2:$L$65,8,FALSE) -> ThinkSystem 20TB 7.2K SAS 12Gb Hot Swap 512e HDD | G82: 1 | H82: =VLOOKUP(L82,Tabella_prezzi!$A$2:$L$65,9,FALSE) -> ThinkSystem 3.5" 20TB 7.2K SAS 12Gb Hot Swap 512e HDD | I82: =VLOOKUP(L82,Tabella_prezzi!$A$2:$L$65,3,FALSE) -> OpzHDD_SAS20TB_HW | J82: =VLOOKUP(L82,Tabella_prezzi!$A$2:$L$65,4,FALSE) -> 9999 | L82: L3N60 | M82: =VLOOKUP(L82,Tabella_prezzi!$A$2:$L$65,6,FALSE) -> TS4L3-HDD_SAS20TB_HW
A83: =VLOOKUP(L83,Tabella_prezzi!$A$2:$L$65,8,FALSE) -> ThinkSystem 16TB 7.2K SATA 6Gb Hot Swap 512e HDD | B83: Hard Drives | D83: =VLOOKUP(L83,Tabella_prezzi!$A$2:$L$65,8,FALSE) -> ThinkSystem 16TB 7.2K SATA 6Gb Hot Swap 512e HDD | G83: 1 | H83: =VLOOKUP(L83,Tabella_prezzi!$A$2:$L$65,9,FALSE) -> ThinkSystem 3.5" 16TB 7.2K SATA 6Gb Hot Swap 512e HDD | I83: =VLOOKUP(L83,Tabella_prezzi!$A$2:$L$65,3,FALSE) -> OpzHDD_SATA16TB_HW | J83: =VLOOKUP(L83,Tabella_prezzi!$A$2:$L$65,4,FALSE) -> 9999 | L83: L3N61 | M83: =VLOOKUP(L83,Tabella_prezzi!$A$2:$L$65,6,FALSE) -> TS4L3-HDD_SATA16TB_HW
A84: =VLOOKUP(L84,Tabella_prezzi!$A$2:$L$65,8,FALSE) -> ThinkSystem 3.5" 16TB 7.2K SAS 12Gb Hot Swap 512e HDD | B84: Hard Drives | D84: =VLOOKUP(L84,Tabella_prezzi!$A$2:$L$65,8,FALSE) -> ThinkSystem 3.5" 16TB 7.2K SAS 12Gb Hot Swap 512e HDD | G84: 1 | H84: =VLOOKUP(L84,Tabella_prezzi!$A$2:$L$65,9,FALSE) -> ThinkSystem 3.5" 16TB 7.2K SAS 12Gb Hot Swap 512e HDD | I84: =VLOOKUP(L84,Tabella_prezzi!$A$2:$L$65,3,FALSE) -> OpzHDD_SAS16TB_HW | J84: =VLOOKUP(L84,Tabella_prezzi!$A$2:$L$65,4,FALSE) -> 9999 | L84: L3N62 | M84: =VLOOKUP(L84,Tabella_prezzi!$A$2:$L$65,6,FALSE) -> TS4L3-HDD_SAS16TB_HW
A85: =VLOOKUP(L85,Tabella_prezzi!$A$2:$L$65,8,FALSE) -> ThinkSystem 3.5" 800GB Write Intensive SAS 12Gb HS SSD | B85: Hard Drives | D85: =VLOOKUP(L85,Tabella_prezzi!$A$2:$L$65,8,FALSE) -> ThinkSystem 3.5" 800GB Write Intensive SAS 12Gb HS SSD | G85: 1 | H85: =VLOOKUP(L85,Tabella_prezzi!$A$2:$L$65,9,FALSE) -> ThinkSystem 3.5" Nytro 3750 800GB Write Intensive SAS 12Gb HS SSD | I85: =VLOOKUP(L85,Tabella_prezzi!$A$2:$L$65,3,FALSE) -> OpzSSD_SAS800GB_WI | J85: =VLOOKUP(L85,Tabella_prezzi!$A$2:$L$65,4,FALSE) -> 9999 | L85: L3N63 | M85: =VLOOKUP(L85,Tabella_prezzi!$A$2:$L$65,6,FALSE) -> TS4L3-SSD_SAS800GB_WI
A86: =D86 -> ThinkSystem 3.5" 1.6TB Write Intensive SAS 12Gb HS SSD | B86: Hard Drives | D86: =VLOOKUP(L86,Tabella_prezzi!$A$2:$L$65,8,FALSE) -> ThinkSystem 3.5" 1.6TB Write Intensive SAS 12Gb HS SSD | G86: 1 | H86: =VLOOKUP(L86,Tabella_prezzi!$A$2:$L$65,9,FALSE) -> ThinkSystem 3.5" Nytro 3750 1.6TB Write Intensive SAS 12Gb HS SSD | I86: =VLOOKUP(L86,Tabella_prezzi!$A$2:$L$65,3,FALSE) -> OpzSSD_SAS1.6TB_WI | J86: =VLOOKUP(L86,Tabella_prezzi!$A$2:$L$65,4,FALSE) -> 9999 | L86: L3N64 | M86: =VLOOKUP(L86,Tabella_prezzi!$A$2:$L$65,6,FALSE) -> TS4L3-SSD_SAS1.6TB_WI
A87: =D87 -> ThinkSystem 3.5" 3.2TB Write Intensive SAS 12Gb HS SSD | B87: Hard Drives | D87: =VLOOKUP(L87,Tabella_prezzi!$A$2:$L$65,8,FALSE) -> ThinkSystem 3.5" 3.2TB Write Intensive SAS 12Gb HS SSD | G87: 1 | H87: =VLOOKUP(L87,Tabella_prezzi!$A$2:$L$65,9,FALSE) -> ThinkSystem 3.5" Nytro 3750 3.2TB Write Intensive SAS 12Gb HS SSD | I87: =VLOOKUP(L87,Tabella_prezzi!$A$2:$L$65,3,FALSE) -> OpzSSD_SAS3.2TB_WI | J87: =VLOOKUP(L87,Tabella_prezzi!$A$2:$L$65,4,FALSE) -> 9999 | L87: L3N65 | M87: =VLOOKUP(L87,Tabella_prezzi!$A$2:$L$65,6,FALSE) -> TS4L3-SSD_SAS3.2TB_WI
A89: TS4L3_RAID
A90: NO RAID | G90: ="" ->  | I90: ="" ->  | L90: ="" ->  | M90: ="" -> 
A91: =VLOOKUP(L91,Tabella_prezzi!$A$2:$L$65,8,FALSE) -> Intel VROC (VMD NVMe RAID) Premium | B91: Hard Drives | D91: =VLOOKUP(L91,Tabella_prezzi!$A$2:$L$65,8,FALSE) -> Intel VROC (VMD NVMe RAID) Premium | G91: 1 | H91: =VLOOKUP(L91,Tabella_prezzi!$A$2:$L$65,9,FALSE) -> Intel VROC (VMD NVMe RAID) Premium | I91: =VLOOKUP(L91,Tabella_prezzi!$A$2:$L$65,3,FALSE) -> OpzVROC | K91: =VLOOKUP(L91,Tabella_prezzi!$A$2:$L$65,4,FALSE) -> 380 | L91: L3N52 | M91: =VLOOKUP(L91,Tabella_prezzi!$A$2:$L$65,6,FALSE) -> TS4L3-VROC
A92: =VLOOKUP(L92,Tabella_prezzi!$A$2:$L$65,8,FALSE) -> ThinkSystem M.2 NVMe 2-Bay RAID Enablement Kit | B92: Hard Drives | D92: =VLOOKUP(L92,Tabella_prezzi!$A$2:$L$65,8,FALSE) -> ThinkSystem M.2 NVMe 2-Bay RAID Enablement Kit | G92: 1 | H92: =VLOOKUP(L92,Tabella_prezzi!$A$2:$L$65,9,FALSE) -> ThinkSystem M.2 NVMe 2-Bay RAID Enablement Kit | I92: =VLOOKUP(L92,Tabella_prezzi!$A$2:$L$65,3,FALSE) -> OpzRAID | K92: =VLOOKUP(L92,Tabella_prezzi!$A$2:$L$65,4,FALSE) -> 9999 | L92: L3N53 | M92: =VLOOKUP(L92,Tabella_prezzi!$A$2:$L$65,6,FALSE) -> TS4L3-RAID
A93: TS4L3_PSU
A94: =D94 -> 2 x 750W(230V/115V) Platinum Hot-Swap Power Supply v2 | B94: Power Supply | D94: =VLOOKUP(L94,Tabella_prezzi!$A$2:$L$65,8,FALSE) -> 2 x 750W(230V/115V) Platinum Hot-Swap Power Supply v2 | G94: 1 | H94: =VLOOKUP(L94,Tabella_prezzi!$A$2:$L$65,9,FALSE) -> 2 x 750W(230V/115V) Platinum Hot-Swap Power Supply v2 | I94: =VLOOKUP(L94,Tabella_prezzi!$A$2:$L$65,3,FALSE) -> PSU | K94: =VLOOKUP(L94,Tabella_prezzi!$A$2:$L$65,4,FALSE) -> 0 | L94: L3N51 | M94: =VLOOKUP(L94,Tabella_prezzi!$A$2:$L$65,6,FALSE) -> TS4L3-PSU
A96: TS4L3_CTRL
G97: ="" ->  | I97: ="" ->  | L97: ="" ->  | M97: ="" -> 
A98: =D98 -> RAID 9350-16i 4GB Flash PCIe 12Gb Adapter | B98: =D98 -> RAID 9350-16i 4GB Flash PCIe 12Gb Adapter | D98: =VLOOKUP(L98,Tabella_prezzi!$A$2:$L$65,9,FALSE) -> RAID 9350-16i 4GB Flash PCIe 12Gb Adapter | G98: ="" ->  | H98: =VLOOKUP(L98,Tabella_prezzi!$A$2:$L$65,9,FALSE) -> RAID 9350-16i 4GB Flash PCIe 12Gb Adapter | I98: ="" ->  | L98: L3N50 | M98: =VLOOKUP(L98,Tabella_prezzi!$A$2:$L$65,6,FALSE) -> TS4L3-DiskController
A99: SAS HBA | D99: SAS HBA
A101: TS4L3_WARRANTY
A102: Manutenzione in garanzia (36 mesi) | G102: ="" ->  | I102: ="" ->  | L102: ="" ->  | M102: ="" -> 
A103: =D103 -> Estensione della Garanzia Per ulteriori 24 Mesi | D103: =VLOOKUP(L103,Tabella_prezzi!$A$2:$L$65,8,FALSE) -> Estensione della Garanzia Per ulteriori 24 Mesi | G103: 1 | H103: =VLOOKUP(L103,Tabella_prezzi!$A$2:$L$260,9,FALSE) -> Estensione della Garanzia Per ulteriori 24 Mesi | I103: =VLOOKUP(L103,Tabella_prezzi!$A$2:$L$260,3,FALSE) -> OpzEstensione24 | J103: =VLOOKUP(L103,Tabella_prezzi!$A$2:$L$260,4,FALSE) -> 88.92 | L103: L3N24 | M103: =VLOOKUP(L103,Tabella_prezzi!$A$2:$L$65,6,FALSE) -> TS4L3-OpzEst24
A105: TS4L3_HDDRET
A106: No Hard Disk Retention | G106: ="" ->  | I106: ="" ->  | L106: ="" ->  | M106: ="" -> 
A107: =D107 -> Hard Disk Retention 36 mesi | B107: Keep Your Hard Drive | D107: =VLOOKUP(L107,Tabella_prezzi!$A$2:$L$65,8,FALSE) -> Hard Disk Retention 36 mesi | G107: 1 | H107: =VLOOKUP(L107,Tabella_prezzi!$A$2:$L$260,9,FALSE) -> Hard Disk Retention 36 mesi | I107: =VLOOKUP(L107,Tabella_prezzi!$A$2:$L$260,3,FALSE) -> OpzHDDRetention36 | J107: =VLOOKUP(L107,Tabella_prezzi!$A$2:$L$260,4,FALSE) -> 32.88 | L107: L3N23 | M107: =VLOOKUP(L107,Tabella_prezzi!$A$2:$L$65,6,FALSE) -> TS4L3-HDRTN36
A108: Hard Disk Retention 60 mesi | B108: Keep Your Hard Drive | D108: =VLOOKUP(L108,Tabella_prezzi!$A$2:$L$65,8,FALSE) -> Hard Disk Retention 60 mesi | G108: 1 | H108: =VLOOKUP(L108,Tabella_prezzi!$A$2:$L$260,9,FALSE) -> Hard Disk Retention 60 mesi | I108: =VLOOKUP(L108,Tabella_prezzi!$A$2:$L$260,3,FALSE) -> OpzHDDRetention60 | J108: =VLOOKUP(L108,Tabella_prezzi!$A$2:$L$260,4,FALSE) -> 54.79 | L108: L3N23e | M108: =VLOOKUP(L108,Tabella_prezzi!$A$2:$L$65,6,FALSE) -> TS4L3-HDRTN60
A110: TS4L3_Rack
A111: ="" ->  | G111: ="" ->  | I111: ="" ->  | L111: ="" ->  | M111: ="" -> 
A112: =D112 -> Armadio Rack 42U | D112: =VLOOKUP(L112,Tabella_prezzi!$A$2:$L$65,8,FALSE) -> Armadio Rack 42U | G112: 1 | H112: =VLOOKUP(L112,Tabella_prezzi!$A$2:$L$260,9,FALSE) -> Armadio Rack 42U | I112: =VLOOKUP(L112,Tabella_prezzi!$A$2:$L$260,3,FALSE) -> OpzRack | J112: =VLOOKUP(L112,Tabella_prezzi!$A$2:$L$260,4,FALSE) -> 579.18 | L112: L3N25 | M112: =VLOOKUP(L112,Tabella_prezzi!$A$2:$L$65,6,FALSE) -> TS4L3-RACK
A114: TS4L3_UPS
A115: ="" ->  | G115: ="" ->  | I115: ="" ->  | L115: ="" ->  | M115: ="" -> 
A116: UPS PowerMe RPMM/9K - 3000VA | D116: =VLOOKUP(L116,Tabella_prezzi!$A$2:$L$65,8,FALSE) -> Dispositivo UPS di tipo On-line doppia conversione, strutturato per il montaggio a rack da 19” | G116: 1 | H116: =VLOOKUP(L116,Tabella_prezzi!$A$2:$L$260,9,FALSE) -> Dispositivo UPS di tipo On-line doppia conversione, strutturato per il montaggio a rack da 19” | I116: =VLOOKUP(L116,Tabella_prezzi!$A$2:$L$260,3,FALSE) -> OpzUps | J116: =VLOOKUP(L116,Tabella_prezzi!$A$2:$L$260,4,FALSE) -> 371.18 | L116: L3N15 | M116: =VLOOKUP(L116,Tabella_prezzi!$A$2:$L$65,6,FALSE) -> TS4L3-UPS
A118: TS4L3_GUI
A119: ="" ->  | G119: ="" ->  | I119: ="" ->  | L119: ="" ->  | M119: ="" -> 
A120: Unità KVM - monitor 17", cavo combi PS/2&USB | D120: =VLOOKUP(L120,Tabella_prezzi!$A$2:$L$65,8,FALSE) -> Unità KVM - monitor 17", cavo combi PS/2&USB da 1,8mt, tastiera italiana, touch pad | G120: 1 | H120: =VLOOKUP(L120,Tabella_prezzi!$A$2:$L$260,9,FALSE) -> Unità KVM - monitor 17", cavo combi PS/2&USB da 1,8mt, tastiera italiana, touch pad | I120: =VLOOKUP(L120,Tabella_prezzi!$A$2:$L$260,3,FALSE) -> OpzGUI | J120: =VLOOKUP(L120,Tabella_prezzi!$A$2:$L$260,4,FALSE) -> 491.62 | L120: L3N16 | M120: =VLOOKUP(L120,Tabella_prezzi!$A$2:$L$65,6,FALSE) -> TS4L3-GUI
A122: TS4L3_KVM
A123: ="" ->  | G123: ="" ->  | I123: ="" ->  | L123: ="" ->  | M123: ="" -> 
A124: =D124 -> KVM Switch IP per GUI 16P | D124: =VLOOKUP(L124,Tabella_prezzi!$A$2:$L$65,8,FALSE) -> KVM Switch IP per GUI 16P | G124: 1 | H124: =VLOOKUP(L124,Tabella_prezzi!$A$2:$L$260,9,FALSE) -> KVM Switch IP per GUI 16P | I124: =VLOOKUP(L124,Tabella_prezzi!$A$2:$L$260,3,FALSE) -> OpzKVM | J124: =VLOOKUP(L124,Tabella_prezzi!$A$2:$L$260,4,FALSE) -> 553.94 | L124: L3N17 | M124: =VLOOKUP(L124,Tabella_prezzi!$A$2:$L$65,6,FALSE) -> TS4L3-KVM
A126: TS4L3_PCI_A
A127: RISERVATO SCHEDA SAS HBA ThinkSystem 4350 | B127: ="" ->  | C127: ="" ->  | D127: ="" ->  | E127: ="" ->  | F127: ="" ->  | G127: ="" ->  | H127: ="" ->  | I127: ="" ->  | J127: 0 | K127: 0 | L127: ="" ->  | M127: ="" ->  | XFD127: ="" -> 
A128: Slot non Utilizzato | G128: ="" ->  | I128: ="" ->  | L128: ="" ->  | M128: ="" -> 
A129: =D129 -> Broadcom 5720 1GbE RJ45 2-Port PCIe Ethernet Adapter | D129: =VLOOKUP(L129,Tabella_prezzi!$A$2:$L$65,9,FALSE) -> Broadcom 5720 1GbE RJ45 2-Port PCIe Ethernet Adapter | G129: 1 | H129: =VLOOKUP(L129,Tabella_prezzi!$A$2:$L$65,9,FALSE) -> Broadcom 5720 1GbE RJ45 2-Port PCIe Ethernet Adapter | I129: =VLOOKUP(L129,Tabella_prezzi!$A$2:$L$65,3,FALSE) -> OpzGigabit | J129: =VLOOKUP(L129,Tabella_prezzi!$A$2:$L$65,4,FALSE) -> 28.28 | L129: L3N05 | M129: =VLOOKUP(L129,Tabella_prezzi!$A$2:$L$65,6,FALSE) -> TS4L3-LAN1
A130: Broadcom 57414 Dual Port 10Gb, SFP28, PCIe Adapter, Full Height + Optics | D130: =VLOOKUP(L130,Tabella_prezzi!$A$2:$L$65,9,FALSE) -> Broadcom 57414 Dual Port 10Gb, SFP28, PCIe Adapter, Full Height + Optics | G130: 1 | H130: =VLOOKUP(L130,Tabella_prezzi!$A$2:$L$65,9,FALSE) -> Broadcom 57414 Dual Port 10Gb, SFP28, PCIe Adapter, Full Height + Optics | I130: =VLOOKUP(L130,Tabella_prezzi!$A$2:$L$65,3,FALSE) -> OpzGigabit10Gbps | J130: =VLOOKUP(L130,Tabella_prezzi!$A$2:$L$65,4,FALSE) -> 227.94 | L130: L3N06 | M130: =VLOOKUP(L130,Tabella_prezzi!$A$2:$L$65,6,FALSE) -> TS4L3-LAN10
A131: Broadcom 57414 10/25GbE SFP28 2-port PCIe Ethernet Adapter + 2x Lenovo 25Gb SR SFP28 Ethernet Transceiver | D131: =VLOOKUP(L131,Tabella_prezzi!$A$2:$L$65,9,FALSE) -> Broadcom 57414 10/25GbE SFP28 2-port PCIe Ethernet Adapter + 2x Lenovo 25Gb SR SFP28 Ethernet Transceiver | G131: 1 | H131: =VLOOKUP(L131,Tabella_prezzi!$A$2:$L$65,9,FALSE) -> Broadcom 57414 10/25GbE SFP28 2-port PCIe Ethernet Adapter + 2x Lenovo 25Gb SR SFP28 Ethernet Transceiver | I131: =VLOOKUP(L131,Tabella_prezzi!$A$2:$L$65,3,FALSE) -> OpzGigabit25Gbps | J131: =VLOOKUP(L131,Tabella_prezzi!$A$2:$L$65,4,FALSE) -> 389.96 | L131: L3N07 | M131: =VLOOKUP(L131,Tabella_prezzi!$A$2:$L$65,6,FALSE) -> TS4L3-LAN25
A132: QLogic QL41262 10/25GbE SFP28 2-Port PCIe Ethernet Adapter + 2x SFP+ SR Transceiver | D132: =VLOOKUP(L132,Tabella_prezzi!$A$2:$L$65,9,FALSE) -> QLogic QL41262 10/25GbE SFP28 2-Port PCIe Ethernet Adapter + 2x SFP+ SR Transceiver | G132: 1 | H132: =VLOOKUP(L132,Tabella_prezzi!$A$2:$L$65,9,FALSE) -> QLogic QL41262 10/25GbE SFP28 2-Port PCIe Ethernet Adapter + 2x SFP+ SR Transceiver | I132: =VLOOKUP(L132,Tabella_prezzi!$A$2:$L$65,3,FALSE) -> OpzGigabit10Gbps CNA | J132: =VLOOKUP(L132,Tabella_prezzi!$A$2:$L$65,4,FALSE) -> 404.05 | L132: L3N08 | M132: =VLOOKUP(L132,Tabella_prezzi!$A$2:$L$65,6,FALSE) -> TS4L3-CNA10
A133: Broadcom 57416 10GBASE-T 2-Port PCIe Ethernet Adapter | D133: =VLOOKUP(L133,Tabella_prezzi!$A$2:$L$65,9,FALSE) -> Broadcom 57416 10GBASE-T 2-Port PCIe Ethernet Adapter | G133: 1 | H133: =VLOOKUP(L133,Tabella_prezzi!$A$2:$L$65,9,FALSE) -> Broadcom 57416 10GBASE-T 2-Port PCIe Ethernet Adapter | I133: =VLOOKUP(L133,Tabella_prezzi!$A$2:$L$65,3,FALSE) -> Opz10Gigabit BaseT | J133: =VLOOKUP(L133,Tabella_prezzi!$A$2:$L$65,4,FALSE) -> 213.16 | L133: L3N09 | M133: =VLOOKUP(L133,Tabella_prezzi!$A$2:$L$65,6,FALSE) -> TS4L3-BaseT
A134: Emulex 16Gb Gen6 FC Dual-port HBA | D134: =VLOOKUP(L134,Tabella_prezzi!$A$2:$L$65,9,FALSE) -> Emulex 16Gb Gen6 FC Dual-port HBA | G134: 1 | H134: =VLOOKUP(L134,Tabella_prezzi!$A$2:$L$65,9,FALSE) -> Emulex 16Gb Gen6 FC Dual-port HBA | I134: =VLOOKUP(L134,Tabella_prezzi!$A$2:$L$65,3,FALSE) -> OpzFibreChannel | J134: =VLOOKUP(L134,Tabella_prezzi!$A$2:$L$65,4,FALSE) -> 427.23 | L134: L3N10 | M134: =VLOOKUP(L134,Tabella_prezzi!$A$2:$L$65,6,FALSE) -> TS4L3- FibreChannel
A136: 0
A137: 2
A138: 4
A139: 6
A140: Illimitate
A143: 1 | B143: 3
A144: 3 | B144: 6
A145: 4 | B145: 9 | C145: 1CPU | D145: 2CPU
A147: 1 | C147: 4 | D147: 16 | E147: =16+(C147*2) -> 24 | F147: =16+(D147*2) -> 48
A148: 2 | C148: 16 | D148: 28 | E148: =16+(C148*2) -> 48 | F148: =16+(D148*2) -> 72
A149: 3 | C149: 28 | D149: 40 | E149: =16+(C149*2) -> 72 | F149: 96
A150: 4
A151: 5
A152: 6
A153: 7
A154: 8
A155: 9
A156: 10
A157: 11
A158: 12
A159: 13
A160: 14
A161: 15
A162: 16

Sheet Tabella_prezzi (hidden)
A1: N° | C1: Attributo | D1: Valore inserito | E1: N° | F1: Codice Convenzione | G1: Qty: | I1: Description: | J1: Manufacturer Part | K1: Sku Number: | L1: Brand
A2: L3N01 | B2: 1 | C2: Server rackable bi-processore prest. | D2: 2050.54 | E2: L3N01 | F2: TS4L3-SRV | G2: 1 | H2: Lenovo ThinkSystem SR650 V2 Server | I2: Lenovo ThinkSystem SR650 V2 Server | J2: L3N01-ServerSR650 | K2: 210-AUVQ | L2: DELL | P2: 210-321-BCPX | Q2: -
A3: L3N200 | B3: 1 | C3: Server rackable bi-processore prest. | D3: 6000 | E3: L3N200 | F3: TS4L3-SRV | G3: 1 | I3: Lenovo ThinkSystem SR650 V2 Server | J3: L3N01-ServerSR650 | K3: 210-AUVQ | L3: DELL | P3: 210-321-BCPX | Q3: -
A4: L3N01-NVME | B4: 1 | C4: Server rackable bi-processore prest. | E4: L3N01-NVME | F4: TS4L3-SRV-NVMe | G4: 1 | H4: Lenovo ThinkSystem SR650 V2 Server NVMe | I4: Lenovo ThinkSystem SR650 V2 Server NVMe | J4: L3N01-ServerR7525-NVMe | K4: 210-AUVQ | L4: DELL | P4: 210-321-BCPX | Q4: -
A5: L3N01-NVME | B5: 1 | C5: Server rackable bi-processore prest. | E5: L3N01-vSAN | F5: TS4L3-SRV-vSAN | G5: 1 | H5: Lenovo ThinkSystem SR650 V2 Server vSAN | I5: Lenovo ThinkSystem SR650 V2 Server vSAN | J5: L3N01-ServerR7525-vSAN | K5: 210-AUVQ | L5: DELL | P5: 210-321-BCPX | Q5: -
A6: L3N01-NVME | B6: 1 | C6: Server rackable bi-processore prest. | E6: L3N01-NUT | F6: TS4L3-SRV-NUT | G6: 1 | H6: Lenovo ThinkSystem SR650 V2 Server Nutanix | I6: Lenovo ThinkSystem SR650 V2 Server Nutanix | J6: L3N01-ServerR7525-NUT | K6: 210-AUVQ | L6: DELL | P6: 210-321-BCPX | Q6: -
A7: L3N02 | B7: 2 | C7: Kit n. 1 Processore aggiuntivo | D7: 623.57 | E7: L3N02 | F7: TS4L3-CPU | G7: 1 | H7: Intel Xeon Silver 4310 12C 120W 2.1GHz Processor | I7: Intel Xeon Silver 4310 12C 120W 2.1GHz Processor | J7: L3N02-OpzCPU | K7: 338-BZSB | L7: DELL | P7: 338-BZSB | Q7: WX6G7
G8: 1 | H8: L Shape Heatsink for 2nd CPU equal to or greater than 180W,PowerEdge R6525/R7525, Customer Install | I8: L Shape Heatsink for 2nd CPU equal to or greater than 180W,PowerEdge R6525/R7525, Customer Install | K8: 412-AASW | L8: DELL | P8: 412-AASW | Q8: 4RCGC
G9: 1 | H9: PowerEdge R7525 High Performance Fan Customer Kit V3 | I9: PowerEdge R7525 High Performance Fan Customer Kit V3 | K9: 121-BBBI | L9: DELL | P9: 121-BBBI | Q9: HVVRP
G10: 1 | H10: Riser with Two x8(x16 connector) PCIe Gen4 (Slots 4 & 5), Customer Install | I10: Riser with Two x8(x16 connector) PCIe Gen4 (Slots 4 & 5), Customer Install | K10: 330-BBTM | L10: DELL | P10: 330-BBTM | Q10: 234T7
G11: 1 | H11: Riser 4B, PCIe Gen4 1x16 (x16 connector), Half Length, PowerEdge R7525, CK | I11: Riser 4B, PCIe Gen4 1x16 (x16 connector), Half Length, PowerEdge R7525, CK | K11: 330-BBPR | L11: DELL | P11: 330-BBPR
G12: 1 | H12: Riser 1B, PCIe Gen4 2x8 (x16 connector), Half Length, PowerEdge R7525, CK | I12: Riser 1B, PCIe Gen4 2x8 (x16 connector), Half Length, PowerEdge R7525, CK | K12: 330-BBPV | L12: DELL | P12: 330-BBPV | Q12: R80PP
G13: 1 | H13: Riser 2A, PCIe Gen4 2x16 (x16 connector), PowerEdge R7525, CK | I13: Riser 2A, PCIe Gen4 2x16 (x16 connector), PowerEdge R7525, CK | K13: 330-BBPO | L13: DELL | P13: 330-BBPO
A14: L3N03 | B14: 3 | C14: OpzRAM32GB | D14: 223.31 | E14: L3N03 | F14: TS4L3-RAM32 | G14: 1 | H14: 32GB TruDDR4 3200 MHz (2Rx4 1.2V) RDIMM | I14: ThinkSystem 32GB TruDDR4 3200 MHz (2Rx4 1.2V) RDIMM | J14: L3N03-OpzRAM32GB | K14: 370-AEVN | L14: DELL | P14: AA79SNP75X1VC/32G | Q14: SNP75X1VC/32G
A15: L3N04 | B15: 4 | C15: OpzRAM64GB | D15: 478.29 | E15: L3N04 | F15: TS4L3-RAM64 | G15: 1 | H15: 64GB TruDDR4 3200 MHz (2Rx4 1.2V) RDIMM | I15: ThinkSystem 64GB TruDDR4 3200 MHz (2Rx4 1.2V) RDIMM | J15: L3N04-OpzRAM64GB | K15: 370-AEVP | L15: DELL | P15: AA79SNPP2MYXC/64G | Q15: SNPP2MYXC/64G
A16: L3N05 | B16: 5 | C16: OpzGigabit | D16: 28.28 | E16: L3N05 | F16: TS4L3-LAN1 | G16: 1 | H16: Broadcom 5720 1GbE RJ45 2-Port PCIe Ethernet Adapter | I16: Broadcom 5720 1GbE RJ45 2-Port PCIe Ethernet Adapter | J16: L3N05-OpzGigabit | K16: 540-BBCW | L16: DELL | M16: 1 | N16: 2 | O16: 3 | P16: 540-XF9VF | Q16: XF9VF
A17: L3N06 | B17: 6 | C17: OpzGigabit10Gbps | D17: 227.94 | E17: L3N06 | F17: TS4L3-LAN10 | G17: 1 | H17: Broadcom 57414 Dual Port 10Gb, SFP28, PCIe Adapter, Full Height + Optics | I17: Broadcom 57414 Dual Port 10Gb, SFP28, PCIe Adapter, Full Height + Optics | J17: L3N06-OpzGigabit10Gbps | K17: 540-BDHF | L17: DELL | M17: 1 | N17: 2 | O17: 3 | P17: 540-H6N50 | Q17: H6N50
A18: L3N07 | B18: 7 | C18: OpzGigabit25Gbps | D18: 389.96 | E18: L3N07 | F18: TS4L3-LAN25 | G18: 1 | H18: Broadcom 57414 25GbE SFP28 2-port PCIe Ethernet Adapter + 2x Lenovo 25Gb SR SFP28 Ethernet Transceiver | I18: Broadcom 57414 10/25GbE SFP28 2-port PCIe Ethernet Adapter + 2x Lenovo 25Gb SR SFP28 Ethernet Transceiver | J18: L3N07-OpzGigabit25Gbps | K18: 540-BCDH | L18: DELL | M18: 1 | N18: 2 | O18: 3 | P18: 540-86P4V | Q18: 86P4V
A19: L3N08 | B19: 8 | C19: OpzGigabit10Gbps CNA | D19: 404.05 | E19: L3N08 | F19: TS4L3-CNA10 | G19: 1 | H19: QLogic QL41262 10/25GbE SFP28 2-Port PCIe Ethernet Adapter + 2x SFP+ SR Transceiver | I19: QLogic QL41262 10/25GbE SFP28 2-Port PCIe Ethernet Adapter + 2x SFP+ SR Transceiver | J19: L3N08-OpzCNA10Gbps | K19: 540-BBYL | L19: DELL | M19: 1 | N19: 2 | O19: 3 | P19: 540-42H35 | Q19: 42H35
A20: L3N09 | B20: 9 | C20: Opz10Gigabit BaseT | D20: 213.16 | E20: L3N09 | F20: TS4L3-BaseT | G20: 1 | H20: Broadcom 57416 10GBASE-T 2-Port PCIe Ethernet Adapter | I20: Broadcom 57416 10GBASE-T 2-Port PCIe Ethernet Adapter | J20: L3N09-Opz-BaseT | K20: 540-BCRO | L20: DELL | M20: 1 | N20: 2 | O20: 3 | P20: 403-YH1DK | Q20: YH1DK
A21: L3N10 | B21: 10 | C21: OpzFibreChannel | D21: 427.23 | E21: L3N10 | F21: TS4L3- FibreChannel | G21: 1 | H21: Emulex 16Gb Gen6 FC Dual-port HBA | I21: Emulex 16Gb Gen6 FC Dual-port HBA | J21: L3N10-OpzFibreChannel | K21: 540-BDHC | L21: DELL | M21: 4 | P21: 403-P0TRP | Q21: P0TRP
A22: L3N11 | B22: 11 | C22: OpzHDD8TB | D22: 206.8 | E22: L3N11 | F22: TS4L3-HDD8TB | G22: 1 | H22: 8TB 7.2K SAS 12Gb Hot Swap 512e HDD | I22: 3.5" 8TB 7.2K SAS 12Gb Hot Swap 512e HDD | J22: L3N11-OpzHDD8TB | K22: 400-AVEZ | L22: DELL | P22: 400-HTMGW | Q22: HTMGW
A23: L3N12 | B23: 12 | C23: OpzHDD2TB | D23: 155.89 | E23: L3N12 | F23: TS4L3-HDD2TB | G23: 1 | H23: 2TB 7.2K SAS 12Gb Hot Swap 512n HDD | I23: 3.5" 2TB 7.2K SAS 12Gb Hot Swap 512n HDD | J23: L3N12-OpzHDD2TB | K23: 400-AVFE | L23: DELL | P23: 400-400-ATJL | Q23: 400-ATJL
A24: L3N13 | B24: 13 | C24: OpzHDD1TB | D24: 138.93 | E24: L3N13 | F24: TS4L3-HDD1TB | G24: 1 | H24: 1TB 7.2K SAS 12Gb Hot Swap 512n HDD | I24: 3.5" 1TB 7.2K SAS 12Gb Hot Swap 512n HDD | J24: L3N13-OpzHDD1TB | K24: 345-BCNU | L24: DELL | P24: 400-PDNT1 | Q24: PDNT1
A25: L3N14 | B25: 14 | C25: OpzHDD12TB | D25: 308.61 | E25: L3N14 | F25: TS4L3-HDD12TB | G25: 1 | H25: 12TB 7.2K SAS 12Gb Hot Swap 512e HDD | I25: 3.5" 12TB 7.2K SAS 12Gb Hot Swap 512e HDD | J25: L3N14-OpzHDD12TB | K25: 345-BBVC | L25: DELL | P25: 400-2H59H | Q25: 2H59H
A26: L3N15 | B26: 15 | C26: OpzUps | D26: 371.18 | E26: L3N15 | F26: TS4L3-UPS | G26: 1 | H26: Dispositivo UPS di tipo On-line doppia conversione, strutturato per il montaggio a rack da 19” | I26: Dispositivo UPS di tipo On-line doppia conversione, strutturato per il montaggio a rack da 19” | J26: L3N15-OpzUps | K26: RPMM9/3K | P26: 400-CDPWY | Q26: CDPWY
A27: L3N16 | B27: 16 | C27: OpzGUI | D27: 491.62 | E27: L3N16 | F27: TS4L3-GUI | G27: 1 | H27: Unità KVM - monitor 17", cavo combi PS/2&USB da 1,8mt, tastiera italiana, touch pad | I27: Unità KVM - monitor 17", cavo combi PS/2&USB da 1,8mt, tastiera italiana, touch pad | J27: L3N16-OpzGUI | K27: F9857N | P27: 400-VPV60 | Q27: VPV60
A28: L3N17 | B28: 17 | C28: OpzKVM | D28: 553.94 | E28: L3N17 | F28: TS4L3-KVM | G28: 1 | H28: KVM Switch IP per GUI 16P | I28: KVM Switch IP per GUI 16P | J28: L3N17-OpzKVM | K28: T9816NIP | P28: 400-MW0DK | Q28: MW0DK
A29: L3N18 | B29: 18 | C29: OpzWinServSTD | D29: 867.59 | E29: L3N18 | F29: TS4L3-WINSRVSTD | G29: 1 | H29: Windows Server 2022,Standard,ROK,16CORE | I29: Windows Server 2022,Standard,ROK,16CORE | J29: L3N18-WinServSTD | K29: 400-BMVM | L29: DELL | P29: 403-C359R | Q29: C359R
A30: L3N19 | B30: 19 | C30: OpzDeviceCal | D30: 37.37 | E30: L3N19 | F30: TS4L3-WINDEVCAL | G30: 1 | H30: 1-pack of Windows Server 2022/2019 Device CALs (STD or DC) | I30: 1-pack of Windows Server 2022/2019 Device CALs (STD or DC) | J30: L3N19-OpzDeviceCal | K30: RPMM9/3K | P30: RPMMRPMM9/3K | Q30: RPMM9/3K
A31: L3N20 | B31: 20 | C31: OpzUserCal | D31: 47.47 | E31: L3N20 | F31: TS4L3-WINUSRCAL | G31: 1 | H31: 1-pack of Windows Server 2022/2019 User CALs (STD or DC) | I31: 1-pack of Windows Server 2022/2019 User CALs (STD or DC) | J31: L3N20-OpzUserCal | K31: F9857N | P31: F985F9857N | Q31: F9857N
A32: L3N21 | B32: 21 | C32: OpzWinServSTD2core | D32: 126.25 | E32: L3N21 | F32: TS4L3-WINSRV2C | G32: 1 | H32: Windows Server 2022 Standard Edition, Add License,2CORE | I32: Windows Server 2022 Standard Edition, Add License,2CORE | J32: L3N21-OpzWinServSTD2core | K32: T9816NIP | P32: T981T9816NIP | Q32: T9816NIP
A33: L3N22 | B33: 22 | C33: OpzOpenSource | D33: 9.54 | E33: L3N22 | F33: TS4L3-LINUX | G33: 1 | H33: Ubuntu Server 22.04 LTS 64 Bit | I33: Ubuntu 22.04 LTS 64 Bit | J33: L3N22-OpzOpenSource | K33: 634-BYKR | L33: DELL | P33: 634-634-BSFX | Q33: 634-BSFX
A34: L3N23 | B34: 23 | C34: OpzHDDRetention36 | D34: 32.88 | E34: L3N23 | F34: TS4L3-HDRTN36 | G34: 1 | H34: Hard Disk Retention 36 mesi | I34: Hard Disk Retention 36 mesi | J34: L3N23-OpzHDDRetention36 | K34: 634-BYLD | L34: DELL | P34: 623-623-BBCV | Q34: 623-BBCV
A35: L3N23E | B35: 23 | C35: OpzHDDRetention60 | D35: 54.79 | E35: L3N23 | F35: TS4L3-HDRTN60 | G35: 1 | H35: Hard Disk Retention 60 mesi | I35: Hard Disk Retention 60 mesi | J35: L3N23-OpzHDDRetention60 | K35: 634-BYLD | L35: DELL | P35: 623-623-BBCV | Q35: 623-BBCV
A36: L3N24 | B36: 24 | C36: OpzEstensione24 | D36: 88.92 | E36: L3N24 | F36: TS4L3-OpzEst24 | G36: 1 | H36: Estensione della Garanzia Per ulteriori 24 Mesi | I36: Estensione della Garanzia Per ulteriori 24 Mesi | J36: L3N24-OpzEst24 | K36: 634-BYKZ | L36: DELL | P36: 623-623-BBCT | Q36: 623-BBCT
A37: L3N25 | B37: 25 | C37: OpzRack | D37: 579.18 | E37: L3N25 | F37: TS4L3-RACK | G37: 1 | H37: Armadio Rack 42U | I37: Armadio Rack 42U | J37: L3N25-OpzRack | K37: 634-BYKQ | L37: DELL | P37: 634-634-BSGS | Q37: 634-BSGS
A38: L3N26 | B38: 26 | C38: OpzSSD-RI3,8TB | D38: 1111 | E38: L3N26 | F38: TS4L3-SSD-RI3,8TB | G38: 1 | H38: PM1643a 3.84TB Entry SAS 12Gb Hot Swap SSD | I38: 3.5" PM1643a 3.84TB Entry SAS 12Gb Hot Swap SSD | J38: L3N26-OpzSSD-RI3,8TB
A39: L3N27 | B39: 27 | C39: OpzSSD-RI1,6TB | D39: 722.15 | E39: L3N27 | F39: TS4L3-SSD-RI1,6TB | G39: 1 | H39: PM1645a 1.6TB Mainstream SAS 12Gb Hot Swap SSD | I39: 3.5" PM1645a 1.6TB Mainstream SAS 12Gb Hot Swap SSD | J39: L3N26-OpzSSD-RI1,6TB | K39: 634-BYLC | L39: DELL | P39: 785-785-10921 | Q39: 785-10921
A40: L3N50 | B40: 50 | C40: Disk Controller | F40: TS4L3-DiskController | G40: 1 | H40: RAID 9350-16i 4GB Flash PCIe 12Gb Adapter | I40: RAID 9350-16i 4GB Flash PCIe 12Gb Adapter | J40: =CONCATENATE(A40,"-",C40) -> L3N50-Disk Controller | K40: 634-BYLC | P40: 785-785-10921 | Q40: 785-10921
A41: L3N51 | B41: 51 | C41: PSU | F41: TS4L3-PSU | G41: 1 | H41: 2 x 750W(230V/115V) Platinum Hot-Swap Power Supply v2 | I41: 2 x 750W(230V/115V) Platinum Hot-Swap Power Supply v2 | J41: =CONCATENATE(A41,"-",C41) -> L3N51-PSU | P41: 785-785-10921 | Q41: 785-10921
A42: L3N52 | C42: =CONCATENATE("Opz",MID(F42,7,LEN(F42)-6)) -> OpzVROC | D42: 380 | E42: 999 | F42: TS4L3-VROC | G42: 1 | H42: Intel VROC (VMD NVMe RAID) Premium | I42: Intel VROC (VMD NVMe RAID) Premium | J42: L3N52-OpzVROC
A43: L3N53 | C43: =CONCATENATE("Opz",MID(F43,7,LEN(F43)-6)) -> OpzRAID | D43: 9999 | F43: TS4L3-RAID | G43: 1 | H43: ThinkSystem M.2 NVMe 2-Bay RAID Enablement Kit | I43: ThinkSystem M.2 NVMe 2-Bay RAID Enablement Kit | J43: L3N53-OpzRAID
A44: L3N54 | C44: =CONCATENATE("Opz",MID(F44,7,LEN(F44)-6)) -> OpzSSDSAS3.2TBMU | D44: 9999 | F44: TS4L3-SSDSAS3.2TBMU | G44: 1 | H44: ThinkSystem 3.2TB Mixed Use SAS 24Gb HS SSD | I44: ThinkSystem 3.5" PM1655 3.2TB Mixed Use SAS 24Gb HS SSD | J44: L3N54-OpzSSDSAS3.2TBMU
A45: L3N55 | C45: OpzSSDSAS6.4TBMU | D45: 9999 | F45: TS4L3-SSDSAS6.4TBMU | G45: 1 | H45: ThinkSystem 6.4TB Mixed Use SAS 24Gb HS SSD | I45: ThinkSystem 3.5" PM1655 6.4TB Mixed Use SAS 24Gb HS SSD | J45: L3N55-OpzSSDSAS6.4TBMU
A46: L3N56 | C46: OpzSSDSAS7.68TBRI | D46: 9999 | F46: TS4L3-SSDSAS7.68TBRI | G46: 1 | H46: ThinkSystem 7.68TB Read Intensive SAS 24Gb HS SSD | I46: ThinkSystem 3.5" PM1653 7.68TB Read Intensive SAS 24Gb HS SSD | J46: L3N56-OpzSSDSAS7.68TBRI
A47: L3N57 | C47: OpzSSDSAS15.36TBRI | D47: 9999 | F47: TS4L3-SSDSAS15.36TBRI | G47: 1 | H47: ThinkSystem 15.36TB Read Intensive SAS 24Gb HS SSD | I47: ThinkSystem 3.5" PM1653 15.36TB Read Intensive SAS 24Gb HS SSD | J47: L3N57-OpzSSDSAS15.36TBRI
A48: L3N58 | C48: OpzSSDSATA3.84TBRI | D48: 9999 | F48: TS4L3-SSDSATA3.84TBRI | G48: 1 | H48: ThinkSystem 3.84TB Read Intensive SATA 6Gb HS SSD | I48: ThinkSystem 3.5" S4520 3.84TB Read Intensive SATA 6Gb HS SSD | J48: L3N58-OpzSSDSATA3.84TBRI
A49: L3N59 | C49: OpzSSDSATA7.68TBRI | D49: 9999 | F49: TS4L3-SSDSATA7.68TBRI | G49: 1 | H49: ThinkSystem 7.68TB Read Intensive SATA 6Gb HS SSD | I49: ThinkSystem 3.5" S4520 7.68TB Read Intensive SATA 6Gb HS SSD | J49: L3N59-OpzSSDSATA7.68TBRI
A50: L3N60 | C50: OpzHDD_SAS20TB_HW | D50: 9999 | F50: TS4L3-HDD_SAS20TB_HW | G50: 1 | H50: ThinkSystem 20TB 7.2K SAS 12Gb Hot Swap 512e HDD | I50: ThinkSystem 3.5" 20TB 7.2K SAS 12Gb Hot Swap 512e HDD | J50: L3N60-OpzHDD_SAS20TB_HW
A51: L3N61 | C51: OpzHDD_SATA16TB_HW | D51: 9999 | F51: TS4L3-HDD_SATA16TB_HW | G51: 1 | H51: ThinkSystem 16TB 7.2K SATA 6Gb Hot Swap 512e HDD | I51: ThinkSystem 3.5" 16TB 7.2K SATA 6Gb Hot Swap 512e HDD | J51: L3N61-OpzHDD_SATA16TB_HW
A52: L3N62 | C52: OpzHDD_SAS16TB_HW | D52: 9999 | F52: TS4L3-HDD_SAS16TB_HW | G52: 1 | H52: ThinkSystem 3.5" 16TB 7.2K SAS 12Gb Hot Swap 512e HDD | I52: ThinkSystem 3.5" 16TB 7.2K SAS 12Gb Hot Swap 512e HDD | J52: L3N62-OpzHDD_SAS16TB_HW
A53: L3N63 | C53: OpzSSD_SAS800GB_WI | D53: 9999 | F53: TS4L3-SSD_SAS800GB_WI | G53: 1 | H53: ThinkSystem 3.5" 800GB Write Intensive SAS 12Gb HS SSD | I53: ThinkSystem 3.5" Nytro 3750 800GB Write Intensive SAS 12Gb HS SSD | J53: L3N63-OpzSSD_SAS800GB_WI
A54: L3N64 | C54: OpzSSD_SAS1.6TB_WI | D54: 9999 | F54: TS4L3-SSD_SAS1.6TB_WI | G54: 1 | H54: ThinkSystem 3.5" 1.6TB Write Intensive SAS 12Gb HS SSD | I54: ThinkSystem 3.5" Nytro 3750 1.6TB Write Intensive SAS 12Gb HS SSD | J54: L3N64-OpzSSD_SAS1.6TB_WI
A55: L3N65 | C55: OpzSSD_SAS3.2TB_WI | D55: 9999 | F55: TS4L3-SSD_SAS3.2TB_WI | G55: 1 | H55: ThinkSystem 3.5" 3.2TB Write Intensive SAS 12Gb HS SSD | I55: ThinkSystem 3.5" Nytro 3750 3.2TB Write Intensive SAS 12Gb HS SSD | J55: L3N65-OpzSSD_SAS3.2TB_WI
A56: L3N66 | C56: OpzNUTANIX-A | D56: 4200 | F56: TS4L3-NUTANIX-A | G56: 1 | H56: Conversion Kit a sistemi HX (Hybrid) | I56: Conversion Kit da SR650 V2 a sistemi HX (Hybrid) | J56: L3N66-OpzNUTANIX-A
A57: L3N68 | C57: OpzNUTANIX-B | D57: 7546 | F57: TS4L3-NUTANIX-B | G57: 1 | H57: Conversion Kit sistemi HX (All-Flash Medium-Large) | I57: Conversion Kit sistemi HX (All-Flash Medium-Large) | J57: L3N68-OpzNUTANIX-B
A58: L3N69 | C58: OpzvSAN-A | D58: 3200 | F58: TS4L3-vSAN-A | G58: 1 | H58: Conversion Kit a sistemi VX (Hybrid Storage) | I58: Conversion Kit da SR650 V2 a sistemi VX (Hybrid Storage) | J58: L3N69-OpzvSAN-A
A59: L3N71 | C59: OpzvSAN-B | D59: 7131.5 | F59: TS4L3-vSAN-B | G59: 1 | H59: Conversion Kit a sistemi VX (All-Flash Medium-Large) | I59: Conversion Kit da SR650 V2 a sistemi VX (All-Flash Medium-Large) | J59: L3N71-OpzvSAN-B
A60: L3N72 | C60: OpzPCI-BaseT-57454 | D60: 106 | F60: TS4L3-PCI-BaseT-57454 | G60: 1 | H60: ThinkSystem Broadcom 57454 10GBASE-T 4-port PCIe Ethernet Adapter | I60: ThinkSystem Broadcom 57454 10GBASE-T 4-port PCIe Ethernet Adapter | J60: L3N72-OpzPCI-BaseT-57454
A61: L3N73 | C61: OpzPCI-10/25GB-57454 | D61: 107 | F61: TS4L3-PCI-10/25GB-57454 | G61: 1 | H61: ThinkSystem Broadcom 57454 10/25GbE SFP28 4-port PCIe Ethernet Adapter V2 | I61: ThinkSystem Broadcom 57454 10/25GbE SFP28 4-port PCIe Ethernet Adapter V2 | J61: L3N73-OpzPCI-10/25GB-57454
A62: L3N74 | C62: OpzCX6-10/25GB-2Port | D62: 108 | F62: TS4L3-CX6-10/25GB-2Port | G62: 1 | H62: ThinkSystem Mellanox ConnectX-6 Lx 10/25GbE SFP28 2-port PCIe Ethernet Adapter | I62: ThinkSystem Mellanox ConnectX-6 Lx 10/25GbE SFP28 2-port PCIe Ethernet Adapter | J62: L3N74-OpzCX6-10/25GB-2Port
A63: L3N75 | C63: OpzCX6-100GB-2Port | D63: 109 | F63: TS4L3-CX6-100GB-2Port | G63: 1 | H63: ThinkSystem Mellanox ConnectX-6 Dx 100GbE QSFP56 2-port PCIe 4 Ethernet Adapter | I63: ThinkSystem Mellanox ConnectX-6 Dx 100GbE QSFP56 2-port PCIe 4 Ethernet Adapter | J63: L3N75-OpzCX6-100GB-2Port
A64: L3N76 | C64: OpzCX4-10/25GB-2Port | D64: 110 | F64: TS4L3-CX4-10/25GB-2Port | G64: 1 | H64: ThinkSystem Mellanox ConnectX-4 Lx 10/25GbE SFP28 2-port PCIe Ethernet Adapter | I64: ThinkSystem Mellanox ConnectX-4 Lx 10/25GbE SFP28 2-port PCIe Ethernet Adapter | J64: L3N76-OpzCX4-10/25GB-2Port
A65: L3N77 | C65: OpzSFP28-10/25GB | D65: 111 | F65: TS4L3-SFP28-10/25GB | G65: 1 | H65: Lenovo Dual Rate 10G/25G SR SFP28 Transceiver | I65: Lenovo Dual Rate 10G/25G SR SFP28 Transceiver | J65: L3N77-OpzSFP28-10/25GB
A66: L3N78 | C66: OpzSFP28.85C-10/25GB | D66: 112 | F66: TS4L3-SFP28.85C-10/25GB | G66: 1 | H66: Lenovo Dual Rate 10G/25G SR SFP28 85C Transceiver | I66: Lenovo Dual Rate 10G/25G SR SFP28 85C Transceiver | J66: L3N78-OpzSFP28.85C-10/25GB
A67: L3N79 | C67: OpzSFP28-25GB | D67: 113 | F67: TS4L3-SFP28-25GB | G67: 1 | H67: Lenovo 25Gb SR SFP28 Ethernet Transceiver | I67: Lenovo 25Gb SR SFP28 Ethernet Transceiver | J67: L3N79-OpzSFP28-25GB
A68: L3N80 | C68: OpzSFP+SR | D68: 114 | F68: TS4L3-SFP+SR | G68: 1 | H68: SFP+ SR Transceiver | I68: SFP+ SR Transceiver | J68: L3N80-OpzSFP+SR
A69: L3N81 | C69: OpzQSFP28-100GBBase | D69: 115 | F69: TS4L3-QSFP28-100GBBase | G69: 1 | H69: Lenovo 100GBase-SR4 QSFP28 Transceiver | I69: Lenovo 100GBase-SR4 QSFP28 Transceiver | J69: L3N81-OpzQSFP28-100GBBase
A70: L3N82 | C70: OpzQSFP28-100GB | D70: 116 | F70: TS4L3-QSFP28-100GB | G70: 1 | H70: Lenovo 100Gb SR4 QSFP28 Ethernet Transceiver | I70: Lenovo 100Gb SR4 QSFP28 Ethernet Transceiver | J70: L3N82-OpzQSFP28-100GB
A71: L3N83 | C71: OpzFC-32GB-2Port | D71: 117 | F71: TS4L3-FC-32GB-2Port | G71: 1 | H71: ThinkSystem QLogic QLE2772 32Gb 2-Port PCIe Fibre Channel Adapter | I71: ThinkSystem QLogic QLE2772 32Gb 2-Port PCIe Fibre Channel Adapter | J71: L3N83-OpzFC-32GB-2Port
A72: L3N84 | C72: OpzFC-64GB-2Port | D72: 118 | F72: TS4L3-FC-64GB-2Port | G72: 1 | H72: ThinkSystem Emulex LPe36002 64Gb 2-port PCIe Fibre Channel Adapter | I72: ThinkSystem Emulex LPe36002 64Gb 2-port PCIe Fibre Channel Adapter | J72: L3N84-OpzFC-64GB-2Port
A73: L3N85 | C73: OpzMMF.Cable-5Mt-OM3 | F73: TS4L3-MMF.Cable-5Mt-OM3 | G73: 1 | H73: Lenovo 5m LC-LC OM3 MMF Cable | I73: Lenovo 5m LC-LC OM3 MMF Cable | J73: L3N85-OpzMMF.Cable-5Mt-OM3
A74: L3N86 | C74: OpzMMF.Cable-5Mt-OM4 | F74: TS4L3-MMF.Cable-5Mt-OM4 | G74: 1 | H74: Lenovo 5m LC-LC OM4 MMF Cable | I74: Lenovo 5m LC-LC OM4 MMF Cable | J74: L3N86-OpzMMF.Cable-5Mt-OM4
A75: L3N87 | C75: OpzMMF.Cable-15Mt-OM3 | F75: TS4L3-MMF.Cable-15Mt-OM3 | G75: 1 | H75: Lenovo 15m LC-LC OM3 MMF Cable | I75: Lenovo 15m LC-LC OM3 MMF Cable | J75: L3N87-OpzMMF.Cable-15Mt-OM3
A76: L3N88 | C76: OpzMMF.Cable-25Mt-OM3 | F76: TS4L3-MMF.Cable-25Mt-OM3 | G76: 1 | H76: Lenovo 25m LC-LC OM3 MMF Cable | I76: Lenovo 25m LC-LC OM3 MMF Cable | J76: L3N88-OpzMMF.Cable-25Mt-OM3
A77: L3N89 | C77: OpzMMF.Cable-15Mt-OM4 | F77: TS4L3-MMF.Cable-15Mt-OM4 | G77: 1 | H77: Lenovo 15m LC-LC OM4 MMF Cable | I77: Lenovo 15m LC-LC OM4 MMF Cable | J77: L3N89-OpzMMF.Cable-15Mt-OM4
A78: L3N90 | C78: OpzMMF.Cable-25Mt-OM4 | F78: TS4L3-MMF.Cable-25Mt-OM4 | G78: 1 | H78: Lenovo 25m LC-LC OM4 MMF Cable | I78: Lenovo 25m LC-LC OM4 MMF Cable | J78: L3N90-OpzMMF.Cable-25Mt-OM4
A79: L3N91 | C79: OpzMMF.Cable-3Mt-OM3 | F79: TS4L3-MMF.Cable-3Mt-OM3 | G79: 1 | H79: Lenovo 3m LC-LC OM3 MMF Cable | I79: Lenovo 3m LC-LC OM3 MMF Cable | J79: L3N91-OpzMMF.Cable-3Mt-OM3
A80: L3N92 | C80: OpzMMF.Cable-3Mt-OM4 | F80: TS4L3-MMF.Cable-3Mt-OM4 | G80: 1 | H80: Lenovo 3m LC-LC OM4 MMF Cable | I80: Lenovo 3m LC-LC OM4 MMF Cable | J80: L3N92-OpzMMF.Cable-3Mt-OM4
A81: L3N93 | C81: OpzCPU5315 | F81: TS4L3-CPU5315 | G81: 1 | H81: Intel Xeon Gold 5315Y 8C 140W 3.2GHz Processor | I81: Intel Xeon Gold 5315Y 8C 140W 3.2GHz Processor | J81: L3N93-OpzCPU5315
A82: L3N94 | C82: Opzso nel KIT di Conversione | D82: 0 | F82: Compreso nel KIT di Conversione | G82: 1 | H82: Intel Xeon Gold 6326 16C 185W 2.9GHz Processor | I82: Intel Xeon Gold 6326 16C 185W 2.9GHz Processor | J82: L3N94-Opzso nel KIT di Conversione
A83: L3N95
A84: L3N96
A85: L3N97
A86: L3N98
A87: L3N99
A88: L3N100
A89: L3N101
